account_party,address,code,date,document_number,expense_code_name,expense_code_name_short,id,party_cell,party_cell_code,party_cell_geoobject,purpose,source_bank_account_number,source_bank_account_type,sum,target_legal_personality,target_legal_personality_code,target_type
СВОБОДА,"Львівська обл., Мостиський р-н, Мостиська",74,2016-12-31,9388,"Придбання канцтоварів, паперу, інших предметів і матеріалів, а також госп товари",Придбання канцтоварів та госп. товарів,240281,Мостиська районна організація,37130687,Львівська область,Подарункові набори,26002053721265,current,1500.00,Лабуда Е Й,,фізична особа
СВОБОДА,"Львівська обл., Львів, вул. Пекарська, буд. 23",70,2016-12-30,1,Банківські послуги,Інші витрати,242502,Центральний офіс,00013215,Україна,Комісія банку за супроводження клієнт-банку,26004000021492,current,60.00,"ПАТ ""Креді агріколь банк""",14361575,юридична особа
СВОБОДА,"Львівська обл., Львів, вул. Пекарська, буд. 23",70,2016-12-30,"283,284, 285,286",Банківські послуги,Інші витрати,242501,Центральний офіс,00013215,Україна,Комісія банку за переказ коштів,26004000021492,current,12.00,"ПАТ ""Креді агріколь банк""",14361575,юридична особа
СВОБОДА,"Хмельницька обл., Хмельницький, вул. Соборна, буд. 12",70,2016-12-30,б/н,Банківські послуги,Інші витрати,242380,Хмельницька обласна організація,33953574,Хмельницька область,Списання комісії по рахунку за ведення поточного рахунку,26000330289200,current,159.00,"АТ ""Укрсиббанк""",09807750,юридична особа
СВОБОДА,"Львівська обл., Львів, вул. Стрийська, буд. 35",60,2016-12-30,286,Інші податки,Податкові платежі,242178,Центральний офіс,00013215,Україна,Земельний податок,26004000021492,current,326.65,УДКСУ у Личаківському районі м. Львова,38007620,юридична особа
СВОБОДА,"Київ, вул. Олександра Кошиця, буд. 3",61,2016-12-30,285,Військовий збір,Податкові платежі,241933,Центральний офіс,00013215,Україна,Військовий збір,26004000021492,current,864.74,УДКСУ в Дарницькому районі,38021179,юридична особа
СВОБОДА,"Київ, вул. Олександра Кошиця, буд. 3",62,2016-12-30,284,Сплата ЄСВ,Податкові платежі,241690,Центральний офіс,00013215,Україна,Єдиний внесок,26004000021492,current,9483.11,ДПІ у Дарницькому р-ні м. Києва,39479227,юридична особа
СВОБОДА,"Київ, вул. Олександра Кошиця, буд. 3",63,2016-12-30,283,Податок на доходи,Податкові платежі,241454,Центральний офіс,00013215,Україна,ПДФО,26004000021492,current,10252.77,УДКСУ в Дарницькому районі,38021179,юридична особа
СВОБОДА,"Харківська обл., Харків, вул. Чернишевська, буд. 59",79,2016-12-30,5,"Оренда будинків і приміщень та експлуатаційні витрати (прибирання, страхування орендованих будинків, охорона, сигналізація, ремонт, вивіз сміття, тощо)",Оренда нерухомості,239708,Харківська обласна організація,26283202,Харківська область,Оренда приміщення згідно договору N 4 від 04.01.2016 року за грудень 2016 року. Без ПДВ,26009052224423,current,2388.00,Харківська обласна організація Національної спілки письменників України,14072262,юридична особа
СВОБОДА,"Львівська обл., Львів, вул. Пекарська, буд. 23",70,2016-12-29,281282,Банківські послуги,Інші витрати,242500,Центральний офіс,00013215,Україна,Комісія банку за переказ коштів,26004000021492,current,6.00,"ПАТ ""Креді агріколь банк""",14361575,юридична особа
СВОБОДА,Київ,70,2016-12-29,31349,Банківські послуги,Інші витрати,242351,Івано-Франківська обласна організація,26055441,Івано-Франківська область,Комісія за платежі за межі банку,260030450601,current,100.00,"ПАТ ""Банк інвестиції та заощаджень""",33695095,юридична особа
СВОБОДА,Київ,70,2016-12-29,13932,Банківські послуги,Інші витрати,242350,Івано-Франківська обласна організація,26055441,Івано-Франківська область,Комісія за платежі за межі банку,260030450601,current,30.00,"ПАТ ""Банк інвестиції та заощаджень""",33695095,юридична особа
СВОБОДА,"Львівська обл., Львів, вул. Золота, буд. 42",79,2016-12-29,282,"Оренда будинків і приміщень та експлуатаційні витрати (прибирання, страхування орендованих будинків, охорона, сигналізація, ремонт, вивіз сміття, тощо)",Оренда нерухомості,239743,Центральний офіс,00013215,Україна,Природний газ,26004000021492,current,4574.46,"ТОВ ""Львівгаз збут""",39594527,юридична особа
СВОБОДА,"Львівська обл., Львів, вул. Золота, буд. 42",79,2016-12-29,281,"Оренда будинків і приміщень та експлуатаційні витрати (прибирання, страхування орендованих будинків, охорона, сигналізація, ремонт, вивіз сміття, тощо)",Оренда нерухомості,239742,Центральний офіс,00013215,Україна,Розподіл природного газу,26004000021492,current,343.38,"ПАТ ""Львівгаз""",03349039,юридична особа
СВОБОДА,"Львівська обл., Львів, вул. Пекарська, буд. 23",70,2016-12-28,"278,279, 280",Банківські послуги,Інші витрати,242499,Центральний офіс,00013215,Україна,Комісія банку за переказ коштів,26004000021492,current,9.00,"ПАТ ""Креді агріколь банк""",14361575,юридична особа
СВОБОДА,"Київ, вул. Михайла Грушевського, буд. 1Д",70,2016-12-28,ОА6сї9иіар,Банківські послуги,Інші витрати,242375,Харківська обласна організація,26283202,Харківська область,"Комісія за відкриття банківського рахунку, згідно з відкритою офертою банку N б/н від 09.09.2016 та тарифів банку, без ПДВ",26009052224423,current,100.00,"ПАТ КБ ""Приватбанк""",14360570,юридична особа
СВОБОДА,"Київ, вул. Михайла Грушевського, буд. 1Д",70,2016-12-28,1228Ь45Яи X,Банківські послуги,Інші витрати,242343,Криничанська районна організація,38673191,Дніпропетровська область,Комісія за виконання платежів,26002050262941,current,1.39,"ПАТ КБ ""Приватбанк""",14360570,юридична особа
СВОБОДА,"Київ, вул. Михайла Грушевського, буд. 1Д",70,2016-12-28,1228Ь45Яи У,Банківські послуги,Інші витрати,242342,Криничанська районна організація,38673191,Дніпропетровська область,Комісія за виконання платежів,26002050262941,current,3.00,"ПАТ КБ ""Приватбанк""",14360570,юридична особа
СВОБОДА,"Дніпропетровська обл., Криничанський р-н, Кринички, вул. Центральна, буд. 1",79,2016-12-28,3,"Оренда будинків і приміщень та експлуатаційні витрати (прибирання, страхування орендованих будинків, охорона, сигналізація, ремонт, вивіз сміття, тощо)",Оренда нерухомості,239698,Криничанська районна організація,38673191,Дніпропетровська область,Орендна плата за приміщення та комунальні послуги за грудень 2016 року,26002050262941,current,696.00,"ПРИВАТНА АГРОФІРМА ""КОЛОС""",21912975,юридична особа
СВОБОДА,"Львівська обл., Яворівський р-н, Яворів, площа Ринок, буд. 14",58,2016-12-28,280,"Виготовлення друкованих матеріалів (плакатів, листівок, буклетів та інших агітаційних матеріалів)",Друкована агітація,239418,Центральний офіс,00013215,Україна,"Оплата за друк газети ""Свобода""",26004000021492,current,18142.76,"ТОВ ""ВД ""Молода Галичина""",32148930,юридична особа
СВОБОДА,"Київ, вул. Лугова, буд. 1",58,2016-12-28,279,"Виготовлення друкованих матеріалів (плакатів, листівок, буклетів та інших агітаційних матеріалів)",Друкована агітація,239417,Центральний офіс,00013215,Україна,"Оплата за друк газети ""Свобода""",26004000021492,current,25000.80,"ТОВ ""Полі-прінт""",32108259,юридична особа
СВОБОДА,"Івано-Франківська обл., Івано-Франківськ, вул. Незалежності, буд. 53",58,2016-12-28,278,"Виготовлення друкованих матеріалів (плакатів, листівок, буклетів та інших агітаційних матеріалів)",Друкована агітація,239416,Центральний офіс,00013215,Україна,"Оплата за друк газети ""Свобода""",26004000021492,current,48870.00,"ТОВ ""Місто НВ""",30106695,юридична особа
СВОБОДА,"Київ, вул. Михайла Грушевського, буд. 1Д",70,2016-12-26,1226ЬЗІУ2Х,Банківські послуги,Інші витрати,242374,Харківська обласна організація,26283202,Харківська область,"Комісія за викон. платежу 4 від 26.12.2016, 1250.00 в над. валюті в післяопераційний час, згідно з відкритою офертою банку № б/н від 09.09.2016 без ПДВ",26009052224423,current,2.50,"ПАТ КБ ""Приватбанк""",14360570,юридична особа
СВОБОДА,"Київ, вул. Михайла Грушевського, буд. 1Д",70,2016-12-26,1226L3IV2Y,Банківські послуги,Інші витрати,242373,Харківська обласна організація,26283202,Харківська область,"Комісія за виконання платежів в національній валюті, згідно з відкритою офертою банку N б/н від 09.09.2016 та тарифів банку. Без ПДВ",26009052224423,current,3.00,"ПАТ КБ ""Приватбанк""",14360570,юридична особа
СВОБОДА,"Київ, вул. Михайла Грушевського, буд. 1Д",70,2016-12-26,1226А29У8 А,Банківські послуги,Інші витрати,242341,Криничанська районна організація,38673191,Дніпропетровська область,Комісія за внесення коштів на рахунок,26002050262941,current,5.00,"ПАТ КБ ""Приватбанк""",14360570,юридична особа
СВОБОДА,"Київ, вул. Михайла Грушевського, буд. 1Д",70,2016-12-23,1223а01(ЖА,Банківські послуги,Інші витрати,242340,Криничанська районна організація,38673191,Дніпропетровська область,Комісія за внесення коштів на рахунок,26002050262941,current,5.00,"ПАТ КБ ""Приватбанк""",14360570,юридична особа
СВОБОДА,"Київ, вул. Михайла Грушевського, буд. 1Д",70,2016-12-23,1223А0ЮЕ А,Банківські послуги,Інші витрати,242339,Криничанська районна організація,38673191,Дніпропетровська область,Комісія за внесення коштів на рахунок,26002050262941,current,5.00,"ПАТ КБ ""Приватбанк""",14360570,юридична особа
СВОБОДА,"Полтавська обл., Полтава, вул. Соборності, буд. 14",79,2016-12-22,7,"Оренда будинків і приміщень та експлуатаційні витрати (прибирання, страхування орендованих будинків, охорона, сигналізація, ремонт, вивіз сміття, тощо)",Оренда нерухомості,239705,Полтавська обласна організація,36984343,Полтавська область,Оренда приміщення,26005054629028,current,7651.80,"ТОВ ""Агрополіс на Жовтневій""",38561467,юридична особа
СВОБОДА,"Івано-Франківська обл., Івано-Франківськ",79,2016-12-21,5,"Оренда будинків і приміщень та експлуатаційні витрати (прибирання, страхування орендованих будинків, охорона, сигналізація, ремонт, вивіз сміття, тощо)",Оренда нерухомості,239701,Івано-Франківська обласна організація,26055441,Івано-Франківська область,Оплата за комунальні послуги,260030450601,current,2326.03,Комунальне підриємство обласної ради,39088370,юридична особа
СВОБОДА,"Івано-Франківська обл., Івано-Франківськ",79,2016-12-21,4,"Оренда будинків і приміщень та експлуатаційні витрати (прибирання, страхування орендованих будинків, охорона, сигналізація, ремонт, вивіз сміття, тощо)",Оренда нерухомості,239700,Івано-Франківська обласна організація,26055441,Івано-Франківська область,Оплата за оренду,260030450601,current,2248.43,ГУ ДКСУ в Івано-Франківській області,20567654,юридична особа
СВОБОДА,"Львівська обл., Львів, вул. Пекарська, буд. 23",70,2016-12-19,277,Банківські послуги,Інші витрати,242498,Центральний офіс,00013215,Україна,Комісія банку за переказ коштів,26004000021492,current,3.00,"ПАТ ""Креді агріколь банк""",14361575,юридична особа
СВОБОДА,,76,2016-12-19,277,Послуги зв’язку,Послуги зв’язку,240300,Центральний офіс,00013215,Україна,Послуги зв’язку,26004000021492,current,1000.00,"ПрАТ ""Київстар""",21673832,юридична особа
СВОБОДА,"Київ, вул. Михайла Грушевського, буд. 1Д",70,2016-12-16,ШбЬЗКЖЇУ,Банківські послуги,Інші витрати,242361,Полтавська обласна організація,36984343,Полтавська область,Комісія за виконання платежів,26005054629028,current,3.00,"ПАТ КБ ""Приватбанк""",14360570,юридична особа
СВОБОДА,"Полтавська обл., Полтава, вул. Раїси Кириченко, буд. 1",50,2016-12-16,6,Оплата ефірного часу на радіо,Реклама на радіо,239246,Полтавська обласна організація,36984343,Полтавська область,Розміщення аудіоролика,26005054629028,current,1999.20,"Філія ПАТ ""НТСУ ""Лтава""",40020640,юридична особа
СВОБОДА,"Львівська обл., Львів, вул. Пекарська, буд. 23",70,2016-12-15,"273,274, 275,276",Банківські послуги,Інші витрати,242497,Центральний офіс,00013215,Україна,Комісія банку за переказ коштів,26004000021492,current,12.00,"ПАТ ""Креді агріколь банк""",14361575,юридична особа
СВОБОДА,"Київ, вул. Олександра Кошиця, буд. 3",63,2016-12-15,273,Податок на доходи,Податкові платежі,241453,Центральний офіс,00013215,Україна,ПДФО,26004000021492,current,5343.78,УДКСУ в Дарницькому районі,38021179,юридична особа
СВОБОДА,"Львівська обл., Львів, вул. Модеста Менцинського, буд. 1",72,2016-12-15,276,"Придбання, ремонт офісної техніки та програмного забезпечення (Бухгалтерські програми, Ліга.закон, домени)",Придбання офісної техніки та програмного забезпечення,240255,Центральний офіс,00013215,Україна,Сервісне обслуговування комп’ютера,26004000021492,current,325.00,"ТОВ ""Нова-центр""",23963623,юридична особа
СВОБОДА,"Львівська обл., Яворівський р-н, Яворів, площа Ринок, буд. 14",58,2016-12-15,275,"Виготовлення друкованих матеріалів (плакатів, листівок, буклетів та інших агітаційних матеріалів)",Друкована агітація,239415,Центральний офіс,00013215,Україна,"Оплата за друк газети ""Свобода""",26004000021492,current,18142.76,"ТОВ ""ВД ""Молода Галичина""",32148930,юридична особа
СВОБОДА,"Київ, вул. Лугова, буд. 1",58,2016-12-15,274,"Виготовлення друкованих матеріалів (плакатів, листівок, буклетів та інших агітаційних матеріалів)",Друкована агітація,239414,Центральний офіс,00013215,Україна,"Оплата за друк газети ""Свобода""",26004000021492,current,25000.80,"ТОВ ""Полі-прінт""",32108259,юридична особа
СВОБОДА,"Львівська обл., Львів, вул. Пекарська, буд. 23",70,2016-12-14,"268,269, 270,271, 272",Банківські послуги,Інші витрати,242496,Центральний офіс,00013215,Україна,Комісія банку за переказ коштів,26004000021492,current,15.00,"ПАТ ""Креді агріколь банк""",14361575,юридична особа
СВОБОДА,"Київ, вул. Олександра Кошиця, буд. 3",61,2016-12-14,272,Військовий збір,Податкові платежі,241932,Центральний офіс,00013215,Україна,Військовий збір,26004000021492,current,455.65,УДКСУ в Дарницькому районі,38021179,юридична особа
СВОБОДА,"Київ, вул. Олександра Кошиця, буд. 3",62,2016-12-14,271,Сплата ЄСВ,Податкові платежі,241689,Центральний офіс,00013215,Україна,Єдиний внесок,26004000021492,current,5012.98,ДПІ у Дарницькому р-ні м. Києва,39479227,юридична особа
СВОБОДА,"Львівська обл., Львів, вул. Золота, буд. 42",79,2016-12-14,269,"Оренда будинків і приміщень та експлуатаційні витрати (прибирання, страхування орендованих будинків, охорона, сигналізація, ремонт, вивіз сміття, тощо)",Оренда нерухомості,239741,Центральний офіс,00013215,Україна,Природний газ,26004000021492,current,4783.72,"ТОВ ""Львівгаз збут""",39594527,юридична особа
СВОБОДА,"Львівська обл., Львів, вул. Золота, буд. 42",79,2016-12-14,268,"Оренда будинків і приміщень та експлуатаційні витрати (прибирання, страхування орендованих будинків, охорона, сигналізація, ремонт, вивіз сміття, тощо)",Оренда нерухомості,239740,Центральний офіс,00013215,Україна,Розподіл природного газу,26004000021492,current,459.49,"ПАТ ""Львівгаз""",03349039,юридична особа
СВОБОДА,"Львівська обл., Яворівський р-н, Яворів, площа Ринок, буд. 14",58,2016-12-14,270,"Виготовлення друкованих матеріалів (плакатів, листівок, буклетів та інших агітаційних матеріалів)",Друкована агітація,239413,Центральний офіс,00013215,Україна,"Оплата за друк газети ""Свобода""",26004000021492,current,18142.76,"ТОВ ""ВД ""Молода Галичина""",32148930,юридична особа
СВОБОДА,"Київська обл., Бориспіль",58,2016-12-12,4,"Виготовлення друкованих матеріалів (плакатів, листівок, буклетів та інших агітаційних матеріалів)",Друкована агітація,239335,Бориспільська міська організація,36230164,Київська область,За друк календарів,26005300182,current,2000.00,"ПП ""Люксар""",24926877,юридична особа
СВОБОДА,"Львівська обл., Мостиський р-н, Мостиська",49,2016-12-09,2,Публікування матеріалів у друкованих ЗМІ,Реклама в друкованих ЗМІ,239272,Мостиська районна організація,37130687,Львівська область,Оплата за друк матеріалу,26002053721265,current,1225.00,"РГ ""Наш край""",02473917,юридична особа
СВОБОДА,"Львівська обл., Львів, вул. Водогінна, буд. 2",80,2016-12-07,267,"Транспортні послуги (квитки, пасажирські перевезення і т.д.)","Транспортні послуги (квитки, пасажирські перевезення і т.д.)",244653,Центральний офіс,00013215,Україна,Річна передплата бухгалтерських видань,26004000021492,current,25428.00,"ПП ""Курʼєр-ська служба ""Західний курʼєр""",35382873,юридична особа
СВОБОДА,"Львівська обл., Львів, вул. Пекарська, буд. 23",70,2016-12-07,267,Банківські послуги,Інші витрати,242495,Центральний офіс,00013215,Україна,Комісія банку за переказ коштів,26004000021492,current,3.00,"ПАТ ""Креді агріколь банк""",14361575,юридична особа
СВОБОДА,"Хмельницька обл., Хмельницький, вул. Соборна, буд. 12",70,2016-12-07,б/н_1,Банківські послуги,Інші витрати,242379,Хмельницька обласна організація,33953574,Хмельницька область,Списання комісії по рахунку за зовнішній платіж,26000330289200,current,30.00,"АТ ""Укрсиббанк""",09807750,юридична особа
СВОБОДА,"Хмельницька обл., Хмельницький, вул. Соборна, буд. 12",70,2016-12-07,б/н,Банківські послуги,Інші витрати,242378,Хмельницька обласна організація,33953574,Хмельницька область,Списання комісії по рахунку за зовнішній платіж,26000330289200,current,30.00,"АТ ""Укрсиббанк""",09807750,юридична особа
СВОБОДА,"Хмельницька обл., Хмельницький, вул. Проскурівська, буд. 13",76,2016-12-07,2,Послуги зв’язку,Послуги зв’язку,240293,Хмельницька обласна організація,33953574,Хмельницька область,Оплата за телефон зг.дог.№1786,26000330289200,current,245.05,"ПАТ ""Укртелеком""",21560766,юридична особа
СВОБОДА,"Хмельницька обл., Хмельницький, Камʼянецька вул., 2",79,2016-12-07,1,"Оренда будинків і приміщень та експлуатаційні витрати (прибирання, страхування орендованих будинків, охорона, сигналізація, ремонт, вивіз сміття, тощо)",Оренда нерухомості,239709,Хмельницька обласна організація,33953574,Хмельницька область,"Орендна плата, експлуатаційні витрати, відшкодування витрат водоопаленню, електроенергії, водопостачанню",26000330289200,current,13271.45,Міське КП по утриманню нежитлових приміщень комунальної власності,30579655,юридична особа
СВОБОДА,"Харківська обл., Харків, вул. Чернишевська, буд. 59",79,2016-12-06,4,"Оренда будинків і приміщень та експлуатаційні витрати (прибирання, страхування орендованих будинків, охорона, сигналізація, ремонт, вивіз сміття, тощо)",Оренда нерухомості,239706,Харківська міська організація,25850709,Харківська область,Оренда приміщення згідно договору № 3 від 04.01.2016 року за жовтень 2016. Без ПДВ,26001052218244,current,3000.00,Харківська обласна організація Національної спілки письменників України,14072262,юридична особа
СВОБОДА,"Київ, вул. Михайла Грушевського, буд. 1Д",70,2016-12-02,AS6bu75vbp,Банківські послуги,Інші витрати,242372,Харківська обласна організація,26283202,Харківська область,Комісія за обслуговування рахунку листопад 2016 р. згідно договору банківського рахунку від 09.09.2016. Без ПДВ,26009052224423,current,100.00,"ПАТ КБ ""Приватбанк""",14360570,юридична особа
СВОБОДА,"Київ, вул. Михайла Грушевського, буд. 1Д",70,2016-12-02,А86Ьи6\у.Зр,Банківські послуги,Інші витрати,242368,Харківська міська організація,25850709,Харківська область,Комісія за обслуговування рахунку листопад 2016 року згідно договору банківського рахунку від 22.03.2016. Без ЦДВ,26001052218244,current,100.00,"ПАТ КБ ""Приватбанк""",14360570,юридична особа
СВОБОДА,"Київ, вул. Михайла Грушевського, буд. 1Д",70,2016-12-02,А56Ь^Ь1р,Банківські послуги,Інші витрати,242366,Тернопільська обласна організація,35708383,Тернопільська область,Комісія за обслуговування,26000055115389,current,100.00,"ПАТ КБ ""Приватбанк""",14360570,юридична особа
СВОБОДА,"Київ, вул. Михайла Грушевського, буд. 1Д",70,2016-12-02,1202Ь271ВУ,Банківські послуги,Інші витрати,242338,Криничанська районна організація,38673191,Дніпропетровська область,Комісія за виконання платежів,26002050262941,current,3.00,"ПАТ КБ ""Приватбанк""",14360570,юридична особа
СВОБОДА,"Київ, вул. Михайла Грушевського, буд. 1Д",70,2016-12-02,AS6bu723fp,Банківські послуги,Інші витрати,242331,Вінницька обласна організація,33911707,Вінницька область,Комісія за обслуговування рахунку листопад 2016р. згідно договору банківського рахунку від 29.09.2015 без ПДВ,26006055327445,current,100.00,"ПАТ КБ ""Приватбанк""",14360570,юридична особа
СВОБОДА,"Дніпропетровська обл., Криничанський р-н, Кринички, вул. Центральна, буд. 1",79,2016-12-02,2,"Оренда будинків і приміщень та експлуатаційні витрати (прибирання, страхування орендованих будинків, охорона, сигналізація, ремонт, вивіз сміття, тощо)",Оренда нерухомості,239697,Криничанська районна організація,38673191,Дніпропетровська область,Орендна плата за приміщення за листопад 2016 року,26002050262941,current,600.00,"ПРИВАТНА АГРОФІРМА ""КОЛОС""",21912975,юридична особа
СВОБОДА,"Львівська обл., Львів, вул. Пекарська, буд. 23",70,2016-12-01,ЯЯ1164 609,Банківські послуги,Інші витрати,242494,Центральний офіс,00013215,Україна,Комісія банку за видачу готівки,26004000021492,current,457.89,"ПАТ ""Креді агріколь банк""",14361575,юридична особа
СВОБОДА,"Київ, вул. Михайла Грушевського, буд. 1Д",70,2016-12-01,АвбЬиШЬр,Банківські послуги,Інші витрати,242360,Полтавська обласна організація,36984343,Полтавська область,Комісія за обслуговування рахунку,26005054629028,current,50.00,"ПАТ КБ ""Приватбанк""",14360570,юридична особа
СВОБОДА,"Київ, вул. Михайла Грушевського, буд. 1Д",70,2016-12-01,1201АШШ А,Банківські послуги,Інші витрати,242337,Криничанська районна організація,38673191,Дніпропетровська область,Комісія за внесення коштів на рахунок,26002050262941,current,5.00,"ПАТ КБ ""Приватбанк""",14360570,юридична особа
СВОБОДА,"Київ, вул. Михайла Грушевського, буд. 1Д",70,2016-12-01,і20іашму А,Банківські послуги,Інші витрати,242336,Криничанська районна організація,38673191,Дніпропетровська область,Комісія за внесення коштів на рахунок,26002050262941,current,5.00,"ПАТ КБ ""Приватбанк""",14360570,юридична особа
СВОБОДА,,84,2016-12-01,ЯЯ1164609,"Заробітна плата, премії","Заробітна плата, лікарняні, вагітності, відрядження, компенсації",240788,Центральний офіс,00013215,Україна,Зарплата,26004000021492,current,3122.92,Демчишин Назар Зіновійович,,фізична особа
СВОБОДА,,84,2016-12-01,ЯЯ1164609,"Заробітна плата, премії","Заробітна плата, лікарняні, вагітності, відрядження, компенсації",240787,Центральний офіс,00013215,Україна,Зарплата,26004000021492,current,2089.53,Мохник Андрій Володимирович,,фізична особа
СВОБОДА,,84,2016-12-01,ЯЯ1164609,"Заробітна плата, премії","Заробітна плата, лікарняні, вагітності, відрядження, компенсації",240786,Центральний офіс,00013215,Україна,Зарплата,26004000021492,current,1412.02,Мельничук Любомир Анатолійович,,фізична особа
СВОБОДА,,84,2016-12-01,ЯЯ1164609,"Заробітна плата, премії","Заробітна плата, лікарняні, вагітності, відрядження, компенсації",240785,Центральний офіс,00013215,Україна,Зарплата,26004000021492,current,18746.52,Пелешак Ярослав Антонович,,фізична особа
СВОБОДА,,84,2016-12-01,ЯЯ1164609,"Заробітна плата, премії","Заробітна плата, лікарняні, вагітності, відрядження, компенсації",240784,Центральний офіс,00013215,Україна,Зарплата,26004000021492,current,20417.98,Тягнибок Олег Ярославович,,фізична особа
СВОБОДА,"Харківська обл., Харків, вул. Чернишевська, буд. 59",79,2016-12-01,3,"Оренда будинків і приміщень та експлуатаційні витрати (прибирання, страхування орендованих будинків, охорона, сигналізація, ремонт, вивіз сміття, тощо)",Оренда нерухомості,239707,Харківська обласна організація,26283202,Харківська область,За оренду приміщення згідно з договором N 4 від 04.01.2016 року за жовтень 2016 року. Без ПДВ,26009052224423,current,2388.00,Харківська обласна організація Національної спілки письменників України,14072262,юридична особа
СВОБОДА,"Львівська обл., Львів, вул. Пекарська, буд. 23",70,2016-11-30,1,Банківські послуги,Інші витрати,242493,Центральний офіс,00013215,Україна,Комісія банку за супроводження клієнт-банку,26004000021492,current,60.00,"ПАТ ""Креді агріколь банк""",14361575,юридична особа
СВОБОДА,"Львівська обл., Львів, вул. Пекарська, буд. 23",70,2016-11-30,"264,265, 266",Банківські послуги,Інші витрати,242492,Центральний офіс,00013215,Україна,Комісія банку за переказ коштів,26004000021492,current,9.00,"ПАТ ""Креді агріколь банк""",14361575,юридична особа
СВОБОДА,"Київ, вул. Михайла Грушевського, буд. 1Д",70,2016-11-30,1130L4SDUX,Банківські послуги,Інші витрати,242371,Харківська обласна організація,26283202,Харківська область,"Комісія за викон. платежу 2 від 30.11.2016, 350.00 в нац. валюті в післяопераційний час, згідно з відкритою офертою банку № б/н від 09.09.2016 без ПДВ",26009052224423,current,0.70,"ПАТ КБ ""Приватбанк""",14360570,юридична особа
СВОБОДА,"Київ, вул. Михайла Грушевського, буд. 1Д",70,2016-11-30,1130L4SDUY,Банківські послуги,Інші витрати,242370,Харківська обласна організація,26283202,Харківська область,"Комісія за виконання платежів в національній валюті, згідно з відкритою офертою банку N б/н від 09.09.2016 та тарифів банку. Без ПДВ.",26009052224423,current,3.00,"ПАТ КБ ""Приватбанк""",14360570,юридична особа
СВОБОДА,"Київ, вул. Ковпака, буд. 29",70,2016-11-30,6,Банківські послуги,Інші витрати,242357,Київська обласна організація,36282647,Київська область,Погашення абонплати,26002011700361,current,150.00,"ПАТ ""Укрсоцбанк""",00039019,юридична особа
СВОБОДА,Київ,70,2016-11-30,131577,Банківські послуги,Інші витрати,242349,Івано-Франківська обласна організація,26055441,Івано-Франківська область,Комісія за платежі за межі банку,260030450601,current,100.00,"ПАТ ""Банк інвестиції та заощаджень""",33695095,юридична особа
СВОБОДА,Київ,70,2016-11-30,114882,Банківські послуги,Інші витрати,242348,Івано-Франківська обласна організація,26055441,Івано-Франківська область,Комісія за платежі за межі банку,260030450601,current,30.00,"ПАТ ""Банк інвестиції та заощаджень""",33695095,юридична особа
СВОБОДА,"Київ, вул. Ковпака, буд. 29",70,2016-11-30,1392678548,Банківські послуги,Інші витрати,242347,Запорізька обласна організація,36320650,Запорізька область,Погашення абонплати за листопад 2016 року. Договір №26000011703854 від 29.09.2015. Без ПДВ. (Абонентська плата субєктів господарювання за надання послуг),26000011703854,current,144.96,"ПАТ ""Укрсоцбанк""",00039019,юридична особа
СВОБОДА,"Харківська обл., Харків",76,2016-11-30,2,Послуги зв’язку,Послуги зв’язку,240292,Харківська обласна організація,26283202,Харківська область,"Згідно рахунку-акту за телекомунікаційні послуги N 0307873/4 від 31 жовтня 2016 року у сумі 291.67 грн., ПДВ -20 % 58.33 грн.",26009052224423,current,350.00,"ТОВ ""ВЕЛТОН.ТЕЛЕКОМ""",35074228,юридична особа
СВОБОДА,"Київ, вул. Лугова, буд. 1",58,2016-11-30,266,"Виготовлення друкованих матеріалів (плакатів, листівок, буклетів та інших агітаційних матеріалів)",Друкована агітація,239412,Центральний офіс,00013215,Україна,"Оплата за друк газети ""Свобода""",26004000021492,current,25000.80,"ТОВ ""Полі-прінт""",32108259,юридична особа
СВОБОДА,"Львівська обл., Яворівський р-н, Яворів, площа Ринок, буд. 14",58,2016-11-30,265,"Виготовлення друкованих матеріалів (плакатів, листівок, буклетів та інших агітаційних матеріалів)",Друкована агітація,239411,Центральний офіс,00013215,Україна,"Оплата за друк газети ""Свобода""",26004000021492,current,18142.76,"ТОВ ""ВД ""Молода Галичина""",32148930,юридична особа
СВОБОДА,"Львівська обл., Яворівський р-н, Яворів, площа Ринок, буд. 14",58,2016-11-30,264,"Виготовлення друкованих матеріалів (плакатів, листівок, буклетів та інших агітаційних матеріалів)",Друкована агітація,239410,Центральний офіс,00013215,Україна,"Оплата за друк газети ""Свобода""",26004000021492,current,18129.42,"ТОВ ""ВД ""Молода Галичина""",32148930,юридична особа
СВОБОДА,"Чернівецька обл., Вижницький р-н, Вижниця",59,2016-11-29,62544653,Грошова застава,Грошова застава,244436,Чернівецька міська організація,33917562,Чернівецька область,Грошова застава для виборчого списку кандидатів у депутати Вижницької міської ради,26002300454404,current,855.00,Вижницька міська виборча комісія,,юридична особа
СВОБОДА,"Київ, вул. Миколи Лєскова, буд. 9",70,2016-11-29,Ьп,Банківські послуги,Інші витрати,242377,Красилівська районна організація,36923668,Хмельницька область,Банківські послуги,26005483329,current,55.00,"АТ ""Райффайзен банк Аваль""",14305909,юридична особа
СВОБОДА,"Полтавська обл., Полтава, вул. Соборності, буд. 14",79,2016-11-29,5,"Оренда будинків і приміщень та експлуатаційні витрати (прибирання, страхування орендованих будинків, охорона, сигналізація, ремонт, вивіз сміття, тощо)",Оренда нерухомості,239704,Полтавська обласна організація,36984343,Полтавська область,Оренда приміщення,26005054629028,current,7529.08,"ТОВ ""Агрополіс на Жовтневій""",38561467,юридична особа
СВОБОДА,"Київ, вул. Михайла Грушевського, буд. 1Д",70,2016-11-25,1125L25FSY,Банківські послуги,Інші витрати,242369,Харківська обласна організація,26283202,Харківська область,"Комісія за виконання платежів в національній валюті, згідно з відкритою офертою банку N б/н від 09.09.2016 та тарифів банку. Без ПДВ",26009052224423,current,3.00,"ПАТ КБ ""Приватбанк""",14360570,юридична особа
СВОБОДА,"Київ, вул. Ковпака, буд. 29",70,2016-11-25,6,Банківські послуги,Інші витрати,242356,Київська обласна організація,36282647,Київська область,Погашення комісії за РКО,26002011700361,current,35.00,"ПАТ ""Укрсоцбанк""",00039019,юридична особа
СВОБОДА,"Київ, вул. Ковпака, буд. 29",70,2016-11-25,6,Банківські послуги,Інші витрати,242355,Київська обласна організація,36282647,Київська область,Погашення комісії за РКО,26002011700361,current,7.00,"ПАТ ""Укрсоцбанк""",00039019,юридична особа
СВОБОДА,"Львівська обл., Львів, вул. Пекарська, буд. 23",70,2016-11-24,"259,260, 261,262",Банківські послуги,Інші витрати,242491,Центральний офіс,00013215,Україна,Комісія банку за переказ коштів,26004000021492,current,12.00,"ПАТ ""Креді агріколь банк""",14361575,юридична особа
СВОБОДА,"Львівська обл., Львів, вул. Стрийська, буд. 35",60,2016-11-24,262,Інші податки,Податкові платежі,242177,Центральний офіс,00013215,Україна,Земельний податок,26004000021492,current,326.65,УДКСУ у Личаківському районі м. Львова,38007620,юридична особа
СВОБОДА,"Київ, вул. Олександра Кошиця, буд. 3",61,2016-11-24,261,Військовий збір,Податкові платежі,241931,Центральний офіс,00013215,Україна,Військовий збір,26004000021492,current,395.25,УДКСУ в Дарницькому районі,38021179,юридична особа
СВОБОДА,"Київ, вул. Олександра Кошиця, буд. 3",62,2016-11-24,260,Сплата ЄСВ,Податкові платежі,241688,Центральний офіс,00013215,Україна,Єдиний внесок,26004000021492,current,4302.10,ДПІ у Дарницькому р-ні м. Києва,39479227,юридична особа
СВОБОДА,"Київ, вул. Олександра Кошиця, буд. 3",63,2016-11-24,259,Податок на доходи,Податкові платежі,241452,Центральний офіс,00013215,Україна,ПДФО,26004000021492,current,4743.00,УДКСУ в Дарницькому районі,38021179,юридична особа
СВОБОДА,"Львівська обл., Львів, вул. Жовківська, буд. 22",79,2016-11-24,263,"Оренда будинків і приміщень та експлуатаційні витрати (прибирання, страхування орендованих будинків, охорона, сигналізація, ремонт, вивіз сміття, тощо)",Оренда нерухомості,239739,Центральний офіс,00013215,Україна,Оплата за електроенергію,26004000021492,current,153.12,"ПП ""Система ЛЯ""",34462313,юридична особа
СВОБОДА,,59,2016-11-23,45,Грошова застава,Грошова застава,244427,Вінницька обласна організація,33911707,Вінницька область,"Г рошова застава місцевої організації політичної партії ВО ""Свобода""",26006055327445,current,659.00,Немирівська МВК,33845179,юридична особа
СВОБОДА,,59,2016-11-23,44,Грошова застава,Грошова застава,244426,Вінницька обласна організація,33911707,Вінницька область,"Г рошова застава місцевої організації політичної партії ВО ""Свобода""",26006055327445,current,805.00,Барська МВК,34081082,юридична особа
СВОБОДА,,59,2016-11-23,46,Грошова застава,Грошова застава,244425,Вінницька обласна організація,33911707,Вінницька область,"Г рошова застава місцевої організації політичної партії ВО ""Свобода""",26006055327445,current,969.00,Тульчинська МВК Тульчинського р-ну В/о,33868277,юридична особа
СВОБОДА,"Київ, вул. Михайла Грушевського, буд. 1Д",70,2016-11-23,1122L3XXMY,Банківські послуги,Інші витрати,242330,Вінницька обласна організація,33911707,Вінницька область,"Комісія за виконання платежів в національній валюті, згідно з відкритою офертою банку N б/н від 29.09.2015 та тарифів банку, без ПДВ",26006055327445,current,3.00,"ПАТ КБ ""Приватбанк""",14360570,юридична особа
СВОБОДА,"Київ, вул. Михайла Грушевського, буд. 1Д",70,2016-11-23,1122L3XXMY,Банківські послуги,Інші витрати,242329,Вінницька обласна організація,33911707,Вінницька область,"Комісія за виконання платежів в національній валюті, згідно з відкритою офертою банку N б/н від 29.09.2015 та тарифів банку, без пдв",26006055327445,current,3.00,"ПАТ КБ ""Приватбанк""",14360570,юридична особа
СВОБОДА,"Київ, вул. Михайла Грушевського, буд. 1Д",70,2016-11-23,1122ЬЗХХМУ,Банківські послуги,Інші витрати,242328,Вінницька обласна організація,33911707,Вінницька область,"Комісія за виконання платежів в національній валюті, згідно з відкритою офертою банку N б/н від 29.09.2015 та тарифів банку, без ПДВ",26006055327445,current,3.00,"ПАТ КБ ""Приватбанк""",14360570,юридична особа
СВОБОДА,"Київ, вул. Ісаакяна, буд. 18",43,2016-11-22,258,Інші витрати,Інші витрати,244668,Центральний офіс,00013215,Україна,Благодійний внесок,26004000021492,current,500.00,НАУКОВО-ДОСЛІДНИЙ ІНСТИТУТ УКРАЇНОЗНАВСТВА,39372167,юридична особа
СВОБОДА,"Чернівецька обл., Вижницький р-н, Вижниця",59,2016-11-22,62105949,Грошова застава,Грошова застава,244435,Чернівецька міська організація,33917562,Чернівецька область,Грошова застава для виборчого списку кандидатів у депутати Вижницької міської ради,26002300454404,current,855.00,Вижницька міська виборча комісія,,юридична особа
СВОБОДА,"Чернівецька обл., Сторожинецький р-н, Сторожинець",59,2016-11-22,62105936,Грошова застава,Грошова застава,244434,Чернівецька міська організація,33917562,Чернівецька область,Грошова застава для виборчого списку кандидатів у депутати Сторожинецької міської ради,26002300454404,current,1522.00,Сторожинецька міська виборча комісія,,юридична особа
СВОБОДА,"Чернівецька обл., Вижницький р-н, Вашківці",59,2016-11-22,62105922,Грошова застава,Грошова застава,244433,Чернівецька міська організація,33917562,Чернівецька область,Грошова застава для виборчого списку кандидатів у депутати Вашківецької міської ради,26002300454404,current,493.00,Вашківецька міська виборча комісія,,юридична особа
СВОБОДА,"Запорізька обл., Приморський р-н, Приморськ, Пролетарська вул., 112",59,2016-11-22,20,Грошова застава,Грошова застава,244428,Запорізька обласна організація,36320650,Запорізька область,"Внесення грошової застави місцевими організаціями політичних партій, які висунули виборчі списки кандидатів у депутати ЗОО ВО ""Свобода""",26000011703854,current,718.00,Приморська МВК,34126945,юридична особа
СВОБОДА,"Львівська обл., Львів, вул. Пекарська, буд. 23",70,2016-11-22,253,Банківські послуги,Інші витрати,242490,Центральний офіс,00013215,Україна,Погашення простроченої заборгованості за РКО,26004000021492,current,75.00,"ПАТ ""Креді агріколь банк""",14361575,юридична особа
СВОБОДА,"Львівська обл., Львів, вул. Пекарська, буд. 23",70,2016-11-22,"254,255, 256,257, 258",Банківські послуги,Інші витрати,242489,Центральний офіс,00013215,Україна,Комісія банку за переказ коштів,26004000021492,current,15.00,"ПАТ ""Креді агріколь банк""",14361575,юридична особа
СВОБОДА,"Київ, вул. Ковпака, буд. 29",70,2016-11-22,1385938466,Банківські послуги,Інші витрати,242346,Запорізька обласна організація,36320650,Запорізька область,Погашення комісії за РКО. Розрахунок за 22.11.2016. Договір №26000011703854 від 29.09.2015. Без ПДВ.,26000011703854,current,10.00,"ПАТ ""Укрсоцбанк""",00039019,юридична особа
СВОБОДА,"Київ, вул. Ковпака, буд. 29",70,2016-11-22,1385951970,Банківські послуги,Інші витрати,242345,Запорізька обласна організація,36320650,Запорізька область,Погашення комісії за РКО. Розрахунок за 22.11.2016. Договір №26000011703854 від 29.09.2015. Без ПДВ. (Юр.особи Внесення нацвалюти на власні рах.),26000011703854,current,0.72,"ПАТ ""Укрсоцбанк""",00039019,юридична особа
СВОБОДА,"Житомирська обл., Бердичів, Соборна площа, 1/2",79,2016-11-22,1,"Оренда будинків і приміщень та експлуатаційні витрати (прибирання, страхування орендованих будинків, охорона, сигналізація, ремонт, вивіз сміття, тощо)",Оренда нерухомості,239699,Бердичівська міська організація,36710964,Житомирська область,Оплата за оренду приміщення згідно договору за січень -березень 2016р.,26009430345917,current,600.00,"ТОВ ""Діабаз""",02779418,юридична особа
СВОБОДА,"Київ, вул. Лугова, буд. 1",58,2016-11-22,257,"Виготовлення друкованих матеріалів (плакатів, листівок, буклетів та інших агітаційних матеріалів)",Друкована агітація,239409,Центральний офіс,00013215,Україна,"Оплата за друк газети ""Свобода""",26004000021492,current,25000.80,"ТОВ ""Полі-прінт""",32108259,юридична особа
СВОБОДА,"Львівська обл., Яворівський р-н, Яворів, площа Ринок, буд. 14",58,2016-11-22,256,"Виготовлення друкованих матеріалів (плакатів, листівок, буклетів та інших агітаційних матеріалів)",Друкована агітація,239408,Центральний офіс,00013215,Україна,"Оплата за друк газети ""Свобода""",26004000021492,current,3600.00,"ТОВ ""ВД ""Молода Галичина""",32148930,юридична особа
СВОБОДА,"Львівська обл., Яворівський р-н, Яворів, площа Ринок, буд. 14",58,2016-11-22,255,"Виготовлення друкованих матеріалів (плакатів, листівок, буклетів та інших агітаційних матеріалів)",Друкована агітація,239407,Центральний офіс,00013215,Україна,"Оплата за друк газети ""Свобода""",26004000021492,current,18129.42,"ТОВ ""ВД ""Молода Галичина""",32148930,юридична особа
СВОБОДА,"Львівська обл., Яворівський р-н, Яворів, площа Ринок, буд. 14",58,2016-11-22,254,"Виготовлення друкованих матеріалів (плакатів, листівок, буклетів та інших агітаційних матеріалів)",Друкована агітація,239406,Центральний офіс,00013215,Україна,"Оплата за друк газети ""Свобода""",26004000021492,current,18129.42,"ТОВ ""ВД ""Молода Галичина""",32148930,юридична особа
СВОБОДА,"Івано-Франківська обл., Тлумацький р-н, Тлумач",59,2016-11-21,2,Грошова застава,Грошова застава,244430,Івано-Франківська обласна організація,26055441,Івано-Франківська область,Грошова застава за реєстрацію кандидатів в депутати до Тлумацької міської ради обєднаної територіальної громади,260030450601,current,822.00,Тлумацька міська виборча комісія Тлумацького району Івано-Франківської області,37348572,юридична особа
СВОБОДА,"Івано-Франківська обл., Тлумацький р-н, Тлумач",59,2016-11-21,і,Грошова застава,Грошова застава,244429,Івано-Франківська обласна організація,26055441,Івано-Франківська область,Грошова застава за реєстрацію кандидатів в депутати до Тлумацької міської ради обєднаної територіальної громади,260030450601,current,822.00,Тлумацька міська виборча комісія Тлумацького району Івано-Франківської області,37348572,юридична особа
СВОБОДА,"Київ, вул. Михайла Грушевського, буд. 1Д",70,2016-11-18,ЬНСЗМ00054,Банківські послуги,Інші витрати,242367,Харківська міська організація,25850709,Харківська область,Погашення заборгованості за розрахунково-касове обслуговування згідно угоди РКО б/н від 22.03.2016 року,26001052218244,current,84.81,"ПАТ КБ ""Приватбанк""",14360570,юридична особа
СВОБОДА,"Київ, вул. Миколи Лєскова, буд. 9",70,2016-11-17,Ьп,Банківські послуги,Інші витрати,242376,Красилівська районна організація,36923668,Хмельницька область,Банківські послуги,26005483329,current,120.00,"АТ ""Райффайзен банк Аваль""",14305909,юридична особа
СВОБОДА,"Тернопільська обл., Борщівський р-н, Борщів",59,2016-11-16,51,Грошова застава,Грошова застава,244432,Тернопільська обласна організація,35708383,Тернопільська область,"Внесення грошової застави для кандидата на посаду Борщівського міського голови ОТГ від ВО ""Свобода""",26000055115389,current,804.00,Борщівська МВК Борщівського району Тернопільської області,34035350,юридична особа
СВОБОДА,"Тернопільська обл., Борщівський р-н, Борщів",59,2016-11-16,47,Грошова застава,Грошова застава,244431,Тернопільська обласна організація,35708383,Тернопільська область,"Внесення грошової застави для виборчого списку кандидатів у депутати Борщівської міської ради ОТГ від БРПО ВО ""Свобода""",26000055115389,current,804.00,Борщівська МВК Борщівського району Тернопільської області,34035350,юридична особа
СВОБОДА,"Львівська обл., Львів, вул. Пекарська, буд. 23",70,2016-11-16,251252,Банківські послуги,Інші витрати,242488,Центральний офіс,00013215,Україна,Комісія банку за переказ коштів,26004000021492,current,6.00,"ПАТ ""Креді агріколь банк""",14361575,юридична особа
СВОБОДА,"Київ, вул. Михайла Грушевського, буд. 1Д",70,2016-11-16,1116L3WBEY,Банківські послуги,Інші витрати,242365,Тернопільська обласна організація,35708383,Тернопільська область,Комісія за виконання платежів у нац. валюті,26000055115389,current,3.00,"ПАТ КБ ""Приватбанк""",14360570,юридична особа
СВОБОДА,"Київ, вул. Михайла Грушевського, буд. 1Д",70,2016-11-16,1116Ь3иРУУ,Банківські послуги,Інші витрати,242364,Тернопільська обласна організація,35708383,Тернопільська область,Комісія за виконання платежів у нац. валюті,26000055115389,current,3.00,"ПАТ КБ ""Приватбанк""",14360570,юридична особа
СВОБОДА,"Київ, вул. Лугова, буд. 1",58,2016-11-16,251,"Виготовлення друкованих матеріалів (плакатів, листівок, буклетів та інших агітаційних матеріалів)",Друкована агітація,239405,Центральний офіс,00013215,Україна,"Оплата за друк газети ""Свобода""",26004000021492,current,25000.80,"ТОВ ""Полі-прінт""",32108259,юридична особа
СВОБОДА,"Львівська обл., Яворівський р-н, Яворів, площа Ринок, буд. 14",58,2016-11-16,252,"Виготовлення друкованих матеріалів (плакатів, листівок, буклетів та інших агітаційних матеріалів)",Друкована агітація,239404,Центральний офіс,00013215,Україна,"Оплата за друк газети ""Свобода""",26004000021492,current,18129.42,"ТОВ ""ВД ""Молода Галичина""",32148930,юридична особа
СВОБОДА,"Хмельницька обл., Хмельницький, вул. Тернопільська, буд. 13/1",58,2016-11-16,20,"Виготовлення друкованих матеріалів (плакатів, листівок, буклетів та інших агітаційних матеріалів)",Друкована агітація,239336,Красилівська районна організація,36923668,Хмельницька область,"Оплата за друк газети ""Свобода Красилівщини""",26005483329,current,1425.00,Криснж Світлана Григорівна,2347903063,фізична особа
СВОБОДА,,49,2016-11-16,49,Публікування матеріалів у друкованих ЗМІ,Реклама в друкованих ЗМІ,239273,Тернопільська обласна організація,35708383,Тернопільська область,За друк інформаційних матеріалів,26000055115389,current,668.25,"РГ ""Галицький вісник плюс""",37971031,юридична особа
СВОБОДА,"Волинська обл., Ковель",79,2016-11-15,12,"Оренда будинків і приміщень та експлуатаційні витрати (прибирання, страхування орендованих будинків, охорона, сигналізація, ремонт, вивіз сміття, тощо)",Оренда нерухомості,239695,Ковельська міська організація,21735987,Волинська область,Оренда приміщення згідно з договором ореди №626 від 24.11.2015р. за листопад 2016р.,260063013551,current,13.72,Відділ ГО УМКС виконкому Ковельської міськради,23254967,юридична особа
СВОБОДА,"Київ, вул. Михайла Грушевського, буд. 1Д",70,2016-11-14,И8024БОБОЕ,Банківські послуги,Інші витрати,242363,Тернопільська обласна організація,35708383,Тернопільська область,Погашення згідно договору банківського обслуговування,26000055115389,current,152.15,"ПАТ КБ ""Приватбанк""",14360570,юридична особа
СВОБОДА,"Львівська обл., Львів, вул. Пекарська, буд. 23",70,2016-11-08,ЯЯ1164 608,Банківські послуги,Інші витрати,242487,Центральний офіс,00013215,Україна,Комісія банку за видачу готівки,26004000021492,current,457.89,"ПАТ ""Креді агріколь банк""",14361575,юридична особа
СВОБОДА,,84,2016-11-08,ЯЯ1164608,"Заробітна плата, премії","Заробітна плата, лікарняні, вагітності, відрядження, компенсації",240783,Центральний офіс,00013215,Україна,Зарплата,26004000021492,current,3122.92,Демчишин Назар Зіновійович,,фізична особа
СВОБОДА,,84,2016-11-08,ЯЯ1164608,"Заробітна плата, премії","Заробітна плата, лікарняні, вагітності, відрядження, компенсації",240782,Центральний офіс,00013215,Україна,Зарплата,26004000021492,current,2089.53,Мохник Андрій Володимирович,,фізична особа
СВОБОДА,,84,2016-11-08,ЯЯ1164608,"Заробітна плата, премії","Заробітна плата, лікарняні, вагітності, відрядження, компенсації",240781,Центральний офіс,00013215,Україна,Зарплата,26004000021492,current,1412.02,Мельничук Любомир Анатолійович,,фізична особа
СВОБОДА,,84,2016-11-08,ЯЯ1164608,"Заробітна плата, премії","Заробітна плата, лікарняні, вагітності, відрядження, компенсації",240780,Центральний офіс,00013215,Україна,Зарплата,26004000021492,current,18746.52,Пелешак Ярослав Антонович,,фізична особа
СВОБОДА,,84,2016-11-08,ЯЯ1164608,"Заробітна плата, премії","Заробітна плата, лікарняні, вагітності, відрядження, компенсації",240779,Центральний офіс,00013215,Україна,Зарплата,26004000021492,current,20417.98,Тягнибок Олег Ярославович,,фізична особа
СВОБОДА,,70,2016-11-07,250,Банківські послуги,Інші витрати,242486,Центральний офіс,00013215,Україна,Комісія банку за надання довідок,26004000021492,current,100.00,"ПАТ ""Платинум Банк""",33308489,юридична особа
СВОБОДА,"Львівська обл., Львів, вул. Пекарська, буд. 23",70,2016-11-07,250,Банківські послуги,Інші витрати,242485,Центральний офіс,00013215,Україна,Комісія банку за переказ коштів,26004000021492,current,3.00,"ПАТ ""Креді агріколь банк""",14361575,юридична особа
СВОБОДА,"Львівська обл., Львів, вул. Пекарська, буд. 23",70,2016-11-04,1,Банківські послуги,Інші витрати,242484,Центральний офіс,00013215,Україна,Комісія банку за надання довідки,26004000021492,current,100.00,"ПАТ ""Креді агріколь банк""",14361575,юридична особа
СВОБОДА,"Львівська обл., Львів, вул. Пекарська, буд. 23",70,2016-11-04,"247,248, 249",Банківські послуги,Інші витрати,242483,Центральний офіс,00013215,Україна,Комісія банку за переказ коштів,26004000021492,current,9.00,"ПАТ ""Креді агріколь банк""",14361575,юридична особа
СВОБОДА,"Київ, вул. Олександра Кошиця, буд. 3",61,2016-11-04,249,Військовий збір,Податкові платежі,241930,Центральний офіс,00013215,Україна,Військовий збір,26004000021492,current,455.65,УДКСУ в Дарницькому районі,38021179,юридична особа
СВОБОДА,"Київ, вул. Олександра Кошиця, буд. 3",62,2016-11-04,248,Сплата ЄСВ,Податкові платежі,241687,Центральний офіс,00013215,Україна,Єдиний внесок,26004000021492,current,5012.98,ДПІ у Дарницькому р-ні м. Києва,39479227,юридична особа
СВОБОДА,"Київ, вул. Олександра Кошиця, буд. 3",63,2016-11-04,247,Податок на доходи,Податкові платежі,241451,Центральний офіс,00013215,Україна,ПДФО,26004000021492,current,5343.78,УДКСУ в Дарницькому районі,38021179,юридична особа
СВОБОДА,"Львівська обл., Львів, вул. Пекарська, буд. 23",70,2016-11-03,1,Банківські послуги,Інші витрати,242482,Центральний офіс,00013215,Україна,Комісія банку за надання довідки,26004000021492,current,100.00,"ПАТ ""Креді агріколь банк""",14361575,юридична особа
СВОБОДА,"Київ, вул. Ковпака, буд. 29",70,2016-11-02,1369911675,Банківські послуги,Інші витрати,242344,Запорізька обласна організація,36320650,Запорізька область,Погашення комісії за РКО. Розрахунок за 28.07.2016. Договір №26000011703854 від 29.09.2015. Без ПДВ.,26000011703854,current,0.16,"ПАТ ""Укрсоцбанк""",00039019,юридична особа
СВОБОДА,"Київ, вул. Михайла Грушевського, буд. 1Д",70,2016-11-01,AS6avlwtap,Банківські послуги,Інші витрати,242359,Полтавська обласна організація,36984343,Полтавська область,Комісія за обслуговування рахунку,26005054629028,current,50.00,"ПАТ КБ ""Приватбанк""",14360570,юридична особа
СВОБОДА,"Київ, вул. Михайла Грушевського, буд. 1Д",70,2016-11-01,А86ау70Ь2Ь,Банківські послуги,Інші витрати,242335,Криничанська районна організація,38673191,Дніпропетровська область,Комісія за обслуговування рахунку за жовтень 2016 року,26002050262941,current,100.00,"ПАТ КБ ""Приватбанк""",14360570,юридична особа
СВОБОДА,"Полтавська обл., Полтава, вул. Соборності, буд. 14",79,2016-11-01,4,"Оренда будинків і приміщень та експлуатаційні витрати (прибирання, страхування орендованих будинків, охорона, сигналізація, ремонт, вивіз сміття, тощо)",Оренда нерухомості,239703,Полтавська обласна організація,36984343,Полтавська область,Оренда приміщення,26005054629028,current,7573.92,"ТОВ ""Агрополіс на Жовтневій""",38561467,юридична особа
СВОБОДА,"Волинська обл., Ковель",79,2016-11-01,11,"Оренда будинків і приміщень та експлуатаційні витрати (прибирання, страхування орендованих будинків, охорона, сигналізація, ремонт, вивіз сміття, тощо)",Оренда нерухомості,239694,Ковельська міська організація,21735987,Волинська область,Оренда приміщення згідно з договором ореди №626 від 24.11.2015р. за жовтень 2016р.,260063013551,current,14.04,Відділ ГО УМКС виконкому Ковельської міськради,23254967,юридична особа
СВОБОДА,"Львівська обл., Львів, вул. Пекарська, буд. 23",70,2016-10-31,1,Банківські послуги,Інші витрати,242481,Центральний офіс,00013215,Україна,Комісія банку за супроводження клієнт-банку,26004000021492,current,60.00,"ПАТ ""Креді агріколь банк""",14361575,юридична особа
СВОБОДА,"Львівська обл., Львів, вул. Пекарська, буд. 23",70,2016-10-31,"244,245, 246",Банківські послуги,Інші витрати,242480,Центральний офіс,00013215,Україна,Комісія банку за переказ коштів,26004000021492,current,9.00,"ПАТ ""Креді агріколь банк""",14361575,юридична особа
СВОБОДА,"Київ, вул. Ковпака, буд. 29",70,2016-10-31,6,Банківські послуги,Інші витрати,242354,Київська обласна організація,36282647,Київська область,Погашення абонплати,26002011700361,current,150.00,"ПАТ ""Укрсоцбанк""",00039019,юридична особа
СВОБОДА,"Київ, вул. Михайла Грушевського, буд. 1Д",70,2016-10-31,ЮЗАББСбА,Банківські послуги,Інші витрати,242334,Криничанська районна організація,38673191,Дніпропетровська область,Комісія за внесення коштів,26002050262941,current,5.00,"ПАТ КБ ""Приватбанк""",14360570,юридична особа
СВОБОДА,"Київ, вул. Михайла Грушевського, буд. 1Д",70,2016-10-31,1031АІША,Банківські послуги,Інші витрати,242333,Криничанська районна організація,38673191,Дніпропетровська область,Комісія за внесення коштів на рахунок,26002050262941,current,5.00,"ПАТ КБ ""Приватбанк""",14360570,юридична особа
СВОБОДА,"Львівська обл., Львів, вул. Золота, буд. 42",79,2016-10-31,246,"Оренда будинків і приміщень та експлуатаційні витрати (прибирання, страхування орендованих будинків, охорона, сигналізація, ремонт, вивіз сміття, тощо)",Оренда нерухомості,239738,Центральний офіс,00013215,Україна,Природний газ,26004000021492,current,1470.10,"ТОВ ""Львівгаз збут""",39594527,юридична особа
СВОБОДА,"Львівська обл., Львів, вул. Золота, буд. 42",79,2016-10-31,245,"Оренда будинків і приміщень та експлуатаційні витрати (прибирання, страхування орендованих будинків, охорона, сигналізація, ремонт, вивіз сміття, тощо)",Оренда нерухомості,239737,Центральний офіс,00013215,Україна,Розподіл природного газу,26004000021492,current,286.43,"ПАТ ""Львівгаз""",03349039,юридична особа
СВОБОДА,"Львівська обл., Львів, вул. Володимира Винниченка, буд. 8",79,2016-10-31,244,"Оренда будинків і приміщень та експлуатаційні витрати (прибирання, страхування орендованих будинків, охорона, сигналізація, ремонт, вивіз сміття, тощо)",Оренда нерухомості,239736,Центральний офіс,00013215,Україна,Оплата за прибирання території,26004000021492,current,46.47,"КП ЛОР ""Нерухомість та майно""",33358550,юридична особа
СВОБОДА,"Київ, вул. Ісаакяна, буд. 18",43,2016-10-28,243,Інші витрати,Інші витрати,244667,Центральний офіс,00013215,Україна,Благодійний внесок,26004000021492,current,500.00,НАУКОВО-ДОСЛІДНИЙ ІНСТИТУТ УКРАЇНОЗНАВСТВА,39372167,юридична особа
СВОБОДА,"Львівська обл., Львів, вул. Пекарська, буд. 23",70,2016-10-28,"240,241, 242,243",Банківські послуги,Інші витрати,242479,Центральний офіс,00013215,Україна,Комісія банку за переказ коштів,26004000021492,current,12.00,"ПАТ ""Креді агріколь банк""",14361575,юридична особа
СВОБОДА,"Івано-Франківська обл., Івано-Франківськ, вул. Незалежності, буд. 53",58,2016-10-28,242,"Виготовлення друкованих матеріалів (плакатів, листівок, буклетів та інших агітаційних матеріалів)",Друкована агітація,239403,Центральний офіс,00013215,Україна,"Оплата за друк газети ""Свобода""",26004000021492,current,48870.00,"ТОВ ""Місто НВ""",30106695,юридична особа
СВОБОДА,"Київ, вул. Лугова, буд. 1",58,2016-10-28,241,"Виготовлення друкованих матеріалів (плакатів, листівок, буклетів та інших агітаційних матеріалів)",Друкована агітація,239402,Центральний офіс,00013215,Україна,"Оплата за друк газети ""Свобода""",26004000021492,current,25000.80,"ТОВ ""Полі-прінт""",32108259,юридична особа
СВОБОДА,"Львівська обл., Яворівський р-н, Яворів, площа Ринок, буд. 14",58,2016-10-28,240,"Виготовлення друкованих матеріалів (плакатів, листівок, буклетів та інших агітаційних матеріалів)",Друкована агітація,239401,Центральний офіс,00013215,Україна,"Оплата за друк газети ""Свобода""",26004000021492,current,18305.94,"ТОВ ""ВД ""Молода Галичина""",32148930,юридична особа
СВОБОДА,"Львівська обл., Львів, вул. Пекарська, буд. 23",70,2016-10-27,,Банківські послуги,Інші витрати,242478,Центральний офіс,00013215,Україна,Комісія банку за надання довідки,26004000021492,current,100.00,"ПАТ ""Креді агріколь банк""",14361575,юридична особа
СВОБОДА,"Львівська обл., Львів, вул. Пекарська, буд. 23",70,2016-10-25,"234,235, 236,237, 238,239",Банківські послуги,Інші витрати,242477,Центральний офіс,00013215,Україна,Комісія банку за переказ коштів,26004000021492,current,18.00,"ПАТ ""Креді агріколь банк""",14361575,юридична особа
СВОБОДА,"Київ, вул. Михайла Грушевського, буд. 1Д",70,2016-10-25,1025ІЛХУІУ,Банківські послуги,Інші витрати,242332,Криничанська районна організація,38673191,Дніпропетровська область,Комісія за виконання платежів,26002050262941,current,3.00,"ПАТ КБ ""Приватбанк""",14360570,юридична особа
СВОБОДА,"Київ, вул. Олександра Кошиця, буд. 3",60,2016-10-25,239,Інші податки,Податкові платежі,242176,Центральний офіс,00013215,Україна,Штрафні санкції,26004000021492,current,170.00,ДПІ у Дарницькому р-ні м. Києва,39479227,юридична особа
СВОБОДА,"Львівська обл., Львів, вул. Стрийська, буд. 35",60,2016-10-25,237,Інші податки,Податкові платежі,242175,Центральний офіс,00013215,Україна,Земельний податок,26004000021492,current,326.65,УДКСУ у Личаківському районі м. Львова,38007620,юридична особа
СВОБОДА,"Київ, вул. Олександра Кошиця, буд. 3",61,2016-10-25,236,Військовий збір,Податкові платежі,241929,Центральний офіс,00013215,Україна,Військовий збір,26004000021492,current,395.25,УДКСУ в Дарницькому районі,38021179,юридична особа
СВОБОДА,"Київ, вул. Олександра Кошиця, буд. 3",62,2016-10-25,235,Сплата ЄСВ,Податкові платежі,241686,Центральний офіс,00013215,Україна,Єдиний внесок,26004000021492,current,4302.10,ДПІ у Дарницькому р-ні м. Києва,39479227,юридична особа
СВОБОДА,"Київ, вул. Олександра Кошиця, буд. 3",63,2016-10-25,234,Податок на доходи,Податкові платежі,241450,Центральний офіс,00013215,Україна,ПДФО,26004000021492,current,4743.00,УДКСУ в Дарницькому районі,38021179,юридична особа
СВОБОДА,"Дніпропетровська обл., Криничанський р-н, Кринички, вул. Центральна, буд. 1",79,2016-10-25,1,"Оренда будинків і приміщень та експлуатаційні витрати (прибирання, страхування орендованих будинків, охорона, сигналізація, ремонт, вивіз сміття, тощо)",Оренда нерухомості,239696,Криничанська районна організація,38673191,Дніпропетровська область,Орендна плата за приміщення за жовтень 2016,26002050262941,current,600.00,"ПРИВАТНА АГРОФІРМА ""КОЛОС""",21912975,юридична особа
СВОБОДА,"Львівська обл., Яворівський р-н, Яворів, площа Ринок, буд. 14",58,2016-10-25,238,"Виготовлення друкованих матеріалів (плакатів, листівок, буклетів та інших агітаційних матеріалів)",Друкована агітація,239400,Центральний офіс,00013215,Україна,"Оплата за друк газети ""Свобода""",26004000021492,current,18305.94,"ТОВ ""ВД ""Молода Галичина""",32148930,юридична особа
СВОБОДА,"Рівненська обл., Рівне, вул. Симона Петлюри, буд. 16",70,2016-10-22,,Банківські послуги,Інші витрати,242362,Рівненська міська організація,33982736,Рівненська область,"За надання довідок, дублікатів довідок",26006300976830,current,50.00,"Рівненська обласна організація Всеукраїнське обʼєднання ""Свобода""",26353285,юридична особа
СВОБОДА,"Львівська обл., Львів, вул. Пекарська, буд. 23",70,2016-10-21,1,Банківські послуги,Інші витрати,242476,Центральний офіс,00013215,Україна,Комісія банку за надання довідок,26004000021492,current,200.00,"ПАТ ""Креді агріколь банк""",14361575,юридична особа
СВОБОДА,"Львівська обл., Львів, вул. Пекарська, буд. 23",70,2016-10-18,233,Банківські послуги,Інші витрати,242475,Центральний офіс,00013215,Україна,Комісія банку за переказ коштів,26004000021492,current,3.00,"ПАТ ""Креді агріколь банк""",14361575,юридична особа
СВОБОДА,"Львівська обл., Львів, вул. Жовківська, буд. 22",79,2016-10-18,232,"Оренда будинків і приміщень та експлуатаційні витрати (прибирання, страхування орендованих будинків, охорона, сигналізація, ремонт, вивіз сміття, тощо)",Оренда нерухомості,239735,Центральний офіс,00013215,Україна,Оренда приміщення,26004000021492,current,3600.00,"ПП ""Система ЛЯ""",34462313,юридична особа
СВОБОДА,"Львівська обл., Яворівський р-н, Яворів, площа Ринок, буд. 14",58,2016-10-18,233,"Виготовлення друкованих матеріалів (плакатів, листівок, буклетів та інших агітаційних матеріалів)",Друкована агітація,239399,Центральний офіс,00013215,Україна,"Оплата за друк газети ""Свобода""",26004000021492,current,18305.94,"ТОВ ""ВД ""Молода Галичина""",32148930,юридична особа
СВОБОДА,"Львівська обл., Львів, вул. Пекарська, буд. 23",70,2016-10-11,231,Банківські послуги,Інші витрати,242474,Центральний офіс,00013215,Україна,Комісія банку за переказ коштів,26004000021492,current,3.00,"ПАТ ""Креді агріколь банк""",14361575,юридична особа
СВОБОДА,Київ,79,2016-10-11,231,"Оренда будинків і приміщень та експлуатаційні витрати (прибирання, страхування орендованих будинків, охорона, сигналізація, ремонт, вивіз сміття, тощо)",Оренда нерухомості,239734,Центральний офіс,00013215,Україна,Оренда приміщення,26004000021492,current,10300.00,Національна спілка кінематографістів України,00016292,юридична особа
СВОБОДА,"Львівська обл., Львів, вул. Пекарська, буд. 23",70,2016-10-10,"229,23",Банківські послуги,Інші витрати,242473,Центральний офіс,00013215,Україна,Комісія банку за переказ коштів,26004000021492,current,6.00,"ПАТ ""Креді агріколь банк""",14361575,юридична особа
СВОБОДА,"Київ, вул. Лугова, буд. 1",58,2016-10-10,230,"Виготовлення друкованих матеріалів (плакатів, листівок, буклетів та інших агітаційних матеріалів)",Друкована агітація,239398,Центральний офіс,00013215,Україна,"Оплата за друк газети ""Свобода""",26004000021492,current,25000.80,"ТОВ ""Полі-прінт""",32108259,юридична особа
СВОБОДА,"Чернівецька обл., Чернівці",51,2016-10-10,229,Оплата ефірного часу на ТБ,Телереклама,239186,Центральний офіс,00013215,Україна,Телепослуги,26004000021492,current,12330.00,"НТКУ ""Чернівецька регіональна дирекція""",40020724,юридична особа
СВОБОДА,"Київ, вул. Зодчих, буд. 56, 52",43,2016-10-07,і,Інші витрати,Інші витрати,244665,Київська обласна організація,36282647,Київська область,"Послуги по розміщенню інформації голови і пов""язана з ним діяльність",26002011700361,current,12995.00,ДАРМОСТУК ІГОР ВОЛОДИМИРОВИЧ,3007415297,фізична особа
СВОБОДА,"Львівська обл., Львів, вул. Пекарська, буд. 23",70,2016-10-07,"217,218, 219,220, 221,222, 223,224, 225,226, 227,228",Банківські послуги,Інші витрати,242472,Центральний офіс,00013215,Україна,Комісія банку за переказ коштів,26004000021492,current,36.00,"ПАТ ""Креді агріколь банк""",14361575,юридична особа
СВОБОДА,"Київ, вул. Ковпака, буд. 29",70,2016-10-07,в,Банківські послуги,Інші витрати,242353,Київська обласна організація,36282647,Київська область,Погашення комісії за РКО,26002011700361,current,35.00,"ПАТ ""Укрсоцбанк""",00039019,юридична особа
СВОБОДА,"Київ, вул. Ковпака, буд. 29",70,2016-10-07,в,Банківські послуги,Інші витрати,242352,Київська обласна організація,36282647,Київська область,Погашення комісії за РКО,26002011700361,current,14.00,"ПАТ ""Укрсоцбанк""",00039019,юридична особа
СВОБОДА,"Київ, вул. Олександра Кошиця, буд. 3",61,2016-10-07,226,Військовий збір,Податкові платежі,241928,Центральний офіс,00013215,Україна,Військовий збір,26004000021492,current,455.65,УДКСУ в Дарницькому районі,38021179,юридична особа
СВОБОДА,"Київ, вул. Олександра Кошиця, буд. 3",62,2016-10-07,225,Сплата ЄСВ,Податкові платежі,241685,Центральний офіс,00013215,Україна,Єдиний внесок,26004000021492,current,5012.98,ДПІ у Дарницькому р-ні м. Києва,39479227,юридична особа
СВОБОДА,"Київ, вул. Олександра Кошиця, буд. 3",63,2016-10-07,224,Податок на доходи,Податкові платежі,241449,Центральний офіс,00013215,Україна,ПДФО,26004000021492,current,5343.78,УДКСУ в Дарницькому районі,38021179,юридична особа
СВОБОДА,"Кіровоградська обл., Кропивницький, площа Героїв Майдану, буд. 1",51,2016-10-07,228,Оплата ефірного часу на ТБ,Телереклама,239185,Центральний офіс,00013215,Україна,Трансляція продукції,26004000021492,current,14373.60,"Філія ПАТ ""НТСУ ""Кіровоградська регіональна дирекція""",40020593,юридична особа
СВОБОДА,,51,2016-10-07,227,Оплата ефірного часу на ТБ,Телереклама,239184,Центральний офіс,00013215,Україна,Надання рекламних послуг,26004000021492,current,6000.00,"ТОВ ""ТЕЛЕРАДІОКОМПАНІЯ ""ТВА""",14260868,юридична особа
СВОБОДА,"Чернігівська обл., Чернігів",51,2016-10-07,223,Оплата ефірного часу на ТБ,Телереклама,239183,Центральний офіс,00013215,Україна,Розміщення ролику,26004000021492,current,35676.00,"НТКУ ""Чернігівська регіональна дирекція""",40020739,юридична особа
СВОБОДА,"Чернігівська обл., Чернігів",51,2016-10-07,222,Оплата ефірного часу на ТБ,Телереклама,239182,Центральний офіс,00013215,Україна,Розміщення рекламного сюжету,26004000021492,current,3355.80,"НТКУ ""Чернігівська регіональна дирекція""",40020739,юридична особа
СВОБОДА,"Чернігівська обл., Чернігів",51,2016-10-07,221,Оплата ефірного часу на ТБ,Телереклама,239181,Центральний офіс,00013215,Україна,Розміщення відеоролика,26004000021492,current,9996.00,"КП ""Телерадіоагенство ""Новий Чернігів"" Чернігівської міської ради",21397527,юридична особа
СВОБОДА,"Волинська обл., Луцьк, просп. Соборності, буд. 28",51,2016-10-07,220,Оплата ефірного часу на ТБ,Телереклама,239180,Центральний офіс,00013215,Україна,Розміщення рекламного відеоролика,26004000021492,current,6242.40,"ТРК ""Аверс""",21755180,юридична особа
СВОБОДА,"Закарпатська, Мукачево",51,2016-10-07,219,Оплата ефірного часу на ТБ,Телереклама,239179,Центральний офіс,00013215,Україна,Реклама в ефірі,26004000021492,current,2500.00,"ТОВ ""КМЦ ""Барви""",22083127,юридична особа
СВОБОДА,"Чернівецька обл., Чернівці",51,2016-10-07,217,Оплата ефірного часу на ТБ,Телереклама,239178,Центральний офіс,00013215,Україна,Рекламні послуги,26004000021492,current,1705.00,"ТОВ ""Міська телерадіокомпанія ""Чернівці""",31561607,юридична особа
СВОБОДА,,51,2016-10-07,218,Оплата ефірного часу на ТБ,Телереклама,239169,Центральний офіс,00013215,Україна,Трансляція відеоматеріалу,26004000021492,current,13845.00,Косюк В В,,фізична особа
СВОБОДА,"Львівська обл., Львів, вул. Пекарська, буд. 23",70,2016-10-06,"208,209, 210,211, 212,213, 214,215, 216",Банківські послуги,Інші витрати,242471,Центральний офіс,00013215,Україна,Комісія банку за переказ коштів,26004000021492,current,27.00,"ПАТ ""Креді агріколь банк""",14361575,юридична особа
СВОБОДА,"Львівська обл., Яворівський р-н, Яворів, площа Ринок, буд. 14",58,2016-10-06,215,"Виготовлення друкованих матеріалів (плакатів, листівок, буклетів та інших агітаційних матеріалів)",Друкована агітація,239397,Центральний офіс,00013215,Україна,"Оплата за друк газети ""Свобода""",26004000021492,current,18305.94,"ТОВ ""ВД ""Молода Галичина""",32148930,юридична особа
СВОБОДА,"Закарпатська обл., Ужгород",51,2016-10-06,216,Оплата ефірного часу на ТБ,Телереклама,239177,Центральний офіс,00013215,Україна,Надання ефіру на ТБ,26004000021492,current,9899.40,НТКУ Закарпатська регіональна дирекція,40020567,юридична особа
СВОБОДА,"Херсонська обл., Херсон",51,2016-10-06,214,Оплата ефірного часу на ТБ,Телереклама,239176,Центральний офіс,00013215,Україна,Розміщення ролика,26004000021492,current,811.81,"Філія НСТУ ""Херсонська регіональна дирекція ""Скіфія""",40020698,юридична особа
СВОБОДА,"Херсонська обл., Херсон",51,2016-10-06,213,Оплата ефірного часу на ТБ,Телереклама,239175,Центральний офіс,00013215,Україна,Інформаційні послуги,26004000021492,current,12082.00,"Філія НСТУ ""Херсонська регіональна дирекція ""Скіфія""",40020698,юридична особа
СВОБОДА,"Запорізька обл., Запоріжжя",51,2016-10-06,212,Оплата ефірного часу на ТБ,Телереклама,239174,Центральний офіс,00013215,Україна,Розміщення реклами,26004000021492,current,1669.33,"НТКУ ""Запорізька регіональна дирекція""",40020195,юридична особа
СВОБОДА,"Запорізька обл., Запоріжжя",51,2016-10-06,211,Оплата ефірного часу на ТБ,Телереклама,239173,Центральний офіс,00013215,Україна,Розміщення реклами,26004000021492,current,18322.50,"НТКУ ""Запорізька регіональна дирекція""",40020195,юридична особа
СВОБОДА,"Полтавська обл., Полтава, вул. Конституції, буд. 4",51,2016-10-06,210,Оплата ефірного часу на ТБ,Телереклама,239172,Центральний офіс,00013215,Україна,Розміщення відеоматеріалів,26004000021492,current,9000.00,"ТОВ ""ТРК ""ІРТ-Полтава""",35026331,юридична особа
СВОБОДА,"Полтавська обл., Полтава, вул. Раїси Кириченко, буд. 1",51,2016-10-06,209,Оплата ефірного часу на ТБ,Телереклама,239171,Центральний офіс,00013215,Україна,Розміщення ролику і фільму,26004000021492,current,14445.42,"Філія ПАТ ""НТСУ ""Лтава""",40020640,юридична особа
СВОБОДА,"Київ, вул. Хрещатик, буд. 26",51,2016-10-06,208,Оплата ефірного часу на ТБ,Телереклама,239170,Центральний офіс,00013215,Україна,Надання послуг з виробництва і трансляції реклами,26004000021492,current,35273.44,"НТКУ ""Українське радіо""",40088562,юридична особа
СВОБОДА,"Львівська обл., Львів, вул. Пекарська, буд. 23",70,2016-10-03,"205,206, 207",Банківські послуги,Інші витрати,242470,Центральний офіс,00013215,Україна,Комісія банку за переказ коштів,26004000021492,current,9.00,"ПАТ ""Креді агріколь банк""",14361575,юридична особа
СВОБОДА,"Київ, вул. Михайла Грушевського, буд. 1Д",70,2016-10-03,1003AT3FUA,Банківські послуги,Інші витрати,242358,Полтавська обласна організація,36984343,Полтавська область,Комісія за внесення коштів на рахунок,26005054629028,current,5.00,"ПАТ КБ ""Приватбанк""",14360570,юридична особа
СВОБОДА,"Полтавська обл., Полтава, вул. Соборності, буд. 14",79,2016-10-03,3,"Оренда будинків і приміщень та експлуатаційні витрати (прибирання, страхування орендованих будинків, охорона, сигналізація, ремонт, вивіз сміття, тощо)",Оренда нерухомості,239702,Полтавська обласна організація,36984343,Полтавська область,Оренда приміщення,26005054629028,current,9494.06,"ТОВ ""Агрополіс на Жовтневій""",38561467,юридична особа
СВОБОДА,"Київ, вул. Олега Кошового, буд. 2А",58,2016-10-03,207,"Виготовлення друкованих матеріалів (плакатів, листівок, буклетів та інших агітаційних матеріалів)",Друкована агітація,239396,Центральний офіс,00013215,Україна,Оплата за виготовлення рекламних плакатів,26004000021492,current,97470.00,"ТОВ ""РТМ-Україна""",31282375,юридична особа
СВОБОДА,"Київ, вул. Олега Кошового, буд. 2А",53,2016-10-03,206,Витрати на розміщення зовнішньої реклами,Зовнішня реклама,239307,Центральний офіс,00013215,Україна,Оплата за розміщення зовнішньої реклами,26004000021492,current,314776.80,"ТОВ ""РТМ-Україна""",31282375,юридична особа
СВОБОДА,,53,2016-10-03,205,Витрати на розміщення зовнішньої реклами,Зовнішня реклама,239306,Центральний офіс,00013215,Україна,Оплата за розміщення зовнішньої реклами,26004000021492,current,1049740.00,"ТОВ ""Партнери""",23975773,юридична особа
СВОБОДА,"Львівська обл., Львів, вул. Пекарська, буд. 23",70,2016-09-30,1,Банківські послуги,Інші витрати,242469,Центральний офіс,00013215,Україна,Комісія банку за супроводження клієнт-банку,26004000021492,current,60.00,"ПАТ ""Креді агріколь банк""",14361575,юридична особа
СВОБОДА,"Львівська обл., Львів, вул. Пекарська, буд. 23",70,2016-09-29,ЯЯ1164 607,Банківські послуги,Інші витрати,242468,Центральний офіс,00013215,Україна,Комісія банку за видачу готівки,26004000021492,current,457.89,"ПАТ ""Креді агріколь банк""",14361575,юридична особа
СВОБОДА,"Львівська обл., Львів, вул. Пекарська, буд. 23",70,2016-09-29,"202,203, 204",Банківські послуги,Інші витрати,242467,Центральний офіс,00013215,Україна,Комісія банку за переказ коштів,26004000021492,current,9.00,"ПАТ ""Креді агріколь банк""",14361575,юридична особа
СВОБОДА,"Київ, вул. Миколи Лєскова, буд. 9",70,2016-09-29,26002309354,Банківські послуги,Інші витрати,242322,Кіровоградська обласна організація,36571824,Кіровоградська область,Комісія за надання виписки на паперовому носії,26002309354,current,50.00,"АТ ""Райффайзен банк Аваль""",14305909,юридична особа
СВОБОДА,"Київ, вул. Миколи Лєскова, буд. 9",70,2016-09-29,26002309354,Банківські послуги,Інші витрати,242321,Кіровоградська обласна організація,36571824,Кіровоградська область,Комісія за користування пакетом послуг,26002309354,current,47.00,"АТ ""Райффайзен банк Аваль""",14305909,юридична особа
СВОБОДА,"Київ, вул. Андріївська, буд. 2/12",70,2016-09-29,,Банківські послуги,Інші витрати,242316,Київська міська організація,25665516,Київ,Утримання додаткової комісії за обслуговування додаткового рахунку №26003179126800 зг. дог.1791268 від 14.04.2008 без ПДВ,26003179126800,current,90.00,"АТ ""Укрсиббанк""",09807750,юридична особа
СВОБОДА,,84,2016-09-29,ЯЯ1164607,"Заробітна плата, премії","Заробітна плата, лікарняні, вагітності, відрядження, компенсації",240778,Центральний офіс,00013215,Україна,Зарплата,26004000021492,current,3122.92,Демчишин Назар Зіновійович,,фізична особа
СВОБОДА,,84,2016-09-29,ЯЯ1164607,"Заробітна плата, премії","Заробітна плата, лікарняні, вагітності, відрядження, компенсації",240777,Центральний офіс,00013215,Україна,Зарплата,26004000021492,current,2089.53,Мохник Андрій Володимирович,,фізична особа
СВОБОДА,,84,2016-09-29,ЯЯ1164607,"Заробітна плата, премії","Заробітна плата, лікарняні, вагітності, відрядження, компенсації",240776,Центральний офіс,00013215,Україна,Зарплата,26004000021492,current,1412.02,Мельничук Любомир Анатолійович,,фізична особа
СВОБОДА,,84,2016-09-29,ЯЯ1164607,"Заробітна плата, премії","Заробітна плата, лікарняні, вагітності, відрядження, компенсації",240775,Центральний офіс,00013215,Україна,Зарплата,26004000021492,current,18746.52,Пелешак Ярослав Антонович,,фізична особа
СВОБОДА,,84,2016-09-29,ЯЯ1164607,"Заробітна плата, премії","Заробітна плата, лікарняні, вагітності, відрядження, компенсації",240774,Центральний офіс,00013215,Україна,Зарплата,26004000021492,current,20417.98,Тягнибок Олег Ярославович,,фізична особа
СВОБОДА,"Львівська обл., Яворівський р-н, Яворів, площа Ринок, буд. 14",58,2016-09-29,203,"Виготовлення друкованих матеріалів (плакатів, листівок, буклетів та інших агітаційних матеріалів)",Друкована агітація,239395,Центральний офіс,00013215,Україна,"Оплата за друк газети ""Свобода""",26004000021492,current,18272.28,"ТОВ ""ВД ""Молода Галичина""",32148930,юридична особа
СВОБОДА,"Львівська обл., Львів, вул. Різбʼярська, буд. 4",53,2016-09-29,204,Витрати на розміщення зовнішньої реклами,Зовнішня реклама,239305,Центральний офіс,00013215,Україна,Оплата за розміщення зовнішньої реклами,26004000021492,current,500000.00,"ТОВ ""Партнери""",23975773,юридична особа
СВОБОДА,"Київ, вул. Олега Кошового, буд. 2А",53,2016-09-29,202,Витрати на розміщення зовнішньої реклами,Зовнішня реклама,239304,Центральний офіс,00013215,Україна,Оплата за розміщення зовнішньої реклами,26004000021492,current,121044.00,"ТОВ ""РТМ-Україна""",31282375,юридична особа
СВОБОДА,"Львівська обл., Львів, вул. Пекарська, буд. 23",70,2016-09-28,"198,199, 200,201",Банківські послуги,Інші витрати,242466,Центральний офіс,00013215,Україна,Комісія банку за переказ коштів,26004000021492,current,12.00,"ПАТ ""Креді агріколь банк""",14361575,юридична особа
СВОБОДА,"Київ, вул. Лугова, буд. 1",58,2016-09-28,200,"Виготовлення друкованих матеріалів (плакатів, листівок, буклетів та інших агітаційних матеріалів)",Друкована агітація,239394,Центральний офіс,00013215,Україна,"Оплата за друк газети ""Свобода""",26004000021492,current,25000.80,"ТОВ ""Полі-прінт""",32108259,юридична особа
СВОБОДА,"Київ, вул. Лугова, буд. 1",58,2016-09-28,199,"Виготовлення друкованих матеріалів (плакатів, листівок, буклетів та інших агітаційних матеріалів)",Друкована агітація,239393,Центральний офіс,00013215,Україна,"Оплата за друк газети ""Свобода""",26004000021492,current,25000.80,"ТОВ ""Полі-прінт""",32108259,юридична особа
СВОБОДА,"Львівська обл., Яворівський р-н, Яворів, площа Ринок, буд. 14",58,2016-09-28,201,"Виготовлення друкованих матеріалів (плакатів, листівок, буклетів та інших агітаційних матеріалів)",Друкована агітація,239392,Центральний офіс,00013215,Україна,"Оплата за друк газети ""Свобода""",26004000021492,current,18272.28,"ТОВ ""ВД ""Молода Галичина""",32148930,юридична особа
СВОБОДА,"Київ, вул. Олега Кошового, буд. 2А",53,2016-09-28,198,Витрати на розміщення зовнішньої реклами,Зовнішня реклама,239303,Центральний офіс,00013215,Україна,Оплата за розміщення зовнішньої реклами,26004000021492,current,446700.00,"ТОВ ""РТМ-Україна""",31282375,юридична особа
СВОБОДА,"Львівська обл., Львів, вул. Пекарська, буд. 23",70,2016-09-26,197,Банківські послуги,Інші витрати,242465,Центральний офіс,00013215,Україна,Комісія банку за переказ коштів,26004000021492,current,3.00,"ПАТ ""Креді агріколь банк""",14361575,юридична особа
СВОБОДА,"Київ, вул. Олега Кошового, буд. 2А",53,2016-09-26,197,Витрати на розміщення зовнішньої реклами,Зовнішня реклама,239302,Центральний офіс,00013215,Україна,Оплата за розміщення зовнішньої реклами,26004000021492,current,331056.00,"ТОВ ""РТМ-Україна""",31282375,юридична особа
СВОБОДА,"Львівська обл., Львів, вул. Пекарська, буд. 23",70,2016-09-23,196,Банківські послуги,Інші витрати,242464,Центральний офіс,00013215,Україна,Комісія банку за переказ коштів,26004000021492,current,3.00,"ПАТ ""Креді агріколь банк""",14361575,юридична особа
СВОБОДА,"Львівська обл., Львів, вул. Пекарська, буд. 23",70,2016-09-22,"192,193, 194,195",Банківські послуги,Інші витрати,242463,Центральний офіс,00013215,Україна,Комісія банку за переказ коштів,26004000021492,current,12.00,"ПАТ ""Креді агріколь банк""",14361575,юридична особа
СВОБОДА,"Львівська обл., Львів, вул. Стрийська, буд. 35",60,2016-09-22,195,Інші податки,Податкові платежі,242174,Центральний офіс,00013215,Україна,Земельний податок,26004000021492,current,326.65,УДКСУ у Личаківському районі м. Львова,38007620,юридична особа
СВОБОДА,"Київ, вул. Олександра Кошиця, буд. 3",61,2016-09-22,194,Військовий збір,Податкові платежі,241927,Центральний офіс,00013215,Україна,Військовий збір,26004000021492,current,395.25,УДКСУ в Дарницькому районі,38021179,юридична особа
СВОБОДА,"Київ, вул. Олександра Кошиця, буд. 3",62,2016-09-22,193,Сплата ЄСВ,Податкові платежі,241684,Центральний офіс,00013215,Україна,Єдиний внесок,26004000021492,current,4302.10,ДПІ у Дарницькому р-ні м. Києва,39479227,юридична особа
СВОБОДА,"Київ, вул. Олександра Кошиця, буд. 3",63,2016-09-22,192,Податок на доходи,Податкові платежі,241448,Центральний офіс,00013215,Україна,ПДФО,26004000021492,current,4743.00,УДКСУ в Дарницькому районі,38021179,юридична особа
СВОБОДА,"Київ, Алея Героїв Небесної Сотні, 1",69,2016-09-19,190,Організація заходів та інші організаційні послуги,Організація заходів та інші організаційні послуги,244659,Центральний офіс,00013215,Україна,Оплата за надання комплекса послуг,26004000021492,current,108000.00,"Підприємство федерації професійних спілок України ""Міжнародний центр культури і мистецтв профспілок України""",02597114,юридична особа
СВОБОДА,"Львівська обл., Львів, вул. Пекарська, буд. 23",70,2016-09-19,190191,Банківські послуги,Інші витрати,242462,Центральний офіс,00013215,Україна,Комісія банку за переказ коштів,26004000021492,current,6.00,"ПАТ ""Креді агріколь банк""",14361575,юридична особа
СВОБОДА,"Львівська обл., Яворівський р-н, Яворів, площа Ринок, буд. 14",58,2016-09-19,191,"Виготовлення друкованих матеріалів (плакатів, листівок, буклетів та інших агітаційних матеріалів)",Друкована агітація,239391,Центральний офіс,00013215,Україна,"Оплата за друк газети ""Свобода""",26004000021492,current,18272.28,"ТОВ ""ВД ""Молода Галичина""",32148930,юридична особа
СВОБОДА,"Львівська обл., Львів, вул. Пекарська, буд. 23",70,2016-09-08,189_1,Банківські послуги,Інші витрати,242461,Центральний офіс,00013215,Україна,Комісія банку за переказ коштів,26004000021492,current,3.00,"ПАТ ""Креді агріколь банк""",14361575,юридична особа
СВОБОДА,"Львівська обл., Львів, вул. Пекарська, буд. 23",70,2016-09-08,186,Банківські послуги,Інші витрати,242460,Центральний офіс,00013215,Україна,Комісія банку за переказ коштів,26004000021492,current,3.00,"ПАТ ""Креді агріколь банк""",14361575,юридична особа
СВОБОДА,"Львівська обл., Львів, вул. Пекарська, буд. 23",70,2016-09-08,189,Банківські послуги,Інші витрати,242459,Центральний офіс,00013215,Україна,Комісія банку за переказ коштів,26004000021492,current,3.00,"ПАТ ""Креді агріколь банк""",14361575,юридична особа
СВОБОДА,"Львівська обл., Львів, вул. Пекарська, буд. 23",70,2016-09-08,187,Банківські послуги,Інші витрати,242458,Центральний офіс,00013215,Україна,Комісія банку за переказ коштів,26004000021492,current,3.00,"ПАТ ""Креді агріколь банк""",14361575,юридична особа
СВОБОДА,"Київ, вул. Олександра Кошиця, буд. 3",61,2016-09-08,188,Військовий збір,Податкові платежі,241926,Центральний офіс,00013215,Україна,Військовий збір,26004000021492,current,455.65,УДКСУ в Дарницькому районі,38021179,юридична особа
СВОБОДА,"Київ, вул. Олександра Кошиця, буд. 3",62,2016-09-08,187,Сплата ЄСВ,Податкові платежі,241683,Центральний офіс,00013215,Україна,Єдиний внесок,26004000021492,current,5012.98,ДПІ у Дарницькому р-ні м. Києва,39479227,юридична особа
СВОБОДА,"Київ, вул. Олександра Кошиця, буд. 3",63,2016-09-08,186,Податок на доходи,Податкові платежі,241447,Центральний офіс,00013215,Україна,ПДФО,26004000021492,current,5343.78,УДКСУ в Дарницькому районі,38021179,юридична особа
СВОБОДА,"Львівська обл., Яворівський р-н, Яворів, площа Ринок, буд. 14",58,2016-09-08,201,"Виготовлення друкованих матеріалів (плакатів, листівок, буклетів та інших агітаційних матеріалів)",Друкована агітація,239390,Центральний офіс,00013215,Україна,"Оплата за друк газети ""Свобода""",26004000021492,current,18442.62,"ТОВ ""ВД ""Молода Галичина""",32148930,юридична особа
СВОБОДА,"Київ, вул. Михайла Грушевського, буд. 1Д",70,2016-09-06,LHF9T00049,Банківські послуги,Інші витрати,242315,Вінницька обласна організація,33911707,Вінницька область,Погашення заборгованості за розрахунково-касове обслуговування згідно угоди РКО N б/н від 29.09.2015,26006055327445,current,41.86,"ПАТ КБ ""Приватбанк""",14360570,юридична особа
СВОБОДА,"Київ, Алея Героїв Небесної Сотні, 1",69,2016-09-05,185,Організація заходів та інші організаційні послуги,Організація заходів та інші організаційні послуги,244658,Центральний офіс,00013215,Україна,Оплата за надання комплексу послуг,26004000021492,current,12000.00,"Підприємство федерації професійних спілок України ""Міжнародний центр культури і мистецтв профспілок України""",02597114,юридична особа
СВОБОДА,"Львівська обл., Львів, вул. Пекарська, буд. 23",70,2016-09-05,185,Банківські послуги,Інші витрати,242457,Центральний офіс,00013215,Україна,Комісія банку за переказ коштів,26004000021492,current,3.00,"ПАТ ""Креді агріколь банк""",14361575,юридична особа
СВОБОДА,"Київ, вул. Михайла Грушевського, буд. 1Д",70,2016-09-05,AS6952z29p,Банківські послуги,Інші витрати,242323,Полтавська обласна організація,36984343,Полтавська область,Комісія за обслуговування рахунку,26005054629028,current,100.00,"ПАТ КБ ""Приватбанк""",14360570,юридична особа
СВОБОДА,"Львівська обл., Львів, вул. Пекарська, буд. 23",70,2016-09-01,184,Банківські послуги,Інші витрати,242456,Центральний офіс,00013215,Україна,Комісія банку за переказ коштів,26004000021492,current,3.00,"ПАТ ""Креді агріколь банк""",14361575,юридична особа
СВОБОДА,"Київ, вул. Михайла Грушевського, буд. 1Д",70,2016-09-01,AS68v0aebp,Банківські послуги,Інші витрати,242314,Вінницька обласна організація,33911707,Вінницька область,"Комісія за обслуговування рахунку серпень 2016 р. згідно договору банківського рахунку від 29.09.2015, без ПДВ",26006055327445,current,58.14,"ПАТ КБ ""Приватбанк""",14360570,юридична особа
СВОБОДА,"Львівська обл., Львів, вул. Володимира Винниченка, буд. 8",79,2016-09-01,5,"Оренда будинків і приміщень та експлуатаційні витрати (прибирання, страхування орендованих будинків, охорона, сигналізація, ремонт, вивіз сміття, тощо)",Оренда нерухомості,239733,Центральний офіс,00013215,Україна,Оплата за прибирання території,26004000021492,current,22.62,"КП ЛОР ""Нерухомість та майно""",33358550,юридична особа
СВОБОДА,"Львівська обл., Львів, вул. Пекарська, буд. 23",70,2016-08-31,182,Банківські послуги,Інші витрати,242455,Центральний офіс,00013215,Україна,Комісія банку за свидачу готівки,26004000021492,current,366.31,"ПАТ ""Креді агріколь банк""",14361575,юридична особа
СВОБОДА,"Львівська обл., Львів, вул. Пекарська, буд. 23",70,2016-08-31,182,Банківські послуги,Інші витрати,242454,Центральний офіс,00013215,Україна,Комісія банку за супроводження клієнт-банку,26004000021492,current,60.00,"ПАТ ""Креді агріколь банк""",14361575,юридична особа
СВОБОДА,"Львівська обл., Львів, вул. Пекарська, буд. 23",70,2016-08-31,182,Банківські послуги,Інші витрати,242453,Центральний офіс,00013215,Україна,Комісія банку за переказ коштів,26004000021492,current,3.00,"ПАТ ""Креді агріколь банк""",14361575,юридична особа
СВОБОДА,,84,2016-08-31,ЯЯ1164606,"Заробітна плата, премії","Заробітна плата, лікарняні, вагітності, відрядження, компенсації",240773,Центральний офіс,00013215,Україна,Зарплата,26004000021492,current,3122.92,Демчишин Назар Зіновійович,,фізична особа
СВОБОДА,,84,2016-08-31,ЯЯ1164606,"Заробітна плата, премії","Заробітна плата, лікарняні, вагітності, відрядження, компенсації",240772,Центральний офіс,00013215,Україна,Зарплата,26004000021492,current,2089.53,Мохник Андрій Володимирович,,фізична особа
СВОБОДА,,84,2016-08-31,ЯЯ1164606,"Заробітна плата, премії","Заробітна плата, лікарняні, вагітності, відрядження, компенсації",240771,Центральний офіс,00013215,Україна,Зарплата,26004000021492,current,1412.02,Мельничук Любомир Анатолійович,,фізична особа
СВОБОДА,,84,2016-08-31,ЯЯ1164606,"Заробітна плата, премії","Заробітна плата, лікарняні, вагітності, відрядження, компенсації",240770,Центральний офіс,00013215,Україна,Зарплата,26004000021492,current,18746.52,Пелешак Ярослав Антонович,,фізична особа
СВОБОДА,,84,2016-08-31,ЯЯ1164606,"Заробітна плата, премії","Заробітна плата, лікарняні, вагітності, відрядження, компенсації",240769,Центральний офіс,00013215,Україна,Зарплата,26004000021492,current,20417.98,Тягнибок Олег Ярославович,,фізична особа
СВОБОДА,"Львівська обл., Яворівський р-н, Яворів, площа Ринок, буд. 14",58,2016-08-31,191,"Виготовлення друкованих матеріалів (плакатів, листівок, буклетів та інших агітаційних матеріалів)",Друкована агітація,239389,Центральний офіс,00013215,Україна,"Оплата за друк газети ""Свобода""",26004000021492,current,12939.52,"ТОВ ""ВД ""Молода Галичина""",32148930,юридична особа
СВОБОДА,"Київ, вул. Миколи Лєскова, буд. 9",70,2016-08-30,26002309354,Банківські послуги,Інші витрати,242320,Кіровоградська обласна організація,36571824,Кіровоградська область,Комісія за користування пакетом послуг,26002309354,current,100.00,"АТ ""Райффайзен банк Аваль""",14305909,юридична особа
СВОБОДА,"Київ, вул. Миколи Лєскова, буд. 9",70,2016-08-30,26002309354,Банківські послуги,Інші витрати,242319,Кіровоградська обласна організація,36571824,Кіровоградська область,Комісія за надання виписки на паперовому носії,26002309354,current,50.00,"АТ ""Райффайзен банк Аваль""",14305909,юридична особа
СВОБОДА,"Волинська обл., Ковель",79,2016-08-29,10,"Оренда будинків і приміщень та експлуатаційні витрати (прибирання, страхування орендованих будинків, охорона, сигналізація, ремонт, вивіз сміття, тощо)",Оренда нерухомості,239691,Ковельська міська організація,21735987,Волинська область,Оренда приміщення згідно з договором ореди №626 від 26.11.2016р. за липень-вересень 2016р.,260063013551,current,41.16,Відділ ГО УМКС виконкому Ковельської міськради,23254967,юридична особа
СВОБОДА,"Львівська обл., Львів, вул. Пекарська, буд. 23",70,2016-08-26,182,Банківські послуги,Інші витрати,242452,Центральний офіс,00013215,Україна,Комісія банку за переказ коштів,26004000021492,current,3.00,"ПАТ ""Креді агріколь банк""",14361575,юридична особа
СВОБОДА,"Львівська обл., Яворівський р-н, Яворів, площа Ринок, буд. 14",58,2016-08-26,182,"Виготовлення друкованих матеріалів (плакатів, листівок, буклетів та інших агітаційних матеріалів)",Друкована агітація,239388,Центральний офіс,00013215,Україна,"Оплата за друк газети ""Свобода""",26004000021492,current,18343.68,"ТОВ ""ВД ""Молода Галичина""",32148930,юридична особа
СВОБОДА,"Львівська обл., Львів, вул. Пекарська, буд. 23",70,2016-08-23,"175,176, 177,178, 179,180",Банківські послуги,Інші витрати,242451,Центральний офіс,00013215,Україна,Комісія банку за переказ коштів,26004000021492,current,18.00,"ПАТ ""Креді агріколь банк""",14361575,юридична особа
СВОБОДА,"Львівська обл., Львів, вул. Стрийська, буд. 35",60,2016-08-23,180,Інші податки,Податкові платежі,242173,Центральний офіс,00013215,Україна,Земельний податок,26004000021492,current,326.65,УДКСУ у Личаківському районі м. Львова,38007620,юридична особа
СВОБОДА,"Київ, вул. Олександра Кошиця, буд. 3",61,2016-08-23,179,Військовий збір,Податкові платежі,241925,Центральний офіс,00013215,Україна,Військовий збір,26004000021492,current,395.25,УДКСУ в Дарницькому районі,38021179,юридична особа
СВОБОДА,"Київ, вул. Олександра Кошиця, буд. 3",62,2016-08-23,178,Сплата ЄСВ,Податкові платежі,241682,Центральний офіс,00013215,Україна,Єдиний внесок,26004000021492,current,4302.10,ДПІ у Дарницькому р-ні м. Києва,39479227,юридична особа
СВОБОДА,"Київ, вул. Олександра Кошиця, буд. 3",63,2016-08-23,177,Податок на доходи,Податкові платежі,241446,Центральний офіс,00013215,Україна,ПДФО,26004000021492,current,4743.00,УДКСУ в Дарницькому районі,38021179,юридична особа
СВОБОДА,"Львівська обл., Львів, вул. Жовківська, буд. 22",79,2016-08-23,181,"Оренда будинків і приміщень та експлуатаційні витрати (прибирання, страхування орендованих будинків, охорона, сигналізація, ремонт, вивіз сміття, тощо)",Оренда нерухомості,239732,Центральний офіс,00013215,Україна,Оплата за електроенергію,26004000021492,current,36.68,"ПП ""Система ЛЯ""",34462313,юридична особа
СВОБОДА,"Київ, вул. Лугова, буд. 1",58,2016-08-23,176,"Виготовлення друкованих матеріалів (плакатів, листівок, буклетів та інших агітаційних матеріалів)",Друкована агітація,239387,Центральний офіс,00013215,Україна,"Оплата за друк газети ""Свобода""",26004000021492,current,25000.80,"ТОВ ""Полі-прінт""",32108259,юридична особа
СВОБОДА,"Львівська обл., Яворівський р-н, Яворів, площа Ринок, буд. 14",58,2016-08-23,175,"Виготовлення друкованих матеріалів (плакатів, листівок, буклетів та інших агітаційних матеріалів)",Друкована агітація,239386,Центральний офіс,00013215,Україна,"Оплата за друк газети ""Свобода""",26004000021492,current,23846.78,"ТОВ ""ВД ""Молода Галичина""",32148930,юридична особа
СВОБОДА,"Полтавська обл., Полтава, вул. Соборності, буд. 14",79,2016-08-22,2,"Оренда будинків і приміщень та експлуатаційні витрати (прибирання, страхування орендованих будинків, охорона, сигналізація, ремонт, вивіз сміття, тощо)",Оренда нерухомості,239692,Полтавська обласна організація,36984343,Полтавська область,Оренда приміщення,26005054629028,current,5298.08,"ТОВ ""Агрополіс на Жовтневій""",38561467,юридична особа
СВОБОДА,"Львівська обл., Львів, вул. Пекарська, буд. 23",70,2016-08-10,"170,171, 172,173, 174",Банківські послуги,Інші витрати,242450,Центральний офіс,00013215,Україна,Комісія банку за переказ коштів,26004000021492,current,15.00,"ПАТ ""Креді агріколь банк""",14361575,юридична особа
СВОБОДА,"Київ, вул. Олександра Кошиця, буд. 3",61,2016-08-10,172,Військовий збір,Податкові платежі,241924,Центральний офіс,00013215,Україна,Військовий збір,26004000021492,current,455.65,УДКСУ в Дарницькому районі,38021179,юридична особа
СВОБОДА,"Київ, вул. Олександра Кошиця, буд. 3",62,2016-08-10,171,Сплата ЄСВ,Податкові платежі,241681,Центральний офіс,00013215,Україна,Єдиний внесок,26004000021492,current,5012.98,ДПІ у Дарницькому р-ні м. Києва,39479227,юридична особа
СВОБОДА,"Київ, вул. Олександра Кошиця, буд. 3",63,2016-08-10,170,Податок на доходи,Податкові платежі,241445,Центральний офіс,00013215,Україна,ПДФО,26004000021492,current,5343.78,УДКСУ в Дарницькому районі,38021179,юридична особа
СВОБОДА,"Київ, вул. Лугова, буд. 1",58,2016-08-10,174,"Виготовлення друкованих матеріалів (плакатів, листівок, буклетів та інших агітаційних матеріалів)",Друкована агітація,239385,Центральний офіс,00013215,Україна,"Оплата за друк газети ""Свобода""",26004000021492,current,25000.80,"ТОВ ""Полі-прінт""",32108259,юридична особа
СВОБОДА,"Львівська обл., Яворівський р-н, Яворів, площа Ринок, буд. 14",58,2016-08-10,173,"Виготовлення друкованих матеріалів (плакатів, листівок, буклетів та інших агітаційних матеріалів)",Друкована агітація,239384,Центральний офіс,00013215,Україна,"Оплата за друк газети ""Свобода""",26004000021492,current,23846.78,"ТОВ ""ВД ""Молода Галичина""",32148930,юридична особа
СВОБОДА,"Львівська обл., Львів, вул. Пекарська, буд. 23",70,2016-08-04,ЯЯ1164 605,Банківські послуги,Інші витрати,242449,Центральний офіс,00013215,Україна,Комісія банку за видачу готівки,26004000021492,current,457.89,"ПАТ ""Креді агріколь банк""",14361575,юридична особа
СВОБОДА,,84,2016-08-04,ЯЯ1164605,"Заробітна плата, премії","Заробітна плата, лікарняні, вагітності, відрядження, компенсації",240768,Центральний офіс,00013215,Україна,Зарплата,26004000021492,current,3122.92,Демчишин Назар Зіновійович,,фізична особа
СВОБОДА,,84,2016-08-04,ЯЯ1164605,"Заробітна плата, премії","Заробітна плата, лікарняні, вагітності, відрядження, компенсації",240767,Центральний офіс,00013215,Україна,Зарплата,26004000021492,current,2089.53,Мохник Андрій Володимирович,,фізична особа
СВОБОДА,,84,2016-08-04,ЯЯ1164605,"Заробітна плата, премії","Заробітна плата, лікарняні, вагітності, відрядження, компенсації",240766,Центральний офіс,00013215,Україна,Зарплата,26004000021492,current,1412.02,Мельничук Любомир Анатолійович,,фізична особа
СВОБОДА,,84,2016-08-04,ЯЯ1164605,"Заробітна плата, премії","Заробітна плата, лікарняні, вагітності, відрядження, компенсації",240765,Центральний офіс,00013215,Україна,Зарплата,26004000021492,current,18746.52,Пелешак Ярослав Антонович,,фізична особа
СВОБОДА,,84,2016-08-04,ЯЯ1164605,"Заробітна плата, премії","Заробітна плата, лікарняні, вагітності, відрядження, компенсації",240764,Центральний офіс,00013215,Україна,Зарплата,26004000021492,current,20417.98,Тягнибок Олег Ярославович,,фізична особа
СВОБОДА,"Львівська обл., Львів, вул. Пекарська, буд. 23",70,2016-08-02,"167,168, 169",Банківські послуги,Інші витрати,242448,Центральний офіс,00013215,Україна,Комісія банку за надання довідок,26004000021492,current,300.00,"ПАТ ""Креді агріколь банк""",14361575,юридична особа
СВОБОДА,"Львівська обл., Львів, вул. Пекарська, буд. 23",70,2016-08-02,165,Банківські послуги,Інші витрати,242447,Центральний офіс,00013215,Україна,Комісія банку за переказ коштів,26004000021492,current,3.00,"ПАТ ""Креді агріколь банк""",14361575,юридична особа
СВОБОДА,"Рівненська обл., Рівне, вул. Симона Петлюри, буд. 16",70,2016-08-02,,Банківські послуги,Інші витрати,242325,Рівненська міська організація,33982736,Рівненська область,"За надання довідок, дублікатів довідок",26006300976830,current,50.00,"Рівненська обласна організація Всеукраїнське обʼєднання ""Свобода""",26353285,юридична особа
СВОБОДА,"Львівська обл., Львів, вул. Жовківська, буд. 22",79,2016-08-02,166,"Оренда будинків і приміщень та експлуатаційні витрати (прибирання, страхування орендованих будинків, охорона, сигналізація, ремонт, вивіз сміття, тощо)",Оренда нерухомості,239731,Центральний офіс,00013215,Україна,Оплата за оренду приміщення,26004000021492,current,3600.00,"ПП ""Система ЛЯ""",34462313,юридична особа
СВОБОДА,"Львівська обл., Яворівський р-н, Яворів, площа Ринок, буд. 14",58,2016-08-02,165,"Виготовлення друкованих матеріалів (плакатів, листівок, буклетів та інших агітаційних матеріалів)",Друкована агітація,239383,Центральний офіс,00013215,Україна,"Оплата за друк газети ""Свобода""",26004000021492,current,3660.00,"ТОВ ""ВД ""Молода Галичина""",32148930,юридична особа
СВОБОДА,,59,2016-08-01,43,Грошова застава,Грошова застава,244424,Вінницька обласна організація,33911707,Вінницька область,"Гротова застава місцевої організації політичної партії ВО ""Свобода""",26006055327445,current,812.00,Іллінецька міська виборча комісія,34026990,юридична особа
СВОБОДА,"Київ, вул. Михайла Грушевського, буд. 1Д",70,2016-08-01,А867Иуу0р,Банківські послуги,Інші витрати,242327,Харківська міська організація,25850709,Харківська область,Комісія за обслуговування,26001052218244,current,15.19,"ПАТ КБ ""Приватбанк""",14360570,юридична особа
СВОБОДА,"Київ, вул. Михайла Грушевського, буд. 1Д",70,2016-08-01,0730Ь0ЮАУ,Банківські послуги,Інші витрати,242313,Вінницька обласна організація,33911707,Вінницька область,"Комісія за виконання платежів в національній валюті, згідно з",26006055327445,current,3.00,"ПАТ КБ ""Приватбанк""",14360570,юридична особа
СВОБОДА,"Львівська обл., Львів, вул. Пекарська, буд. 23",70,2016-07-29,1,Банківські послуги,Інші витрати,242446,Центральний офіс,00013215,Україна,Комісія банку за супроводження клієнт-банку,26004000021492,current,60.00,"ПАТ ""Креді агріколь банк""",14361575,юридична особа
СВОБОДА,"Київ, вул. Михайла Грушевського, буд. 1Д",70,2016-07-29,б/н,Банківські послуги,Інші витрати,242312,Вінницька обласна організація,33911707,Вінницька область,"Погашення простроченої заборгованості за РКО, згідно з відкритою офертою банку № б/н від 29.09.2015, без ПДВ",26006055327445,current,76.86,"ПАТ КБ ""Приватбанк""",14360570,юридична особа
СВОБОДА,"Львівська обл., Львів, вул. Пекарська, буд. 23",70,2016-07-28,"159,160, 161",Банківські послуги,Інші витрати,242445,Центральний офіс,00013215,Україна,Комісія банку за надання довідок,26004000021492,current,300.00,"ПАТ ""Креді агріколь банк""",14361575,юридична особа
СВОБОДА,"Львівська обл., Львів, вул. Пекарська, буд. 23",70,2016-07-28,"158,162, 164",Банківські послуги,Інші витрати,242444,Центральний офіс,00013215,Україна,Комісія банку за переказ коштів,26004000021492,current,9.00,"ПАТ ""Креді агріколь банк""",14361575,юридична особа
СВОБОДА,"Київ, вул. Миколи Лєскова, буд. 9",70,2016-07-28,26002309354,Банківські послуги,Інші витрати,242318,Кіровоградська обласна організація,36571824,Кіровоградська область,Комісія за користування пакетом послуг,26002309354,current,100.00,"АТ ""Райффайзен банк Аваль""",14305909,юридична особа
СВОБОДА,"Київ, вул. Миколи Лєскова, буд. 9",70,2016-07-28,26002309354,Банківські послуги,Інші витрати,242317,Кіровоградська обласна організація,36571824,Кіровоградська область,Комісія за надання виписки на паперовому носії,26002309354,current,50.00,"АТ ""Райффайзен банк Аваль""",14305909,юридична особа
СВОБОДА,"Львівська обл., Львів, вул. Модеста Менцинського, буд. 1",72,2016-07-28,162,"Придбання, ремонт офісної техніки та програмного забезпечення (Бухгалтерські програми, Ліга.закон, домени)",Придбання офісної техніки та програмного забезпечення,240254,Центральний офіс,00013215,Україна,Оплата за відновлення ПО,26004000021492,current,525.00,"ТОВ ""Нова-центр""",23963623,юридична особа
СВОБОДА,"Львівська обл., Львів, вул. Жовківська, буд. 22",79,2016-07-28,163,"Оренда будинків і приміщень та експлуатаційні витрати (прибирання, страхування орендованих будинків, охорона, сигналізація, ремонт, вивіз сміття, тощо)",Оренда нерухомості,239730,Центральний офіс,00013215,Україна,Оплата за електроенергію,26004000021492,current,54.68,"ПП ""Система ЛЯ""",34462313,юридична особа
СВОБОДА,"Львівська обл., Львів, вул. Володимира Винниченка, буд. 8",79,2016-07-28,164,"Оренда будинків і приміщень та експлуатаційні витрати (прибирання, страхування орендованих будинків, охорона, сигналізація, ремонт, вивіз сміття, тощо)",Оренда нерухомості,239729,Центральний офіс,00013215,Україна,Оплата за прибирання території,26004000021492,current,23.11,"КП ЛОР ""Нерухомість та майно""",33358550,юридична особа
СВОБОДА,"Львівська обл., Яворівський р-н, Яворів, площа Ринок, буд. 14",58,2016-07-28,158,"Виготовлення друкованих матеріалів (плакатів, листівок, буклетів та інших агітаційних матеріалів)",Друкована агітація,239382,Центральний офіс,00013215,Україна,"Оплата за друк газети ""Свобода""",26004000021492,current,36524.16,"ТОВ ""ВД ""Молода Галичина""",32148930,юридична особа
СВОБОДА,"Рівненська обл., Рівне, вул. Симона Петлюри, буд. 16",70,2016-07-26,,Банківські послуги,Інші витрати,242324,Рівненська міська організація,33982736,Рівненська область,"За надання довідок, дублікатів довідок",26006300976830,current,30.00,"Рівненська обласна організація Всеукраїнське обʼєднання ""Свобода""",26353285,юридична особа
СВОБОДА,"Львівська обл., Львів, вул. Пекарська, буд. 23",70,2016-07-19,"153,154, 155,156, 157",Банківські послуги,Інші витрати,242443,Центральний офіс,00013215,Україна,Комісія банку за переказ коштів,26004000021492,current,15.00,"ПАТ ""Креді агріколь банк""",14361575,юридична особа
СВОБОДА,"Київ, вул. Олександра Кошиця, буд. 3",61,2016-07-19,156,Військовий збір,Податкові платежі,241923,Центральний офіс,00013215,Україна,Військовий збір,26004000021492,current,395.25,УДКСУ в Дарницькому районі,38021179,юридична особа
СВОБОДА,"Київ, вул. Олександра Кошиця, буд. 3",62,2016-07-19,155,Сплата ЄСВ,Податкові платежі,241680,Центральний офіс,00013215,Україна,Єдиний внесок,26004000021492,current,4302.10,ДПІ у Дарницькому р-ні м. Києва,39479227,юридична особа
СВОБОДА,"Київ, вул. Олександра Кошиця, буд. 3",63,2016-07-19,154,Податок на доходи,Податкові платежі,241444,Центральний офіс,00013215,Україна,ПДФО,26004000021492,current,4743.00,УДКСУ в Дарницькому районі,38021179,юридична особа
СВОБОДА,"Київ, вул. Лугова, буд. 1",58,2016-07-19,157,"Виготовлення друкованих матеріалів (плакатів, листівок, буклетів та інших агітаційних матеріалів)",Друкована агітація,239381,Центральний офіс,00013215,Україна,"Оплата за друк газети ""Свобода""",26004000021492,current,60000.00,"ТОВ ""Полі-прінт""",32108259,юридична особа
СВОБОДА,"Львівська обл., Яворівський р-н, Яворів, площа Ринок, буд. 14",58,2016-07-19,153,"Виготовлення друкованих матеріалів (плакатів, листівок, буклетів та інших агітаційних матеріалів)",Друкована агітація,239380,Центральний офіс,00013215,Україна,"Оплата за друк газети ""Свобода""",26004000021492,current,18262.08,"ТОВ ""ВД ""Молода Галичина""",32148930,юридична особа
СВОБОДА,"Львівська обл., Львів, вул. Пекарська, буд. 23",70,2016-07-15,ЯЯ1164 604,Банківські послуги,Інші витрати,242442,Центральний офіс,00013215,Україна,Комісія банку за видачу готівки,26004000021492,current,453.64,"ПАТ ""Креді агріколь банк""",14361575,юридична особа
СВОБОДА,"Львівська обл., Львів, вул. Пекарська, буд. 23",70,2016-07-15,152,Банківські послуги,Інші витрати,242441,Центральний офіс,00013215,Україна,Комісія банку за переказ коштів,26004000021492,current,3.00,"ПАТ ""Креді агріколь банк""",14361575,юридична особа
СВОБОДА,,84,2016-07-15,ЯЯ1164604,"Заробітна плата, премії","Заробітна плата, лікарняні, вагітності, відрядження, компенсації",240763,Центральний офіс,00013215,Україна,Зарплата,26004000021492,current,2958.33,Демчишин Назар Зіновійович,,фізична особа
СВОБОДА,,84,2016-07-15,ЯЯ1164604,"Заробітна плата, премії","Заробітна плата, лікарняні, вагітності, відрядження, компенсації",240762,Центральний офіс,00013215,Україна,Зарплата,26004000021492,current,2028.85,Мохник Андрій Володимирович,,фізична особа
СВОБОДА,,84,2016-07-15,ЯЯ1164604,"Заробітна плата, премії","Заробітна плата, лікарняні, вагітності, відрядження, компенсації",240761,Центральний офіс,00013215,Україна,Зарплата,26004000021492,current,1412.02,Мельничук Любомир Анатолійович,,фізична особа
СВОБОДА,,84,2016-07-15,ЯЯ1164604,"Заробітна плата, премії","Заробітна плата, лікарняні, вагітності, відрядження, компенсації",240760,Центральний офіс,00013215,Україна,Зарплата,26004000021492,current,18626.29,Пелешак Ярослав Антонович,,фізична особа
СВОБОДА,,84,2016-07-15,ЯЯ1164604,"Заробітна плата, премії","Заробітна плата, лікарняні, вагітності, відрядження, компенсації",240759,Центральний офіс,00013215,Україна,Зарплата,26004000021492,current,20338.61,Тягнибок Олег Ярославович,,фізична особа
СВОБОДА,"Львівська обл., Львів, вул. Пекарська, буд. 23",70,2016-07-13,150151,Банківські послуги,Інші витрати,242440,Центральний офіс,00013215,Україна,Комісія банку за переказ коштів,26004000021492,current,6.00,"ПАТ ""Креді агріколь банк""",14361575,юридична особа
СВОБОДА,"Львівська обл., Львів, вул. Стрийська, буд. 35",60,2016-07-13,150,Інші податки,Податкові платежі,242172,Центральний офіс,00013215,Україна,Земельний податок,26004000021492,current,979.95,УДКСУ у Личаківському районі м. Львова,38007620,юридична особа
СВОБОДА,"Львівська обл., Львів, вул. Героїв УПА, буд. 73",79,2016-07-13,151,"Оренда будинків і приміщень та експлуатаційні витрати (прибирання, страхування орендованих будинків, охорона, сигналізація, ремонт, вивіз сміття, тощо)",Оренда нерухомості,239728,Центральний офіс,00013215,Україна,Оплата за питну воду,26004000021492,current,95.86,"ПрАТ ""ІДС Аква Сервіс""",25242750,юридична особа
СВОБОДА,"Львівська обл., Львів, вул. Пекарська, буд. 23",70,2016-07-08,"145,146, 147,148, 149",Банківські послуги,Інші витрати,242439,Центральний офіс,00013215,Україна,Комісія банку за переказ коштів,26004000021492,current,15.00,"ПАТ ""Креді агріколь банк""",14361575,юридична особа
СВОБОДА,"Київ, вул. Олександра Кошиця, буд. 3",61,2016-07-08,149,Військовий збір,Податкові платежі,241922,Центральний офіс,00013215,Україна,Військовий збір,26004000021492,current,455.65,УДКСУ в Дарницькому районі,38021179,юридична особа
СВОБОДА,"Київ, вул. Олександра Кошиця, буд. 3",62,2016-07-08,148,Сплата ЄСВ,Податкові платежі,241679,Центральний офіс,00013215,Україна,Єдиний внесок,26004000021492,current,5012.98,ДПІ у Дарницькому р-ні м. Києва,39479227,юридична особа
СВОБОДА,"Київ, вул. Олександра Кошиця, буд. 3",63,2016-07-08,147,Податок на доходи,Податкові платежі,241443,Центральний офіс,00013215,Україна,ПДФО,26004000021492,current,5343.78,УДКСУ в Дарницькому районі,38021179,юридична особа
СВОБОДА,"Київ, вул. Лугова, буд. 1",58,2016-07-08,145,"Виготовлення друкованих матеріалів (плакатів, листівок, буклетів та інших агітаційних матеріалів)",Друкована агітація,239379,Центральний офіс,00013215,Україна,"Оплата за друк газети ""Свобода""",26004000021492,current,25000.80,"ТОВ ""Полі-прінт""",32108259,юридична особа
СВОБОДА,"Львівська обл., Яворівський р-н, Яворів, площа Ринок, буд. 14",58,2016-07-08,146,"Виготовлення друкованих матеріалів (плакатів, листівок, буклетів та інших агітаційних матеріалів)",Друкована агітація,239378,Центральний офіс,00013215,Україна,"Оплата за друк газети ""Свобода""",26004000021492,current,18262.08,"ТОВ ""ВД ""Молода Галичина""",32148930,юридична особа
СВОБОДА,"Львівська обл., Львів, вул. Пекарська, буд. 23",70,2016-07-05,143,Банківські послуги,Інші витрати,242438,Центральний офіс,00013215,Україна,Комісія банку за переказ коштів,26004000021492,current,3.00,"ПАТ ""Креді агріколь банк""",14361575,юридична особа
СВОБОДА,"Львівська обл., Львів, вул. Жовківська, буд. 22",79,2016-07-05,144,"Оренда будинків і приміщень та експлуатаційні витрати (прибирання, страхування орендованих будинків, охорона, сигналізація, ремонт, вивіз сміття, тощо)",Оренда нерухомості,239727,Центральний офіс,00013215,Україна,Оплата за електроенергію,26004000021492,current,93.00,"ПП ""Система ЛЯ""",34462313,юридична особа
СВОБОДА,"Львівська обл., Яворівський р-н, Яворів, площа Ринок, буд. 14",58,2016-07-05,143,"Виготовлення друкованих матеріалів (плакатів, листівок, буклетів та інших агітаційних матеріалів)",Друкована агітація,239377,Центральний офіс,00013215,Україна,"Оплата за друк газети ""Свобода""",26004000021492,current,3042.85,"ТОВ ""ВД ""Молода Галичина""",32148930,юридична особа
СВОБОДА,"Харківська обл., Харків, вул. Чернишевська, буд. 59",79,2016-07-02,3,"Оренда будинків і приміщень та експлуатаційні витрати (прибирання, страхування орендованих будинків, охорона, сигналізація, ремонт, вивіз сміття, тощо)",Оренда нерухомості,239693,Харківська міська організація,25850709,Харківська область,Сплата за оренду приміщення,26001052218244,current,4800.00,Харківська обласна організація Національної спілки письменників України,14072262,юридична особа
СВОБОДА,"Київ, вул. Михайла Грушевського, буд. 1Д",70,2016-07-01,А866и4|зрр,Банківські послуги,Інші витрати,242326,Харківська міська організація,25850709,Харківська область,Комісія за обслуговування,26001052218244,current,100.00,"ПАТ КБ ""Приватбанк""",14360570,юридична особа
СВОБОДА,"Волинська обл., Ковель",60,2016-07-01,9,Інші податки,Податкові платежі,242147,Ковельська міська організація,21735987,Волинська область,Земельний податок за липень-грудень 2016р/,260063013551,current,73.57,Ковельське УДКСУ Волинської області,37788874,юридична особа
СВОБОДА,"Львівська обл., Львів, вул. Пекарська, буд. 23",70,2016-06-30,1,Банківські послуги,Інші витрати,242437,Центральний офіс,00013215,Україна,Комісія банку за супроводження клієнт-банку,26004000021492,current,60.00,"ПАТ ""Креді агріколь банк""",14361575,юридична особа
СВОБОДА,"Львівська обл., Львів, вул. Пекарська, буд. 23",70,2016-06-30,142,Банківські послуги,Інші витрати,242436,Центральний офіс,00013215,Україна,Комісія банку за переказ коштів,26004000021492,current,3.00,"ПАТ ""Креді агріколь банк""",14361575,юридична особа
СВОБОДА,,70,2016-06-30,6110790000,Банківські послуги,Інші витрати,242310,Хмельницька обласна організація,33953574,Хмельницька область,Утримання додатковоъ комысыъ за обслуговування,26000330289200,current,90.00,"АТ ""Укрсиббанк""",,юридична особа
СВОБОДА,"Київ, вул. Миколи Лєскова, буд. 9",70,2016-06-30,,Банківські послуги,Інші витрати,242309,Красилівська районна організація,36923668,Хмельницька область,Часткове списання комісії за користування пакетом послуг,26005483329,current,84.00,"АТ ""Райффайзен банк Аваль""",14305909,юридична особа
СВОБОДА,"Київ, вул. Госпітальна, буд. 12Г",70,2016-06-30,97318011,Банківські послуги,Інші витрати,242293,Бердичівська міська організація,36710964,Житомирська область,списання щомісячної плати за обслуговування тарифного пакету за червень 2016 року,26009430345917,current,35.00,"АТ ""Ощадбанк""",00032129,юридична особа
СВОБОДА,"Львівська обл., Яворівський р-н, Яворів, площа Ринок, буд. 14",58,2016-06-30,142,"Виготовлення друкованих матеріалів (плакатів, листівок, буклетів та інших агітаційних матеріалів)",Друкована агітація,239376,Центральний офіс,00013215,Україна,"Оплата за друк газети ""Свобода""",26004000021492,current,18262.08,"ТОВ ""ВД ""Молода Галичина""",32148930,юридична особа
СВОБОДА,,58,2016-06-30,,"Виготовлення друкованих матеріалів (плакатів, листівок, буклетів та інших агітаційних матеріалів)",Друкована агітація,239334,Красилівська районна організація,36923668,Хмельницька область,"Оплата за друк газети ""Свобода Красилів""",26005483329,current,1940.00,Крисюк С Г,,фізична особа
СВОБОДА,"Київ, вул. Миколи Лєскова, буд. 9",70,2016-06-29,26002309354,Банківські послуги,Інші витрати,242299,Кіровоградська обласна організація,36571824,Кіровоградська область,Комісія за надання виписки на паперовому носії,26002309354,current,100.00,"АТ ""Райффайзен банк Аваль""",14305909,юридична особа
СВОБОДА,"Київ, вул. Миколи Лєскова, буд. 9",70,2016-06-29,26002309354,Банківські послуги,Інші витрати,242298,Кіровоградська обласна організація,36571824,Кіровоградська область,Комісія за надання виписки на паперовому носії,26002309354,current,50.00,"АТ ""Райффайзен банк Аваль""",14305909,юридична особа
СВОБОДА,"Львівська обл., Львів, вул. Пекарська, буд. 23",70,2016-06-23,141,Банківські послуги,Інші витрати,242435,Центральний офіс,00013215,Україна,Комісія банку за переказ коштів,26004000021492,current,3.00,"ПАТ ""Креді агріколь банк""",14361575,юридична особа
СВОБОДА,"Львівська обл., Яворівський р-н, Яворів, площа Ринок, буд. 14",58,2016-06-23,141,"Виготовлення друкованих матеріалів (плакатів, листівок, буклетів та інших агітаційних матеріалів)",Друкована агітація,239375,Центральний офіс,00013215,Україна,"Оплата за друк газети ""Свобода""",26004000021492,current,20150.93,"ТОВ ""ВД ""Молода Галичина""",32148930,юридична особа
СВОБОДА,"Львівська обл., Львів, вул. Пекарська, буд. 23",70,2016-06-21,"137,138, 139,140",Банківські послуги,Інші витрати,242434,Центральний офіс,00013215,Україна,Комісія банку за переказ коштів,26004000021492,current,12.00,"ПАТ ""Креді агріколь банк""",14361575,юридична особа
СВОБОДА,"Київ, вул. Олександра Кошиця, буд. 3",61,2016-06-21,139,Військовий збір,Податкові платежі,241921,Центральний офіс,00013215,Україна,Військовий збір,26004000021492,current,395.25,УДКСУ в Дарницькому районі,38021179,юридична особа
СВОБОДА,"Київ, вул. Олександра Кошиця, буд. 3",62,2016-06-21,138,Сплата ЄСВ,Податкові платежі,241678,Центральний офіс,00013215,Україна,Єдиний внесок,26004000021492,current,4302.10,ДПІ у Дарницькому р-ні м. Києва,39479227,юридична особа
СВОБОДА,"Київ, вул. Олександра Кошиця, буд. 3",63,2016-06-21,137,Податок на доходи,Податкові платежі,241442,Центральний офіс,00013215,Україна,ПДФО,26004000021492,current,4743.00,УДКСУ в Дарницькому районі,38021179,юридична особа
СВОБОДА,"Київ, вул. Лугова, буд. 1",58,2016-06-21,140,"Виготовлення друкованих матеріалів (плакатів, листівок, буклетів та інших агітаційних матеріалів)",Друкована агітація,239374,Центральний офіс,00013215,Україна,"Оплата за друк газети ""Свобода""",26004000021492,current,25000.80,"ТОВ ""Полі-прінт""",32108259,юридична особа
СВОБОДА,"Львівська обл., Львів, вул. Пекарська, буд. 23",70,2016-06-17,"134,135, 136",Банківські послуги,Інші витрати,242433,Центральний офіс,00013215,Україна,Комісія банку за переказ коштів,26004000021492,current,9.00,"ПАТ ""Креді агріколь банк""",14361575,юридична особа
СВОБОДА,,74,2016-06-17,136,"Придбання канцтоварів, паперу, інших предметів і матеріалів, а також госп товари",Придбання канцтоварів та госп. товарів,240282,Центральний офіс,00013215,Україна,Оплата за папір,26004000021492,current,162.16,"ПП ""Час-пік""",22360472,юридична особа
СВОБОДА,"Львівська обл., Львів, вул. Володимира Винниченка, буд. 8",79,2016-06-17,135,"Оренда будинків і приміщень та експлуатаційні витрати (прибирання, страхування орендованих будинків, охорона, сигналізація, ремонт, вивіз сміття, тощо)",Оренда нерухомості,239726,Центральний офіс,00013215,Україна,Оплата за прибирання території,26004000021492,current,23.11,"КП ЛОР ""Нерухомість та майно""",33358550,юридична особа
СВОБОДА,"Львівська обл., Яворівський р-н, Яворів, площа Ринок, буд. 14",58,2016-06-17,134,"Виготовлення друкованих матеріалів (плакатів, листівок, буклетів та інших агітаційних матеріалів)",Друкована агітація,239373,Центральний офіс,00013215,Україна,"Оплата за друк газети ""Свобода""",26004000021492,current,20150.93,"ТОВ ""ВД ""Молода Галичина""",32148930,юридична особа
СВОБОДА,"Львівська обл., Львів, вул. Пекарська, буд. 23",70,2016-06-13,ЯЯ1164 603,Банківські послуги,Інші витрати,242432,Центральний офіс,00013215,Україна,Комісія банку за видачу готівки,26004000021492,current,449.18,"ПАТ ""Креді агріколь банк""",14361575,юридична особа
СВОБОДА,"Львівська обл., Львів, вул. Пекарська, буд. 23",70,2016-06-13,132133,Банківські послуги,Інші витрати,242431,Центральний офіс,00013215,Україна,Комісія банку за переказ коштів,26004000021492,current,6.00,"ПАТ ""Креді агріколь банк""",14361575,юридична особа
СВОБОДА,Київ,60,2016-06-13,132,Інші податки,Податкові платежі,242171,Центральний офіс,00013215,Україна,Страховий платіж,26004000021492,current,19653.00,"ПрАТ ""СК"" Класік страхування життя""",33783296,юридична особа
СВОБОДА,Київ,60,2016-06-13,132,Інші податки,Податкові платежі,242170,Центральний офіс,00013215,Україна,Страховий платіж,26004000021492,current,16845.00,"ПрАТ ""СК"" Класік страхування життя""",33783296,юридична особа
СВОБОДА,Київ,60,2016-06-13,132,Інші податки,Податкові платежі,242169,Центральний офіс,00013215,Україна,Страховий платіж,26004000021492,current,21055.00,"ПрАТ ""СК"" Класік страхування життя""",33783296,юридична особа
СВОБОДА,Київ,60,2016-06-13,132,Інші податки,Податкові платежі,242168,Центральний офіс,00013215,Україна,Страховий платіж,26004000021492,current,16842.00,"ПрАТ ""СК"" Класік страхування життя""",33783296,юридична особа
СВОБОДА,Київ,60,2016-06-13,132,Інші податки,Податкові платежі,242167,Центральний офіс,00013215,Україна,Страховий платіж,26004000021492,current,18248.00,"ПрАТ ""СК"" Класік страхування життя""",33783296,юридична особа
СВОБОДА,Київ,60,2016-06-13,132,Інші податки,Податкові платежі,242166,Центральний офіс,00013215,Україна,Страховий платіж,26004000021492,current,28076.00,"ПрАТ ""СК"" Класік страхування життя""",33783296,юридична особа
СВОБОДА,,84,2016-06-13,ЯЯ1164603,"Заробітна плата, премії","Заробітна плата, лікарняні, вагітності, відрядження, компенсації",240758,Центральний офіс,00013215,Україна,Зарплата,26004000021492,current,2714.39,Демчишин Назар Зіновійович,,фізична особа
СВОБОДА,,84,2016-06-13,ЯЯ1164603,"Заробітна плата, премії","Заробітна плата, лікарняні, вагітності, відрядження, компенсації",240757,Центральний офіс,00013215,Україна,Зарплата,26004000021492,current,2028.03,Мохник Андрій Володимирович,,фізична особа
СВОБОДА,,84,2016-06-13,ЯЯ1164603,"Заробітна плата, премії","Заробітна плата, лікарняні, вагітності, відрядження, компенсації",240756,Центральний офіс,00013215,Україна,Зарплата,26004000021492,current,1266.55,Мельничук Любомир Анатолійович,,фізична особа
СВОБОДА,,84,2016-06-13,ЯЯ1164603,"Заробітна плата, премії","Заробітна плата, лікарняні, вагітності, відрядження, компенсації",240755,Центральний офіс,00013215,Україна,Зарплата,26004000021492,current,18580.79,Пелешак Ярослав Антонович,,фізична особа
СВОБОДА,,84,2016-06-13,ЯЯ1164603,"Заробітна плата, премії","Заробітна плата, лікарняні, вагітності, відрядження, компенсації",240754,Центральний офіс,00013215,Україна,Зарплата,26004000021492,current,20328.00,Тягнибок Олег Ярославович,,фізична особа
СВОБОДА,"Львівська обл., Яворівський р-н, Яворів, площа Ринок, буд. 14",58,2016-06-13,133,"Виготовлення друкованих матеріалів (плакатів, листівок, буклетів та інших агітаційних матеріалів)",Друкована агітація,239372,Центральний офіс,00013215,Україна,"Оплата за друк газети ""Свобода""",26004000021492,current,1980.00,"ТОВ ""ВД ""Молода Галичина""",32148930,юридична особа
СВОБОДА,"Київ, вул. Михайла Грушевського, буд. 1Д",70,2016-06-10,,Банківські послуги,Інші витрати,242304,Харківська міська організація,25850709,Харківська область,Погашення заборгованості за розрахункове касове обслуговування,26001052218244,current,84.81,"ПАТ КБ ""Приватбанк""",14360570,юридична особа
СВОБОДА,"Львівська обл., Львів, вул. Пекарська, буд. 23",70,2016-06-09,"126,127, 128,129, 130,131",Банківські послуги,Інші витрати,242430,Центральний офіс,00013215,Україна,Комісія банку за переказ коштів,26004000021492,current,18.00,"ПАТ ""Креді агріколь банк""",14361575,юридична особа
СВОБОДА,"Київ, вул. Олександра Кошиця, буд. 3",61,2016-06-09,128,Військовий збір,Податкові платежі,241920,Центральний офіс,00013215,Україна,Військовий збір,26004000021492,current,447.73,УДКСУ в Дарницькому районі,38021179,юридична особа
СВОБОДА,"Київ, вул. Олександра Кошиця, буд. 3",62,2016-06-09,127,Сплата ЄСВ,Податкові платежі,241677,Центральний офіс,00013215,Україна,Єдиний внесок,26004000021492,current,4917.16,ДПІ у Дарницькому р-ні м. Києва,39479227,юридична особа
СВОБОДА,"Київ, вул. Олександра Кошиця, буд. 3",63,2016-06-09,126,Податок на доходи,Податкові платежі,241441,Центральний офіс,00013215,Україна,ПДФО,26004000021492,current,5248.77,УДКСУ в Дарницькому районі,38021179,юридична особа
СВОБОДА,"Київ, вул. Лугова, буд. 1",58,2016-06-09,130,"Виготовлення друкованих матеріалів (плакатів, листівок, буклетів та інших агітаційних матеріалів)",Друкована агітація,239371,Центральний офіс,00013215,Україна,"Оплата за друк газети ""Свобода""",26004000021492,current,10000.00,"ТОВ ""Полі-прінт""",32108259,юридична особа
СВОБОДА,"Львівська обл., Яворівський р-н, Яворів, площа Ринок, буд. 14",58,2016-06-09,129,"Виготовлення друкованих матеріалів (плакатів, листівок, буклетів та інших агітаційних матеріалів)",Друкована агітація,239370,Центральний офіс,00013215,Україна,"Оплата за друк газети ""Свобода""",26004000021492,current,20150.93,"ТОВ ""ВД ""Молода Галичина""",32148930,юридична особа
СВОБОДА,"Львівська обл., Львів, вул. Івана Миколайчука, буд. 7",53,2016-06-09,131,Витрати на розміщення зовнішньої реклами,Зовнішня реклама,239301,Центральний офіс,00013215,Україна,Оплата за користування місцем для розміщення реклами,26004000021492,current,38140.00,"ПП ""СТО-ВП Плюс""",37831217,юридична особа
СВОБОДА,"Львівська обл., Львів, вул. Словацького, буд. 1",43,2016-06-08,124,Інші витрати,Інші витрати,244666,Центральний офіс,00013215,Україна,Оплата за включення до каталогу видань,26004000021492,current,1056.00,"Львівська дирекція ПАТ ""Укрпошта""",22336769,юридична особа
СВОБОДА,"Львівська обл., Львів, вул. Пекарська, буд. 23",70,2016-06-08,1,Банківські послуги,Інші витрати,242429,Центральний офіс,00013215,Україна,Комісія банку за надання довідки,26004000021492,current,200.00,"ПАТ ""Креді агріколь банк""",14361575,юридична особа
СВОБОДА,"Львівська обл., Львів, вул. Пекарська, буд. 23",70,2016-06-08,"123,124, 125",Банківські послуги,Інші витрати,242428,Центральний офіс,00013215,Україна,Комісія банку за переказ коштів,26004000021492,current,9.00,"ПАТ ""Креді агріколь банк""",14361575,юридична особа
СВОБОДА,"Київ, вул. Лугова, буд. 1",58,2016-06-08,125,"Виготовлення друкованих матеріалів (плакатів, листівок, буклетів та інших агітаційних матеріалів)",Друкована агітація,239369,Центральний офіс,00013215,Україна,"Оплата за друк газети ""Свобода""",26004000021492,current,15000.80,"ТОВ ""Полі-прінт""",32108259,юридична особа
СВОБОДА,"Львівська обл., Яворівський р-н, Яворів, площа Ринок, буд. 14",58,2016-06-08,123,"Виготовлення друкованих матеріалів (плакатів, листівок, буклетів та інших агітаційних матеріалів)",Друкована агітація,239368,Центральний офіс,00013215,Україна,"Оплата за друк газети ""Свобода""",26004000021492,current,3660.00,"ТОВ ""ВД ""Молода Галичина""",32148930,юридична особа
СВОБОДА,"Київ, вул. Михайла Грушевського, буд. 1Д",70,2016-06-07,0607ШЗКБУ,Банківські послуги,Інші витрати,242291,Городенківська районна організація,36247801,Івано-Франківська область,Комісія за виконання платежів в національній валюті згідно з відкритою офертою банку N б/н від 08.02.2016 та тарифів банку без пдв,26007052520606,current,3.00,"ПАТ КБ ""Приватбанк""",14360570,юридична особа
СВОБОДА,,74,2016-06-07,7,"Придбання канцтоварів, паперу, інших предметів і матеріалів, а також госп товари",Придбання канцтоварів та госп. товарів,240280,Городенківська районна організація,36247801,Івано-Франківська область,Господарські витрати для поповнення СКР №26256611015871 Гуменяк Василь Михайлович,26007052520606,current,4500.00,Гуменяк Василь Михайлович,,фізична особа
СВОБОДА,"Київ, вул. Михайла Грушевського, буд. 1Д",70,2016-06-06,0603Ь3иБКУ,Банківські послуги,Інші витрати,242290,Городенківська районна організація,36247801,Івано-Франківська область,Комісія за виконання платежів в національній валюті згідно з відкритою офертою банку N б/н від 08.02.2016 та тарифів банку без пдв,26007052520606,current,3.00,"ПАТ КБ ""Приватбанк""",14360570,юридична особа
СВОБОДА,,74,2016-06-06,6,"Придбання канцтоварів, паперу, інших предметів і матеріалів, а також госп товари",Придбання канцтоварів та госп. товарів,240279,Городенківська районна організація,36247801,Івано-Франківська область,Господарські витрати Гуменяк Василь Михайлович,26007052520606,current,4500.00,Гуменяк Василь Михайлович,,фізична особа
СВОБОДА,"Львівська обл., Львів, вул. Пекарська, буд. 23",70,2016-06-03,122,Банківські послуги,Інші витрати,242427,Центральний офіс,00013215,Україна,Комісія банку за переказ коштів,26004000021492,current,3.00,"ПАТ ""Креді агріколь банк""",14361575,юридична особа
СВОБОДА,"Львівська обл., Яворівський р-н, Яворів, площа Ринок, буд. 14",58,2016-06-03,122,"Виготовлення друкованих матеріалів (плакатів, листівок, буклетів та інших агітаційних матеріалів)",Друкована агітація,239367,Центральний офіс,00013215,Україна,"Оплата за друк газети ""Свобода""",26004000021492,current,20150.93,"ТОВ ""ВД ""Молода Галичина""",32148930,юридична особа
СВОБОДА,"Київ, площа Лесі Українки, буд. 1",59,2016-06-02,121,Грошова застава,Грошова застава,244443,Центральний офіс,00013215,Україна,Грошова застава за кандидата у народні депутати України,26004000021492,current,14500.00,Центральна виборча комісія,21661450,юридична особа
СВОБОДА,"Київ, площа Лесі Українки, буд. 1",59,2016-06-02,120,Грошова застава,Грошова застава,244442,Центральний офіс,00013215,Україна,Грошова застава за кандидата у народні депутати України,26004000021492,current,14500.00,Центральна виборча комісія,21661450,юридична особа
СВОБОДА,"Київ, площа Лесі Українки, буд. 1",59,2016-06-02,119,Грошова застава,Грошова застава,244441,Центральний офіс,00013215,Україна,Грошова застава за кандидата у народні депутати України,26004000021492,current,14500.00,Центральна виборча комісія,21661450,юридична особа
СВОБОДА,"Київ, площа Лесі Українки, буд. 1",59,2016-06-02,118,Грошова застава,Грошова застава,244440,Центральний офіс,00013215,Україна,Грошова застава за кандидата у народні депутати України,26004000021492,current,14500.00,Центральна виборча комісія,21661450,юридична особа
СВОБОДА,"Київ, площа Лесі Українки, буд. 1",59,2016-06-02,117,Грошова застава,Грошова застава,244439,Центральний офіс,00013215,Україна,Грошова застава за кандидата у народні депутати України,26004000021492,current,14500.00,Центральна виборча комісія,21661450,юридична особа
СВОБОДА,"Київ, площа Лесі Українки, буд. 1",59,2016-06-02,116,Грошова застава,Грошова застава,244438,Центральний офіс,00013215,Україна,Грошова застава за кандидата у народні депутати України,26004000021492,current,14500.00,Центральна виборча комісія,21661450,юридична особа
СВОБОДА,"Київ, площа Лесі Українки, буд. 1",59,2016-06-02,115,Грошова застава,Грошова застава,244437,Центральний офіс,00013215,Україна,Грошова застава за кандидата у народні депутати України,26004000021492,current,14500.00,Центральна виборча комісія,21661450,юридична особа
СВОБОДА,"Львівська обл., Львів, вул. Пекарська, буд. 23",70,2016-06-02,"113,114, 115,116, 117,118, 119,120, 121",Банківські послуги,Інші витрати,242426,Центральний офіс,00013215,Україна,Комісія банку за переказ коштів,26004000021492,current,27.00,"ПАТ ""Креді агріколь банк""",14361575,юридична особа
СВОБОДА,"Львівська обл., Львів, просп. Червоної Калини, буд. 45",76,2016-06-02,114,Послуги зв’язку,Послуги зв’язку,240299,Центральний офіс,00013215,Україна,Оплата за Інтернет,26004000021492,current,105.00,"ТОВ ""Бізнес і технології""",31442320,юридична особа
СВОБОДА,"Львівська обл., Яворівський р-н, Яворів, площа Ринок, буд. 14",58,2016-06-02,113,"Виготовлення друкованих матеріалів (плакатів, листівок, буклетів та інших агітаційних матеріалів)",Друкована агітація,239366,Центральний офіс,00013215,Україна,"Оплата за друк газети ""Свобода""",26004000021492,current,3660.00,"ТОВ ""ВД ""Молода Галичина""",32148930,юридична особа
СВОБОДА,"Київ, вул. Михайла Грушевського, буд. 1Д",70,2016-06-01,,Банківські послуги,Інші витрати,242303,Харківська міська організація,25850709,Харківська область,Комісія за обслуговування рахунку,26001052218244,current,15.19,"ПАТ КБ ""Приватбанк""",14360570,юридична особа
СВОБОДА,"Львівська обл., Львів, вул. Пекарська, буд. 23",70,2016-05-31,1,Банківські послуги,Інші витрати,242425,Центральний офіс,00013215,Україна,Комісія банку за супроводження клієнт-банку,26004000021492,current,60.00,"ПАТ ""Креді агріколь банк""",14361575,юридична особа
СВОБОДА,"Київ, вул. Миколи Лєскова, буд. 9",70,2016-05-30,,Банківські послуги,Інші витрати,242308,Красилівська районна організація,36923668,Хмельницька область,Комісія за вихідні перекази в національній валюті межах банку за період з 28.04.2016 по 29.05.2016,26005483329,current,20.00,"АТ ""Райффайзен банк Аваль""",14305909,юридична особа
СВОБОДА,"Київ, вул. Миколи Лєскова, буд. 9",70,2016-05-30,,Банківські послуги,Інші витрати,242307,Красилівська районна організація,36923668,Хмельницька область,Часткове списання комісії за користування пакетом послуг,26005483329,current,16.00,"АТ ""Райффайзен банк Аваль""",14305909,юридична особа
СВОБОДА,"Київ, вул. Миколи Лєскова, буд. 9",70,2016-05-30,26002309354,Банківські послуги,Інші витрати,242297,Кіровоградська обласна організація,36571824,Кіровоградська область,Комісія за надання виписки на паперовому носії,26002309354,current,100.00,"АТ ""Райффайзен банк Аваль""",14305909,юридична особа
СВОБОДА,"Київ, вул. Миколи Лєскова, буд. 9",70,2016-05-30,26002309354,Банківські послуги,Інші витрати,242296,Кіровоградська обласна організація,36571824,Кіровоградська область,Ко місія з а н адання виписки на паперовому носії,26002309354,current,50.00,"АТ ""Райффайзен банк Аваль""",14305909,юридична особа
СВОБОДА,"Львівська обл., Львів, вул. Пекарська, буд. 23",70,2016-05-27,"105,106, 107,108, 109,110, 111,112",Банківські послуги,Інші витрати,242424,Центральний офіс,00013215,Україна,Комісія банку за переказ коштів,26004000021492,current,24.00,"ПАТ ""Креді агріколь банк""",14361575,юридична особа
СВОБОДА,Київ,60,2016-05-27,112,Інші податки,Податкові платежі,242165,Центральний офіс,00013215,Україна,Страховий платіж,26004000021492,current,25000.00,"ПрАТ ""СК"" Класік страхування життя""",33783296,юридична особа
СВОБОДА,Київ,60,2016-05-27,111,Інші податки,Податкові платежі,242164,Центральний офіс,00013215,Україна,Страховий платіж,26004000021492,current,30000.00,"ПрАТ ""СК"" Класік страхування життя""",33783296,юридична особа
СВОБОДА,Київ,60,2016-05-27,110,Інші податки,Податкові платежі,242163,Центральний офіс,00013215,Україна,Страховий платіж,26004000021492,current,30000.00,"ПрАТ ""СК"" Класік страхування життя""",33783296,юридична особа
СВОБОДА,Київ,60,2016-05-27,109,Інші податки,Податкові платежі,242162,Центральний офіс,00013215,Україна,Страховий платіж,26004000021492,current,30000.00,"ПрАТ ""СК"" Класік страхування життя""",33783296,юридична особа
СВОБОДА,Київ,60,2016-05-27,108,Інші податки,Податкові платежі,242161,Центральний офіс,00013215,Україна,Страховий платіж,26004000021492,current,30000.00,"ПрАТ ""СК"" Класік страхування життя""",33783296,юридична особа
СВОБОДА,Київ,60,2016-05-27,107,Інші податки,Податкові платежі,242160,Центральний офіс,00013215,Україна,Страховий платіж,26004000021492,current,50000.00,"ПрАТ ""СК"" Класік страхування життя""",33783296,юридична особа
СВОБОДА,Київ,60,2016-05-27,106,Інші податки,Податкові платежі,242159,Центральний офіс,00013215,Україна,Страховий платіж,26004000021492,current,50000.00,"ПрАТ ""СК"" Класік страхування життя""",33783296,юридична особа
СВОБОДА,Київ,60,2016-05-27,105,Інші податки,Податкові платежі,242158,Центральний офіс,00013215,Україна,Страховий платіж,26004000021492,current,70000.00,"ПрАТ ""СК"" Класік страхування життя""",33783296,юридична особа
СВОБОДА,"Львівська обл., Львів, вул. Пекарська, буд. 23",70,2016-05-26,ЯЯ1164 602,Банківські послуги,Інші витрати,242423,Центральний офіс,00013215,Україна,Комісія банку за видачу готівки,26004000021492,current,62.82,"ПАТ ""Креді агріколь банк""",14361575,юридична особа
СВОБОДА,"Львівська обл., Львів, вул. Пекарська, буд. 23",70,2016-05-26,ЯЯ1164 602,Банківські послуги,Інші витрати,242422,Центральний офіс,00013215,Україна,Комісія банку за видачу готівки,26004000021492,current,13.49,"ПАТ ""Креді агріколь банк""",14361575,юридична особа
СВОБОДА,"Львівська обл., Львів, вул. Пекарська, буд. 23",70,2016-05-26,103104,Банківські послуги,Інші витрати,242421,Центральний офіс,00013215,Україна,Комісія банку за переказ коштів,26004000021492,current,6.00,"ПАТ ""Креді агріколь банк""",14361575,юридична особа
СВОБОДА,,83,2016-05-26,ЯЯ1164602,"Виплати працівникам (не зарплата): лікарняні, вагітності, відрядження, компенсації ","Заробітна плата, лікарняні, вагітності, відрядження, компенсації",241412,Центральний офіс,00013215,Україна,Благодійна допомога на оздоровлення,26004000021492,current,7851.96,Пелешак Ярослав Антонович,,фізична особа
СВОБОДА,,83,2016-05-26,ЯЯ1164602,"Виплати працівникам (не зарплата): лікарняні, вагітності, відрядження, компенсації ","Заробітна плата, лікарняні, вагітності, відрядження, компенсації",241411,Центральний офіс,00013215,Україна,Відрядження,26004000021492,current,1686.71,Пелешак Ярослав Антонович,,фізична особа
СВОБОДА,,76,2016-05-26,104,Послуги зв’язку,Послуги зв’язку,240298,Центральний офіс,00013215,Україна,Послуги зв’язку,26004000021492,current,1000.00,"ПрАТ ""Київстар""",21673832,юридична особа
СВОБОДА,"Київ, вул. Лугова, буд. 1",58,2016-05-26,103,"Виготовлення друкованих матеріалів (плакатів, листівок, буклетів та інших агітаційних матеріалів)",Друкована агітація,239365,Центральний офіс,00013215,Україна,"Оплата за друк газети ""Свобода""",26004000021492,current,25000.80,"ТОВ ""Полі-прінт""",32108259,юридична особа
СВОБОДА,"Львівська обл., Львів, вул. Пекарська, буд. 23",70,2016-05-25,"099,100, 101,102",Банківські послуги,Інші витрати,242420,Центральний офіс,00013215,Україна,Комісія банку за переказ коштів,26004000021492,current,12.00,"ПАТ ""Креді агріколь банк""",14361575,юридична особа
СВОБОДА,"Київ, вул. Олександра Кошиця, буд. 3",61,2016-05-25,102,Військовий збір,Податкові платежі,241919,Центральний офіс,00013215,Україна,Військовий збір,26004000021492,current,395.25,УДКСУ в Дарницькому районі,38021179,юридична особа
СВОБОДА,"Київ, вул. Олександра Кошиця, буд. 3",62,2016-05-25,101,Сплата ЄСВ,Податкові платежі,241676,Центральний офіс,00013215,Україна,Єдиний внесок,26004000021492,current,4302.10,ДПІ у Дарницькому р-ні м. Києва,39479227,юридична особа
СВОБОДА,"Київ, вул. Олександра Кошиця, буд. 3",63,2016-05-25,100,Податок на доходи,Податкові платежі,241440,Центральний офіс,00013215,Україна,ПДФО,26004000021492,current,4743.00,УДКСУ в Дарницькому районі,38021179,юридична особа
СВОБОДА,"Львівська обл., Яворівський р-н, Яворів, площа Ринок, буд. 14",58,2016-05-25,99,"Виготовлення друкованих матеріалів (плакатів, листівок, буклетів та інших агітаційних матеріалів)",Друкована агітація,239364,Центральний офіс,00013215,Україна,"Оплата за друк газети ""Свобода""",26004000021492,current,40392.58,"ТОВ ""ВД ""Молода Галичина""",32148930,юридична особа
СВОБОДА,,80,2016-05-23,Касовий ордер №1/23.05,"Транспортні послуги (квитки, пасажирські перевезення і т.д.)","Транспортні послуги (квитки, пасажирські перевезення і т.д.)",244651,Шепетівська міська організація,33990155,Хмельницька область,Оплата за транспортні послуги,26008052301651,current,1709.18,Медлярський Р І,,фізична особа
СВОБОДА,"Львівська обл., Львів, вул. Пекарська, буд. 23",70,2016-05-18,98,Банківські послуги,Інші витрати,242419,Центральний офіс,00013215,Україна,Комісія банку за переказ коштів,26004000021492,current,3.00,"ПАТ ""Креді агріколь банк""",14361575,юридична особа
СВОБОДА,"Харківська обл., Харків, вул. Чернишевська, буд. 59",79,2016-05-18,1,"Оренда будинків і приміщень та експлуатаційні витрати (прибирання, страхування орендованих будинків, охорона, сигналізація, ремонт, вивіз сміття, тощо)",Оренда нерухомості,239690,Харківська міська організація,25850709,Харківська область,Сплата за оренду приміщення,26001052218244,current,2388.00,Харківська обласна організація Національної спілки письменників України,14072262,юридична особа
СВОБОДА,"Львівська обл., Львів, вул. Пекарська, буд. 23",70,2016-05-17,96097,Банківські послуги,Інші витрати,242418,Центральний офіс,00013215,Україна,Комісія банку за переказ коштів,26004000021492,current,6.00,"ПАТ ""Креді агріколь банк""",14361575,юридична особа
СВОБОДА,"Львівська обл., Львів, вул. Володимира Винниченка, буд. 8",79,2016-05-17,97,"Оренда будинків і приміщень та експлуатаційні витрати (прибирання, страхування орендованих будинків, охорона, сигналізація, ремонт, вивіз сміття, тощо)",Оренда нерухомості,239725,Центральний офіс,00013215,Україна,Оплата за прибирання території,26004000021492,current,21.96,"КП ЛОР ""Нерухомість та майно""",33358550,юридична особа
СВОБОДА,"Львівська обл., Львів, вул. Івана Миколайчука, буд. 7",53,2016-05-17,96,Витрати на розміщення зовнішньої реклами,Зовнішня реклама,239300,Центральний офіс,00013215,Україна,Оплата за користування місцем для розміщення реклами,26004000021492,current,38140.00,"ПП ""СТО-ВП Плюс""",37831217,юридична особа
СВОБОДА,"Львівська обл., Львів, вул. Пекарська, буд. 23",70,2016-05-13,"093,094, 095",Банківські послуги,Інші витрати,242417,Центральний офіс,00013215,Україна,Комісія банку за переказ коштів,26004000021492,current,9.00,"ПАТ ""Креді агріколь банк""",14361575,юридична особа
СВОБОДА,"Київ, вул. Лугова, буд. 1",58,2016-05-13,94,"Виготовлення друкованих матеріалів (плакатів, листівок, буклетів та інших агітаційних матеріалів)",Друкована агітація,239363,Центральний офіс,00013215,Україна,"Оплата за друк газети ""Свобода""",26004000021492,current,25000.80,"ТОВ ""Полі-прінт""",32108259,юридична особа
СВОБОДА,"Львівська обл., Яворівський р-н, Яворів, площа Ринок, буд. 14",58,2016-05-13,93,"Виготовлення друкованих матеріалів (плакатів, листівок, буклетів та інших агітаційних матеріалів)",Друкована агітація,239362,Центральний офіс,00013215,Україна,"Оплата за друк газети ""Свобода""",26004000021492,current,20196.29,"ТОВ ""ВД ""Молода Галичина""",32148930,юридична особа
СВОБОДА,"Львівська обл., Львів, вул. Пекарська, буд. 23",70,2016-05-11,ЯЯ1164 601,Банківські послуги,Інші витрати,242416,Центральний офіс,00013215,Україна,Комісія банку за видачу готівки,26004000021492,current,1077.78,"ПАТ ""Креді агріколь банк""",14361575,юридична особа
СВОБОДА,,84,2016-05-11,ЯЯ1164601,"Заробітна плата, премії","Заробітна плата, лікарняні, вагітності, відрядження, компенсації",240753,Центральний офіс,00013215,Україна,Зарплата,26004000021492,current,8143.17,Демчишин Назар Зіновійович,,фізична особа
СВОБОДА,,84,2016-05-11,ЯЯ1164601,"Заробітна плата, премії","Заробітна плата, лікарняні, вагітності, відрядження, компенсації",240752,Центральний офіс,00013215,Україна,Зарплата,26004000021492,current,6068.56,Мохник Андрій Володимирович,,фізична особа
СВОБОДА,,84,2016-05-11,ЯЯ1164601,"Заробітна плата, премії","Заробітна плата, лікарняні, вагітності, відрядження, компенсації",240751,Центральний офіс,00013215,Україна,Зарплата,26004000021492,current,3784.12,Мельничук Любомир Анатолійович,,фізична особа
СВОБОДА,,84,2016-05-11,ЯЯ1164601,"Заробітна плата, премії","Заробітна плата, лікарняні, вагітності, відрядження, компенсації",240750,Центральний офіс,00013215,Україна,Зарплата,26004000021492,current,55742.37,Пелешак Ярослав Антонович,,фізична особа
СВОБОДА,,84,2016-05-11,ЯЯ1164601,"Заробітна плата, премії","Заробітна плата, лікарняні, вагітності, відрядження, компенсації",240749,Центральний офіс,00013215,Україна,Зарплата,26004000021492,current,60984.00,Тягнибок Олег Ярославович,,фізична особа
СВОБОДА,,80,2016-05-06,Касовий ордер №1/06.05,"Транспортні послуги (квитки, пасажирські перевезення і т.д.)","Транспортні послуги (квитки, пасажирські перевезення і т.д.)",244652,Шепетівська міська організація,33990155,Хмельницька область,Оплата за транспортні послуги,26008052301651,current,1709.18,Медлярський Р І,,фізична особа
СВОБОДА,"Львівська обл., Львів, вул. Пекарська, буд. 23",70,2016-05-05,"088,089, 090,091, 092",Банківські послуги,Інші витрати,242415,Центральний офіс,00013215,Україна,Комісія банку за переказ коштів,26004000021492,current,15.00,"ПАТ ""Креді агріколь банк""",14361575,юридична особа
СВОБОДА,"Київ, вул. Олександра Кошиця, буд. 3",61,2016-05-05,91,Військовий збір,Податкові платежі,241918,Центральний офіс,00013215,Україна,Військовий збір,26004000021492,current,442.42,УДКСУ в Дарницькому районі,38021179,юридична особа
СВОБОДА,"Київ, вул. Олександра Кошиця, буд. 3",62,2016-05-05,90,Сплата ЄСВ,Податкові платежі,241675,Центральний офіс,00013215,Україна,Єдиний внесок,26004000021492,current,4846.86,ДПІ у Дарницькому р-ні м. Києва,39479227,юридична особа
СВОБОДА,"Київ, вул. Олександра Кошиця, буд. 3",63,2016-05-05,89,Податок на доходи,Податкові платежі,241439,Центральний офіс,00013215,Україна,ПДФО,26004000021492,current,5184.97,УДКСУ в Дарницькому районі,38021179,юридична особа
СВОБОДА,"Львівська обл., Яворівський р-н, Яворів, площа Ринок, буд. 14",58,2016-05-05,88,"Виготовлення друкованих матеріалів (плакатів, листівок, буклетів та інших агітаційних матеріалів)",Друкована агітація,239361,Центральний офіс,00013215,Україна,"Оплата за друк газети ""Свобода""",26004000021492,current,20297.09,"ТОВ ""ВД ""Молода Галичина""",32148930,юридична особа
СВОБОДА,"Київ, вул. Михайла Грушевського, буд. 1Д",70,2016-05-04,Л864і58к9р,Банківські послуги,Інші витрати,242302,Харківська міська організація,25850709,Харківська область,Комісія за обслуговування,26001052218244,current,100.00,"ПАТ КБ ""Приватбанк""",14360570,юридична особа
СВОБОДА,"Київ, вул. Михайла Грушевського, буд. 1Д",70,2016-05-04,AS64t5grbp,Банківські послуги,Інші витрати,242289,Городенківська районна організація,36247801,Івано-Франківська область,Комісія за обслуговування рахунку квітень 2016 згідно договору банківського рахунку від 08.02.2016 без пдв,26007052520606,current,100.00,"ПАТ КБ ""Приватбанк""",14360570,юридична особа
СВОБОДА,"Львівська обл., Львів, вул. Пекарська, буд. 23",70,2016-04-29,1,Банківські послуги,Інші витрати,242414,Центральний офіс,00013215,Україна,Комісія банку за супроводження клієнт-банку,26004000021492,current,60.00,"ПАТ ""Креді агріколь банк""",14361575,юридична особа
СВОБОДА,"Львівська обл., Львів, вул. Пекарська, буд. 23",70,2016-04-29,87,Банківські послуги,Інші витрати,242413,Центральний офіс,00013215,Україна,Комісія банку за переказ коштів,26004000021492,current,3.00,"ПАТ ""Креді агріколь банк""",14361575,юридична особа
СВОБОДА,"Київ, вул. Госпітальна, буд. 12Г",70,2016-04-29,92857167,Банківські послуги,Інші витрати,242292,Бердичівська міська організація,36710964,Житомирська область,списання щомісячної плати за обслуговування тарифного пакету за квітень 2016 року,26009430345917,current,35.00,"АТ ""Ощадбанк""",00032129,юридична особа
СВОБОДА,"Львівська обл., Львів, вул. Пекарська, буд. 23",70,2016-04-28,"081,082, 084,085",Банківські послуги,Інші витрати,242412,Центральний офіс,00013215,Україна,Комісія банку за переказ коштів,26004000021492,current,12.00,"ПАТ ""Креді агріколь банк""",14361575,юридична особа
СВОБОДА,"Київ, вул. Миколи Лєскова, буд. 9",70,2016-04-28,,Банківські послуги,Інші витрати,242306,Красилівська районна організація,36923668,Хмельницька область,Часткове списання комісії за користування пакетом послуг,26005483329,current,64.00,"АТ ""Райффайзен банк Аваль""",14305909,юридична особа
СВОБОДА,"Київ, вул. Миколи Лєскова, буд. 9",70,2016-04-28,,Банківські послуги,Інші витрати,242305,Красилівська районна організація,36923668,Хмельницька область,Часткове списання комісії за користування пакетом послуг,26005483329,current,36.00,"АТ ""Райффайзен банк Аваль""",14305909,юридична особа
СВОБОДА,"Київ, вул. Миколи Лєскова, буд. 9",70,2016-04-28,26002309354,Банківські послуги,Інші витрати,242295,Кіровоградська обласна організація,36571824,Кіровоградська область,Комісія за надання виписки на паперовому носії,26002309354,current,100.00,"АТ ""Райффайзен банк Аваль""",14305909,юридична особа
СВОБОДА,"Київ, вул. Миколи Лєскова, буд. 9",70,2016-04-28,26002309354,Банківські послуги,Інші витрати,242294,Кіровоградська обласна організація,36571824,Кіровоградська область,Комісія за надання виписки на паперовому носії,26002309354,current,50.00,"АТ ""Райффайзен банк Аваль""",14305909,юридична особа
СВОБОДА,"Львівська обл., Львів, вул. Золота, буд. 42",79,2016-04-28,84,"Оренда будинків і приміщень та експлуатаційні витрати (прибирання, страхування орендованих будинків, охорона, сигналізація, ремонт, вивіз сміття, тощо)",Оренда нерухомості,239724,Центральний офіс,00013215,Україна,Оплата за постачання природного газу,26004000021492,current,5818.79,"ТОВ ""Львівгаз збут""",39594527,юридична особа
СВОБОДА,"Львівська обл., Львів, вул. Жовківська, буд. 22",79,2016-04-28,86,"Оренда будинків і приміщень та експлуатаційні витрати (прибирання, страхування орендованих будинків, охорона, сигналізація, ремонт, вивіз сміття, тощо)",Оренда нерухомості,239723,Центральний офіс,00013215,Україна,Оплата за оренду приміщення,26004000021492,current,3600.00,"ПП ""Система ЛЯ""",34462313,юридична особа
СВОБОДА,"Львівська обл., Львів, вул. Золота, буд. 42",79,2016-04-28,85,"Оренда будинків і приміщень та експлуатаційні витрати (прибирання, страхування орендованих будинків, охорона, сигналізація, ремонт, вивіз сміття, тощо)",Оренда нерухомості,239722,Центральний офіс,00013215,Україна,Оплата за розподіл природного газу,26004000021492,current,224.10,"ПАТ ""Львівгаз""",03349039,юридична особа
СВОБОДА,"Львівська обл., Львів, вул. Жовківська, буд. 22",79,2016-04-28,83,"Оренда будинків і приміщень та експлуатаційні витрати (прибирання, страхування орендованих будинків, охорона, сигналізація, ремонт, вивіз сміття, тощо)",Оренда нерухомості,239721,Центральний офіс,00013215,Україна,Оплата за електроенергію,26004000021492,current,32.42,"ПП ""Система ЛЯ""",34462313,юридична особа
СВОБОДА,"Київ, вул. Лугова, буд. 1",58,2016-04-28,82,"Виготовлення друкованих матеріалів (плакатів, листівок, буклетів та інших агітаційних матеріалів)",Друкована агітація,239360,Центральний офіс,00013215,Україна,"Оплата за друк газети ""Свобода""",26004000021492,current,25000.80,"ТОВ ""Полі-прінт""",32108259,юридична особа
СВОБОДА,"Львівська обл., Яворівський р-н, Яворів, площа Ринок, буд. 14",58,2016-04-28,81,"Виготовлення друкованих матеріалів (плакатів, листівок, буклетів та інших агітаційних матеріалів)",Друкована агітація,239359,Центральний офіс,00013215,Україна,"Оплата за друк газети ""Свобода""",26004000021492,current,20180.16,"ТОВ ""ВД ""Молода Галичина""",32148930,юридична особа
СВОБОДА,,58,2016-04-28,,"Виготовлення друкованих матеріалів (плакатів, листівок, буклетів та інших агітаційних матеріалів)",Друкована агітація,239333,Красилівська районна організація,36923668,Хмельницька область,"Оплата за друк газети ""Свобода Красилів""",26005483329,current,1350.00,Крисюк С Г,,фізична особа
СВОБОДА,"Рівненська обл., Радивилівський р-н, Радивилів",70,2016-04-22,,Банківські послуги,Інші витрати,242301,Радивилівська районна організація,35314604,Рівненська область,Комісія за розрах.обслю рахунків,26427301994650,current,8.00,"Радивилівська районна організація Всеукраїнське обʼєднання ""Свобода""",35314604,юридична особа
СВОБОДА,"Львівська обл., Львів, вул. Пекарська, буд. 23",70,2016-04-21,"79,08",Банківські послуги,Інші витрати,242411,Центральний офіс,00013215,Україна,Комісія банку за переказ коштів,26004000021492,current,6.00,"ПАТ ""Креді агріколь банк""",14361575,юридична особа
СВОБОДА,"Львівська обл., Львів, вул. Героїв УПА, буд. 73",79,2016-04-21,80,"Оренда будинків і приміщень та експлуатаційні витрати (прибирання, страхування орендованих будинків, охорона, сигналізація, ремонт, вивіз сміття, тощо)",Оренда нерухомості,239720,Центральний офіс,00013215,Україна,Оплата за питну воду,26004000021492,current,82.00,"ПрАТ ""ІДС Аква Сервіс""",25242750,юридична особа
СВОБОДА,"Львівська обл., Львів, вул. Володимира Винниченка, буд. 8",79,2016-04-21,79,"Оренда будинків і приміщень та експлуатаційні витрати (прибирання, страхування орендованих будинків, охорона, сигналізація, ремонт, вивіз сміття, тощо)",Оренда нерухомості,239719,Центральний офіс,00013215,Україна,Оплата за прибирання території,26004000021492,current,22.71,"КП ЛОР ""Нерухомість та майно""",33358550,юридична особа
СВОБОДА,"Львівська обл., Львів, вул. Пекарська, буд. 23",70,2016-04-20,"072,073, 074,075, 076,077, 078",Банківські послуги,Інші витрати,242410,Центральний офіс,00013215,Україна,Комісія банку за переказ коштів,26004000021492,current,21.00,"ПАТ ""Креді агріколь банк""",14361575,юридична особа
СВОБОДА,"Львівська обл., Львів, вул. Стрийська, буд. 35",60,2016-04-20,78,Інші податки,Податкові платежі,242157,Центральний офіс,00013215,Україна,Земельний податок,26004000021492,current,326.65,УДКСУ у Личаківському районі м. Львова,38007620,юридична особа
СВОБОДА,"Київ, вул. Олександра Кошиця, буд. 3",61,2016-04-20,77,Військовий збір,Податкові платежі,241917,Центральний офіс,00013215,Україна,Військовий збір,26004000021492,current,392.25,УДКСУ в Дарницькому районі,38021179,юридична особа
СВОБОДА,"Київ, вул. Олександра Кошиця, буд. 3",62,2016-04-20,76,Сплата ЄСВ,Податкові платежі,241674,Центральний офіс,00013215,Україна,Єдиний внесок,26004000021492,current,4258.10,ДПІ у Дарницькому р-ні м. Києва,39479227,юридична особа
СВОБОДА,"Київ, вул. Олександра Кошиця, буд. 3",63,2016-04-20,75,Податок на доходи,Податкові платежі,241438,Центральний офіс,00013215,Україна,ПДФО,26004000021492,current,4707.00,УДКСУ в Дарницькому районі,38021179,юридична особа
СВОБОДА,"Львівська обл., Львів, просп. Червоної Калини, буд. 45",76,2016-04-20,74,Послуги зв’язку,Послуги зв’язку,240297,Центральний офіс,00013215,Україна,Оплата за Інтернет,26004000021492,current,105.00,"ТОВ ""Бізнес і технології""",31442320,юридична особа
СВОБОДА,"Львівська обл., Яворівський р-н, Яворів, площа Ринок, буд. 14",58,2016-04-20,73,"Виготовлення друкованих матеріалів (плакатів, листівок, буклетів та інших агітаційних матеріалів)",Друкована агітація,239358,Центральний офіс,00013215,Україна,"Оплата за друк газети ""Свобода""",26004000021492,current,20180.16,"ТОВ ""ВД ""Молода Галичина""",32148930,юридична особа
СВОБОДА,"Львівська обл., Львів, вул. Івана Миколайчука, буд. 7",53,2016-04-20,72,Витрати на розміщення зовнішньої реклами,Зовнішня реклама,239299,Центральний офіс,00013215,Україна,Оплата за користування місцем для розміщення реклами,26004000021492,current,38140.00,"ПП ""СТО-ВП Плюс""",37831217,юридична особа
СВОБОДА,Київ,64,2016-04-15,44,Повернення платежів партії,Повернення,242259,Тернопільська обласна організація,35708383,Тернопільська область,Повернення коштів згідно листа 777 від 04.11.15р.,26000055115389,current,75344.00,"Центральний офіс Всеукраїнське обʼєднання ""Свобода""",00013215,юридична особа
СВОБОДА,"Львівська обл., Львів, вул. Пекарська, буд. 23",70,2016-04-14,"069,070, 071",Банківські послуги,Інші витрати,242409,Центральний офіс,00013215,Україна,Комісія банку за переказ коштів,26004000021492,current,9.00,"ПАТ ""Креді агріколь банк""",14361575,юридична особа
СВОБОДА,"Львівська обл., Яворівський р-н, Яворів, площа Ринок, буд. 14",58,2016-04-14,69,"Виготовлення друкованих матеріалів (плакатів, листівок, буклетів та інших агітаційних матеріалів)",Друкована агітація,239357,Центральний офіс,00013215,Україна,"Оплата за друк газети ""Свобода""",26004000021492,current,40360.32,"ТОВ ""ВД ""Молода Галичина""",32148930,юридична особа
СВОБОДА,"Київ, вул. Лугова, буд. 1",58,2016-04-14,71,"Виготовлення друкованих матеріалів (плакатів, листівок, буклетів та інших агітаційних матеріалів)",Друкована агітація,239356,Центральний офіс,00013215,Україна,"Оплата за друк газети ""Свобода""",26004000021492,current,25000.80,"ТОВ ""Полі-прінт""",32108259,юридична особа
СВОБОДА,"Львівська обл., Яворівський р-н, Яворів, площа Ринок, буд. 14",58,2016-04-14,70,"Виготовлення друкованих матеріалів (плакатів, листівок, буклетів та інших агітаційних матеріалів)",Друкована агітація,239355,Центральний офіс,00013215,Україна,"Оплата за друк газети ""Свобода""",26004000021492,current,3660.00,"ТОВ ""ВД ""Молода Галичина""",32148930,юридична особа
СВОБОДА,"Львівська обл., Львів, вул. Пекарська, буд. 23",70,2016-04-08,68,Банківські послуги,Інші витрати,242408,Центральний офіс,00013215,Україна,Комісія банку за переказ коштів,26004000021492,current,3.00,"ПАТ ""Креді агріколь банк""",14361575,юридична особа
СВОБОДА,"Київ, вул. Симона Петлюри, буд. 14",60,2016-04-08,68,Інші податки,Податкові платежі,242156,Центральний офіс,00013215,Україна,Страховий платіж,26004000021492,current,19652.00,"ПрАТ ""Метлайф""",32109907,юридична особа
СВОБОДА,"Київ, вул. Симона Петлюри, буд. 14",60,2016-04-08,68,Інші податки,Податкові платежі,242155,Центральний офіс,00013215,Україна,Страховий платіж,26004000021492,current,16844.00,"ПрАТ ""Метлайф""",32109907,юридична особа
СВОБОДА,"Київ, вул. Симона Петлюри, буд. 14",60,2016-04-08,68,Інші податки,Податкові платежі,242154,Центральний офіс,00013215,Україна,Страховий платіж,26004000021492,current,21057.00,"ПрАТ ""Метлайф""",32109907,юридична особа
СВОБОДА,"Київ, вул. Симона Петлюри, буд. 14",60,2016-04-08,68,Інші податки,Податкові платежі,242153,Центральний офіс,00013215,Україна,Страховий платіж,26004000021492,current,16845.00,"ПрАТ ""Метлайф""",32109907,юридична особа
СВОБОДА,"Київ, вул. Симона Петлюри, буд. 14",60,2016-04-08,68,Інші податки,Податкові платежі,242152,Центральний офіс,00013215,Україна,Страховий платіж,26004000021492,current,18249.00,"ПрАТ ""Метлайф""",32109907,юридична особа
СВОБОДА,"Київ, вул. Симона Петлюри, буд. 14",60,2016-04-08,68,Інші податки,Податкові платежі,242151,Центральний офіс,00013215,Україна,Страховий платіж,26004000021492,current,28077.00,"ПрАТ ""Метлайф""",32109907,юридична особа
СВОБОДА,"Львівська обл., Львів, вул. Пекарська, буд. 23",70,2016-04-07,"065,066, 067",Банківські послуги,Інші витрати,242407,Центральний офіс,00013215,Україна,Комісія банку за переказ коштів,26004000021492,current,9.00,"ПАТ ""Креді агріколь банк""",14361575,юридична особа
СВОБОДА,"Київ, вул. Олександра Кошиця, буд. 3",61,2016-04-07,67,Військовий збір,Податкові платежі,241916,Центральний офіс,00013215,Україна,Військовий збір,26004000021492,current,443.00,УДКСУ в Дарницькому районі,38021179,юридична особа
СВОБОДА,"Київ, вул. Олександра Кошиця, буд. 3",62,2016-04-07,66,Сплата ЄСВ,Податкові платежі,241673,Центральний офіс,00013215,Україна,Єдиний внесок,26004000021492,current,4855.35,ДПІ у Дарницькому р-ні м. Києва,39479227,юридична особа
СВОБОДА,"Київ, вул. Олександра Кошиця, буд. 3",63,2016-04-07,65,Податок на доходи,Податкові платежі,241437,Центральний офіс,00013215,Україна,ПДФО,26004000021492,current,5191.92,УДКСУ в Дарницькому районі,38021179,юридична особа
СВОБОДА,,53,2016-04-05,,Витрати на розміщення зовнішньої реклами,Зовнішня реклама,239295,Красилівська районна організація,36923668,Хмельницька область,Оплата за банери та установку люверса зг рахунку №ХМ-04.04.2016,26005483329,current,1885.00,Гуцал Сергій Володимирович,,фізична особа
СВОБОДА,"Київ, вул. Михайла Грушевського, буд. 1Д",70,2016-04-02,,Банківські послуги,Інші витрати,242311,Шепетівська міська організація,33990155,Хмельницька область,Еквайрингові комісія без ПДВ 01.04.2016,26008052301651,current,25.64,"ПАТ КБ ""Приватбанк""",14360570,юридична особа
СВОБОДА,"Львівська обл., Львів, вул. Пекарська, буд. 23",70,2016-03-31,1,Банківські послуги,Інші витрати,242406,Центральний офіс,00013215,Україна,Комісія банку за супроводження клієнт-банку,26004000021492,current,60.00,"ПАТ ""Креді агріколь банк""",14361575,юридична особа
СВОБОДА,"Львівська обл., Львів, вул. Пекарська, буд. 23",70,2016-03-31,"062,063, 064",Банківські послуги,Інші витрати,242405,Центральний офіс,00013215,Україна,Комісія банку за переказ коштів,26004000021492,current,9.00,"ПАТ ""Креді агріколь банк""",14361575,юридична особа
СВОБОДА,"Львівська обл., Львів, вул. Грабовського, буд. 11",70,2016-03-31,1192632,Банківські послуги,Інші витрати,242279,Івано-Франківська міська організація,36498192,Івано-Франківська область,Погашення % відповідно до угоди №26006000006997 від 05.10.2010 за 05.10.2010 -31.03.2016,26006000006997,current,1.45,"ПАТ ""ВіЕс Банк""",19358632,юридична особа
СВОБОДА,"Київ, вул. Госпітальна, буд. 12Г",70,2016-03-31,,Банківські послуги,Інші витрати,242272,Бердичівська міська організація,36710964,Житомирська область,списання щомісячної плати за обслуговування тарифного пакету за березень 2016 року,26009430345917,current,35.00,"АТ ""Ощадбанк""",00032129,юридична особа
СВОБОДА,"Київ, вул. Лугова, буд. 1",58,2016-03-31,64,"Виготовлення друкованих матеріалів (плакатів, листівок, буклетів та інших агітаційних матеріалів)",Друкована агітація,239354,Центральний офіс,00013215,Україна,"Оплата за друк газети ""Свобода""",26004000021492,current,25000.80,"ТОВ ""Полі-прінт""",32108259,юридична особа
СВОБОДА,"Львівська обл., Яворівський р-н, Яворів, площа Ринок, буд. 14",58,2016-03-31,62063,"Виготовлення друкованих матеріалів (плакатів, листівок, буклетів та інших агітаційних матеріалів)",Друкована агітація,239353,Центральний офіс,00013215,Україна,"Оплата за друк газети ""Свобода""",26004000021492,current,25712.93,"ТОВ ""ВД ""Молода Галичина""",32148930,юридична особа
СВОБОДА,"Рівненська обл., Радивилівський р-н, Радивилів",70,2016-03-25,111711451,Банківські послуги,Інші витрати,242286,Радивилівська районна організація,35314604,Рівненська область,Комісія за розрах.обслю рахунків,26428300994650,current,6.67,"Радивилівська районна організація Всеукраїнське обʼєднання ""Свобода""",35314604,юридична особа
СВОБОДА,"Львівська обл., Львів, вул. Пекарська, буд. 23",70,2016-03-24,"059,060, 061",Банківські послуги,Інші витрати,242404,Центральний офіс,00013215,Україна,Комісія банку за переказ коштів,26004000021492,current,9.00,"ПАТ ""Креді агріколь банк""",14361575,юридична особа
СВОБОДА,"Львівська обл., Львів, вул. Стрийська, буд. 35",60,2016-03-24,61,Інші податки,Податкові платежі,242150,Центральний офіс,00013215,Україна,Земельний податок,26004000021492,current,326.65,УДКСУ у Личаківському районі м. Львова,38007620,юридична особа
СВОБОДА,"Львівська обл., Львів, вул. Володимира Винниченка, буд. 8",79,2016-03-24,60,"Оренда будинків і приміщень та експлуатаційні витрати (прибирання, страхування орендованих будинків, охорона, сигналізація, ремонт, вивіз сміття, тощо)",Оренда нерухомості,239718,Центральний офіс,00013215,Україна,Оплата за прибирання території,26004000021492,current,41.97,"КП ЛОР ""Нерухомість та майно""",33358550,юридична особа
СВОБОДА,"Львівська обл., Яворівський р-н, Яворів, площа Ринок, буд. 14",58,2016-03-24,59,"Виготовлення друкованих матеріалів (плакатів, листівок, буклетів та інших агітаційних матеріалів)",Друкована агітація,239352,Центральний офіс,00013215,Україна,"Оплата за друк газети ""Свобода""",26004000021492,current,20402.93,"ТОВ ""ВД ""Молода Галичина""",32148930,юридична особа
СВОБОДА,"Київ, вул. Михайла Грушевського, буд. 1Д",70,2016-03-23,оозгзтпгім,Банківські послуги,Інші витрати,242269,Дніпропетровська обласна організація,26511459,Дніпропетровська область,22.03.2016 САОЖ844 еквайрингова комісія без ПДВ 22.03.2016,26005050264582,current,75.00,"ПАТ КБ ""Приватбанк""",14360570,юридична особа
СВОБОДА,"Дніпропетровська обл., Камʼянське, вул. Січеславський шлях, буд. 71",74,2016-03-23,С0323Тиг¥О,"Придбання канцтоварів, паперу, інших предметів і матеріалів, а також госп товари",Придбання канцтоварів та госп. товарів,240278,Дніпропетровська обласна організація,26511459,Дніпропетровська область,Купівля паперу,26005050264582,current,10000.00,Лоза Дмитро Анатолійович,,фізична особа
СВОБОДА,"Львівська обл., Львів, вул. Пекарська, буд. 23",70,2016-03-22,452,Банківські послуги,Інші витрати,242403,Центральний офіс,00013215,Україна,Комісія банку за оформлення чекової книжки,26004000021492,current,50.00,"ПАТ ""Креді агріколь банк""",14361575,юридична особа
СВОБОДА,"Львівська обл., Львів, вул. Пекарська, буд. 23",70,2016-03-22,"055,056, 057,058",Банківські послуги,Інші витрати,242402,Центральний офіс,00013215,Україна,Комісія банку за переказ коштів,26004000021492,current,12.00,"ПАТ ""Креді агріколь банк""",14361575,юридична особа
СВОБОДА,"Рівненська обл., Радивилівський р-н, Радивилів",70,2016-03-22,111486929,Банківські послуги,Інші витрати,242285,Радивилівська районна організація,35314604,Рівненська область,Комісія за розрах.обслю рахунків,26428300994650,current,17.33,"Радивилівська районна організація Всеукраїнське обʼєднання ""Свобода""",35314604,юридична особа
СВОБОДА,"Київ, вул. Олександра Кошиця, буд. 3",61,2016-03-22,57,Військовий збір,Податкові платежі,241915,Центральний офіс,00013215,Україна,Військовий збір,26004000021492,current,392.25,УДКСУ в Дарницькому районі,38021179,юридична особа
СВОБОДА,"Київ, вул. Олександра Кошиця, буд. 3",62,2016-03-22,56,Сплата ЄСВ,Податкові платежі,241672,Центральний офіс,00013215,Україна,Єдиний внесок,26004000021492,current,4258.10,ДПІ у Дарницькому р-ні м. Києва,39479227,юридична особа
СВОБОДА,"Київ, вул. Олександра Кошиця, буд. 3",63,2016-03-22,55,Податок на доходи,Податкові платежі,241436,Центральний офіс,00013215,Україна,ПДФО,26004000021492,current,4707.00,УДКСУ в Дарницькому районі,38021179,юридична особа
СВОБОДА,"Львівська обл., Львів, вул. Івана Миколайчука, буд. 7",53,2016-03-22,58,Витрати на розміщення зовнішньої реклами,Зовнішня реклама,239298,Центральний офіс,00013215,Україна,Оплата за користування місцем для розміщення реклами,26004000021492,current,36603.91,"ПП ""СТО-ВП Плюс""",37831217,юридична особа
СВОБОДА,"Рівненська обл., Радивилівський р-н, Радивилів",69,2016-03-21,6,Організація заходів та інші організаційні послуги,Організація заходів та інші організаційні послуги,244657,Радивилівська районна організація,35314604,Рівненська область,За оренду приміщення будинку культури,26428300994650,current,78.00,УДКСУ у Радивилівському районі Рівненської області,37929592,юридична особа
СВОБОДА,"Рівненська обл., Радивилівський р-н, Радивилів",79,2016-03-21,4,"Оренда будинків і приміщень та експлуатаційні витрати (прибирання, страхування орендованих будинків, охорона, сигналізація, ремонт, вивіз сміття, тощо)",Оренда нерухомості,239689,Радивилівська районна організація,35314604,Рівненська область,За оренду приміщення,26428300994650,current,182.00,Відділ культури і туризму Радивилівської районної державної адміністрації,02230141,юридична особа
СВОБОДА,"Рівненська обл., Радивилівський р-н, Радивилів",79,2016-03-21,5,"Оренда будинків і приміщень та експлуатаційні витрати (прибирання, страхування орендованих будинків, охорона, сигналізація, ремонт, вивіз сміття, тощо)",Оренда нерухомості,239688,Радивилівська районна організація,35314604,Рівненська область,За електроенергію приміщення культури,26428300994650,current,40.00,Відділ культури і туризму Радивилівської районної державної адміністрації,02230141,юридична особа
СВОБОДА,"Львівська обл., Львів, вул. Пекарська, буд. 23",70,2016-03-17,"050,051, 052,053",Банківські послуги,Інші витрати,242401,Центральний офіс,00013215,Україна,Комісія банку за переказ коштів,26004000021492,current,12.00,"ПАТ ""Креді агріколь банк""",14361575,юридична особа
СВОБОДА,"Київ, вул. Михайла Грушевського, буд. 1Д",70,2016-03-17,0317Ь2РЄРУ,Банківські послуги,Інші витрати,242284,Полтавська міська організація,37115894,Полтавська область,Комісія за дебетовий платіж,26003054616549,current,3.00,"ПАТ КБ ""Приватбанк""",14360570,юридична особа
СВОБОДА,"Львівська обл., Львів, просп. Червоної Калини, буд. 45",76,2016-03-17,52,Послуги зв’язку,Послуги зв’язку,240296,Центральний офіс,00013215,Україна,Оплата за Інтернет,26004000021492,current,105.00,"ТОВ ""Бізнес і технології""",31442320,юридична особа
СВОБОДА,Київ,72,2016-03-17,1,"Придбання, ремонт офісної техніки та програмного забезпечення (Бухгалтерські програми, Ліга.закон, домени)",Придбання офісної техніки та програмного забезпечення,240253,Полтавська міська організація,37115894,Полтавська область,Благодійний внесок на матеріально-технічне забезпечення,26003054616549,current,87.00,Міністерство оборони України,00034022,юридична особа
СВОБОДА,"Львівська обл., Львів, вул. Жовківська, буд. 22",79,2016-03-17,54,"Оренда будинків і приміщень та експлуатаційні витрати (прибирання, страхування орендованих будинків, охорона, сигналізація, ремонт, вивіз сміття, тощо)",Оренда нерухомості,239717,Центральний офіс,00013215,Україна,Оплата за електроенергію,26004000021492,current,164.03,"ПП ""Система ЛЯ""",34462313,юридична особа
СВОБОДА,"Львівська обл., Львів",79,2016-03-17,53,"Оренда будинків і приміщень та експлуатаційні витрати (прибирання, страхування орендованих будинків, охорона, сигналізація, ремонт, вивіз сміття, тощо)",Оренда нерухомості,239716,Центральний офіс,00013215,Україна,Оплата за питну воду,26004000021492,current,82.00,"ПрАТ ""ІДС Аква Сервіс""",25242750,юридична особа
СВОБОДА,"Київ, вул. Лугова, буд. 1",58,2016-03-17,50,"Виготовлення друкованих матеріалів (плакатів, листівок, буклетів та інших агітаційних матеріалів)",Друкована агітація,239351,Центральний офіс,00013215,Україна,"Оплата за друк газети ""Свобода""",26004000021492,current,25000.80,"ТОВ ""Полі-прінт""",32108259,юридична особа
СВОБОДА,"Львівська обл., Яворівський р-н, Яворів, площа Ринок, буд. 14",58,2016-03-17,51,"Виготовлення друкованих матеріалів (плакатів, листівок, буклетів та інших агітаційних матеріалів)",Друкована агітація,239350,Центральний офіс,00013215,Україна,"Оплата за друк газети ""Свобода""",26004000021492,current,20402.93,"ТОВ ""ВД ""Молода Галичина""",32148930,юридична особа
СВОБОДА,,49,2016-03-17,2,Публікування матеріалів у друкованих ЗМІ,Реклама в друкованих ЗМІ,239271,Радивилівська районна організація,35314604,Рівненська область,Оплата за оголошення в газету,26428300994650,current,82.67,"ТОВ ""Реакція Радивилівської районної газети ""Прапор перемоги""",02474914,юридична особа
СВОБОДА,"Київ, вул. Михайла Грушевського, буд. 1Д",70,2016-03-15,,Банківські послуги,Інші витрати,242288,Шепетівська міська організація,33990155,Хмельницька область,"Комісія за обслуговування рахунків з договором банківського рахунку від 04.11.2015, без ПДВ",26008052301651,current,100.00,"ПАТ КБ ""Приватбанк""",14360570,юридична особа
СВОБОДА,"Київ, вул. Михайла Грушевського, буд. 1Д",70,2016-03-15,СЮ315У7Е0С,Банківські послуги,Інші витрати,242268,Дніпропетровська обласна організація,26511459,Дніпропетровська область,14.03.2016 САО№967 еквайрингова комісія 14.03.2016 17:01:38 по картці 5169330507766746,26005050264582,current,60.00,"ПАТ КБ ""Приватбанк""",14360570,юридична особа
СВОБОДА,"Київ, вул. Михайла Грушевського, буд. 1Д",70,2016-03-15,СЮ315У7С07,Банківські послуги,Інші витрати,242267,Дніпропетровська обласна організація,26511459,Дніпропетровська область,14.03.2016 САО№967 еквайрингова комісія 14.03.2016 17:02:55 по картці 5169330507766746,26005050264582,current,60.00,"ПАТ КБ ""Приватбанк""",14360570,юридична особа
СВОБОДА,"Дніпропетровська обл., Камʼянське, 3-й Травневий пров., 22",72,2016-03-15,О0315У7ЕШ2,"Придбання, ремонт офісної техніки та програмного забезпечення (Бухгалтерські програми, Ліга.закон, домени)",Придбання офісної техніки та програмного забезпечення,240252,Дніпропетровська обласна організація,26511459,Дніпропетровська область,Обслуговування різографа,26005050264582,current,8000.00,"ПАП ""Злагода""",19094386,юридична особа
СВОБОДА,"Дніпропетровська обл., Камʼянське, 3-й Травневий пров., 22",72,2016-03-15,СЮ315У7СН1,"Придбання, ремонт офісної техніки та програмного забезпечення (Бухгалтерські програми, Ліга.закон, домени)",Придбання офісної техніки та програмного забезпечення,240251,Дніпропетровська обласна організація,26511459,Дніпропетровська область,Обслуговування різо графа,26005050264582,current,8000.00,"ПАП ""Злагода""",19094386,юридична особа
СВОБОДА,"Львівська обл., Львів, вул. Пекарська, буд. 23",70,2016-03-10,"047,048, 049",Банківські послуги,Інші витрати,242400,Центральний офіс,00013215,Україна,Комісія банку за переказ коштів,26004000021492,current,9.00,"ПАТ ""Креді агріколь банк""",14361575,юридична особа
СВОБОДА,"Київ, вул. Лугова, буд. 1",58,2016-03-10,49,"Виготовлення друкованих матеріалів (плакатів, листівок, буклетів та інших агітаційних матеріалів)",Друкована агітація,239349,Центральний офіс,00013215,Україна,"Оплата за друк газети ""Свобода""",26004000021492,current,25000.80,"ТОВ ""Полі-прінт""",32108259,юридична особа
СВОБОДА,"Львівська обл., Яворівський р-н, Яворів, площа Ринок, буд. 14",58,2016-03-10,47,"Виготовлення друкованих матеріалів (плакатів, листівок, буклетів та інших агітаційних матеріалів)",Друкована агітація,239348,Центральний офіс,00013215,Україна,"Оплата за друк газети ""Свобода""",26004000021492,current,20402.93,"ТОВ ""ВД ""Молода Галичина""",32148930,юридична особа
СВОБОДА,"Івано-Франківська обл., Івано-Франківськ, вул. Незалежності, буд. 53",58,2016-03-10,48,"Виготовлення друкованих матеріалів (плакатів, листівок, буклетів та інших агітаційних матеріалів)",Друкована агітація,239347,Центральний офіс,00013215,Україна,"Оплата за друк газети ""Свобода""",26004000021492,current,16000.00,"ТОВ ""Місто НВ""",30106695,юридична особа
СВОБОДА,"Львівська обл., Львів, вул. Пекарська, буд. 23",70,2016-03-04,"041,042, 043,044, 045,046",Банківські послуги,Інші витрати,242399,Центральний офіс,00013215,Україна,Комісія банку за переказ коштів,26004000021492,current,18.00,"ПАТ ""Креді агріколь банк""",14361575,юридична особа
СВОБОДА,"Київ, вул. Олександра Кошиця, буд. 3",61,2016-03-04,43,Військовий збір,Податкові платежі,241914,Центральний офіс,00013215,Україна,Військовий збір,26004000021492,current,441.84,УДКСУ в Дарницькому районі,38021179,юридична особа
СВОБОДА,"Київ, вул. Олександра Кошиця, буд. 3",62,2016-03-04,42,Сплата ЄСВ,Податкові платежі,241671,Центральний офіс,00013215,Україна,Єдиний внесок,26004000021492,current,4838.37,ДПІ у Дарницькому р-ні м. Києва,39479227,юридична особа
СВОБОДА,"Київ, вул. Олександра Кошиця, буд. 3",63,2016-03-04,41,Податок на доходи,Податкові платежі,241435,Центральний офіс,00013215,Україна,ПДФО,26004000021492,current,5178.03,УДКСУ в Дарницькому районі,38021179,юридична особа
СВОБОДА,"Львівська обл., Львів, вул. Золота, буд. 42",79,2016-03-04,45,"Оренда будинків і приміщень та експлуатаційні витрати (прибирання, страхування орендованих будинків, охорона, сигналізація, ремонт, вивіз сміття, тощо)",Оренда нерухомості,239715,Центральний офіс,00013215,Україна,Оплата за постачання природного газу,26004000021492,current,6041.99,"ТОВ ""Львівгаз збут""",39594527,юридична особа
СВОБОДА,"Львівська обл., Львів, вул. Золота, буд. 42",79,2016-03-04,44,"Оренда будинків і приміщень та експлуатаційні витрати (прибирання, страхування орендованих будинків, охорона, сигналізація, ремонт, вивіз сміття, тощо)",Оренда нерухомості,239714,Центральний офіс,00013215,Україна,Оплата за розподіл природного газу,26004000021492,current,196.95,"ПАТ ""Львівгаз""",03349039,юридична особа
СВОБОДА,"Львівська обл., Львів, вул. Пекарська, буд. 23",70,2016-03-03,40,Банківські послуги,Інші витрати,242398,Центральний офіс,00013215,Україна,Комісія банку за переказ коштів,26004000021492,current,3.00,"ПАТ ""Креді агріколь банк""",14361575,юридична особа
СВОБОДА,"Львівська обл., Яворівський р-н, Яворів, площа Ринок, буд. 14",58,2016-03-03,40,"Виготовлення друкованих матеріалів (плакатів, листівок, буклетів та інших агітаційних матеріалів)",Друкована агітація,239346,Центральний офіс,00013215,Україна,"Оплата за друк газети ""Свобода""",26004000021492,current,20453.33,"ТОВ ""ВД ""Молода Галичина""",32148930,юридична особа
СВОБОДА,"Київ, вул. Михайла Грушевського, буд. 1Д",70,2016-03-01,AS62t58sup,Банківські послуги,Інші витрати,242266,Дніпропетровська обласна організація,26511459,Дніпропетровська область,Комісія за обслуговування рахунку лютий 2016р. згідно договору банківського рахунку від,26005050264582,current,100.00,"ПАТ КБ ""Приватбанк""",14360570,юридична особа
СВОБОДА,"Львівська обл., Львів, вул. Пекарська, буд. 23",70,2016-02-29,1,Банківські послуги,Інші витрати,242397,Центральний офіс,00013215,Україна,Комісія банку за супроводження клієнт-банку,26004000021492,current,60.00,"ПАТ ""Креді агріколь банк""",14361575,юридична особа
СВОБОДА,"Харківська обл., Харків, Московський просп., 60",70,2016-02-29,Дог. №1791268 від 14.04.2008,Банківські послуги,Інші витрати,242283,Київська міська організація,25665516,Київ,Списання комісії за ведення поточного рахунку,26003179126800,current,209.00,"АТ ""Укрсиббанк""",09807750,юридична особа
СВОБОДА,"Львівська обл., Львів, вул. Грабовського, буд. 11",70,2016-02-29,1112235,Банківські послуги,Інші витрати,242278,Івано-Франківська міська організація,36498192,Івано-Франківська область,Погашення % відповідно до угоди №26006000006997 від 05.10.2010 за 01.02.-29.02.2016,26006000006997,current,1.41,"ПАТ ""ВіЕс Банк""",19358632,юридична особа
СВОБОДА,"Київ, вул. Ковпака, буд. 29",70,2016-02-29,216535629,Банківські послуги,Інші витрати,242276,Запорізька обласна організація,36320650,Запорізька область,Списання з карткового рахунку/комісія за неактивний рахунок,26000011703854,current,7.25,"ПАТ ""Укрсоцбанк""",00039019,юридична особа
СВОБОДА,"Київ, вул. Госпітальна, буд. 12Г",70,2016-02-29,,Банківські послуги,Інші витрати,242271,Бердичівська міська організація,36710964,Житомирська область,списання щомісячної плати за обслуговування тарифного пакету за лютий 2016 року,26009430345917,current,35.00,"АТ ""Ощадбанк""",00032129,юридична особа
СВОБОДА,"Київ, вул. Миколи Лєскова, буд. 9",70,2016-02-26,Рах№ 26005483329,Банківські послуги,Інші витрати,242287,Красилівська районна організація,36923668,Хмельницька область,Комісія за користування пакетом послуг з 28.01.2016 ʼ по 25.02.16,26005483329,current,120.00,"АТ ""Райффайзен банк Аваль""",14305909,юридична особа
СВОБОДА,"Львівська обл., Львів, вул. Пекарська, буд. 23",70,2016-02-24,"037,038, 039",Банківські послуги,Інші витрати,242396,Центральний офіс,00013215,Україна,Комісія банку за переказ коштів,26004000021492,current,9.00,"ПАТ ""Креді агріколь банк""",14361575,юридична особа
СВОБОДА,"Київ, вул. Михайла Грушевського, буд. 1Д",70,2016-02-24,0224L1YRMY,Банківські послуги,Інші витрати,242265,Дніпропетровська обласна організація,26511459,Дніпропетровська область,"Комісія за дебетовий платіж N 20 від 24.02.2016 по рахунку, згідно договору банківського рахунку N б/н від 28.09.2015 без НДВ",26005050264582,current,3.00,"ПАТ КБ ""Приватбанк""",14360570,юридична особа
СВОБОДА,"Львівська обл., Яворівський р-н, Яворів, площа Ринок, буд. 14",58,2016-02-24,39,"Виготовлення друкованих матеріалів (плакатів, листівок, буклетів та інших агітаційних матеріалів)",Друкована агітація,239345,Центральний офіс,00013215,Україна,"Оплата за друк газети ""Свобода""",26004000021492,current,21258.72,"ТОВ ""ВД ""Молода Галичина""",32148930,юридична особа
СВОБОДА,"Львівська обл., Львів, вул. Пекарська, буд. 23",70,2016-02-23,"032,033, 034,035, 036",Банківські послуги,Інші витрати,242395,Центральний офіс,00013215,Україна,Комісія банку за переказ коштів,26004000021492,current,15.00,"ПАТ ""Креді агріколь банк""",14361575,юридична особа
СВОБОДА,"Львівська обл., Львів, вул. Стрийська, буд. 35",60,2016-02-23,36,Інші податки,Податкові платежі,242149,Центральний офіс,00013215,Україна,Земельний податок,26004000021492,current,326.65,УДКСУ у Личаківському районі м. Львова,38007620,юридична особа
СВОБОДА,"Київ, вул. Олександра Кошиця, буд. 3",61,2016-02-23,34,Військовий збір,Податкові платежі,241913,Центральний офіс,00013215,Україна,Військовий збір,26004000021492,current,392.25,УДКСУ в Дарницькому районі,38021179,юридична особа
СВОБОДА,"Київ, вул. Олександра Кошиця, буд. 3",62,2016-02-23,33,Сплата ЄСВ,Податкові платежі,241670,Центральний офіс,00013215,Україна,Єдиний внесок,26004000021492,current,4258.10,ДПІ у Дарницькому р-ні м. Києва,39479227,юридична особа
СВОБОДА,"Київ, вул. Олександра Кошиця, буд. 3",63,2016-02-23,32,Податок на доходи,Податкові платежі,241434,Центральний офіс,00013215,Україна,ПДФО,26004000021492,current,4707.00,УДКСУ в Дарницькому районі,38021179,юридична особа
СВОБОДА,"Львівська обл., Львів, вул. Івана Миколайчука, буд. 7",53,2016-02-23,35,Витрати на розміщення зовнішньої реклами,Зовнішня реклама,239297,Центральний офіс,00013215,Україна,Оплата за користування місцем для розміщення реклами,26004000021492,current,36603.91,"ПП ""СТО-ВП Плюс""",37831217,юридична особа
СВОБОДА,"Львівська обл., Львів, вул. Пекарська, буд. 23",70,2016-02-19,"028,029, 030,031",Банківські послуги,Інші витрати,242394,Центральний офіс,00013215,Україна,Комісія банку за переказ коштів,26004000021492,current,12.00,"ПАТ ""Креді агріколь банк""",14361575,юридична особа
СВОБОДА,"Харківська обл., Харків, Московський просп., 60",70,2016-02-19,Дог. №1791268 від 14.04.2008,Банківські послуги,Інші витрати,242282,Київська міська організація,25665516,Київ,Списання комісії за зовнішній платіж,26003179126800,current,1.50,"АТ ""Укрсиббанк""",09807750,юридична особа
СВОБОДА,"Львівська обл., Львів, просп. Червоної Калини, буд. 45",76,2016-02-19,30,Послуги зв’язку,Послуги зв’язку,240295,Центральний офіс,00013215,Україна,Оплата за Інтернет,26004000021492,current,105.00,"ТОВ ""Бізнес і технології""",31442320,юридична особа
СВОБОДА,"Львівська обл., Львів, вул. Золота, буд. 42",79,2016-02-19,31,"Оренда будинків і приміщень та експлуатаційні витрати (прибирання, страхування орендованих будинків, охорона, сигналізація, ремонт, вивіз сміття, тощо)",Оренда нерухомості,239713,Центральний офіс,00013215,Україна,Оплата за розподіл природного газу,26004000021492,current,768.86,"ПАТ ""Львівгаз""",03349039,юридична особа
СВОБОДА,"Львівська обл., Яворівський р-н, Яворів, площа Ринок, буд. 14",58,2016-02-19,28,"Виготовлення друкованих матеріалів (плакатів, листівок, буклетів та інших агітаційних матеріалів)",Друкована агітація,239344,Центральний офіс,00013215,Україна,"Оплата за друк газети ""Свобода""",26004000021492,current,40501.44,"ТОВ ""ВД ""Молода Галичина""",32148930,юридична особа
СВОБОДА,,53,2016-02-19,Рах. №17 від 12.02.2016,Витрати на розміщення зовнішньої реклами,Зовнішня реклама,239294,Київська міська організація,25665516,Київ,За друк банерів,26003179126800,current,3410.00,Палій Сергій Іванович,,фізична особа
СВОБОДА,"Львівська обл., Львів, вул. Пекарська, буд. 23",70,2016-02-11,"024,025, 026,027",Банківські послуги,Інші витрати,242393,Центральний офіс,00013215,Україна,Комісія банку за переказ коштів,26004000021492,current,12.00,"ПАТ ""Креді агріколь банк""",14361575,юридична особа
СВОБОДА,"Київ, вул. Олександра Кошиця, буд. 3",61,2016-02-11,27,Військовий збір,Податкові платежі,241912,Центральний офіс,00013215,Україна,Військовий збір,26004000021492,current,441.84,УДКСУ в Дарницькому районі,38021179,юридична особа
СВОБОДА,"Київ, вул. Олександра Кошиця, буд. 3",62,2016-02-11,26,Сплата ЄСВ,Податкові платежі,241669,Центральний офіс,00013215,Україна,Єдиний внесок,26004000021492,current,1660.83,ДПІ у Дарницькому р-ні м. Києва,39479227,юридична особа
СВОБОДА,"Київ, вул. Олександра Кошиця, буд. 3",63,2016-02-11,25,Податок на доходи,Податкові платежі,241433,Центральний офіс,00013215,Україна,ПДФО,26004000021492,current,6149.41,УДКСУ в Дарницькому районі,38021179,юридична особа
СВОБОДА,"Львівська обл., Львів, вул. Пекарська, буд. 23",70,2016-02-10,3117900 0,Банківські послуги,Інші витрати,242392,Центральний офіс,00013215,Україна,Комісія банку за видачу готівки,26004000021492,current,2043.85,"ПАТ ""Креді агріколь банк""",14361575,юридична особа
СВОБОДА,,84,2016-02-10,Л31179000,"Заробітна плата, премії","Заробітна плата, лікарняні, вагітності, відрядження, компенсації",240748,Центральний офіс,00013215,Україна,Зарплата,26004000021492,current,15514.84,Демчишин Назар Зіновійович,,фізична особа
СВОБОДА,,84,2016-02-10,Л31179000,"Заробітна плата, премії","Заробітна плата, лікарняні, вагітності, відрядження, компенсації",240747,Центральний офіс,00013215,Україна,Зарплата,26004000021492,current,8044.00,Мохник Андрій Володимирович,,фізична особа
СВОБОДА,,84,2016-02-10,Л31179000,"Заробітна плата, премії","Заробітна плата, лікарняні, вагітності, відрядження, компенсації",240746,Центральний офіс,00013215,Україна,Зарплата,26004000021492,current,4870.04,Мельничук Любомир Анатолійович,,фізична особа
СВОБОДА,,84,2016-02-10,Л31179000,"Заробітна плата, премії","Заробітна плата, лікарняні, вагітності, відрядження, компенсації",240745,Центральний офіс,00013215,Україна,Зарплата,26004000021492,current,108332.80,Пелешак Ярослав Антонович,,фізична особа
СВОБОДА,,84,2016-02-10,Л31179000,"Заробітна плата, премії","Заробітна плата, лікарняні, вагітності, відрядження, компенсації",240744,Центральний офіс,00013215,Україна,Зарплата,26004000021492,current,118719.04,Тягнибок Олег Ярославович,,фізична особа
СВОБОДА,"Львівська обл., Львів, вул. Пекарська, буд. 23",70,2016-02-05,23,Банківські послуги,Інші витрати,242391,Центральний офіс,00013215,Україна,Комісія банку за переказ коштів,26004000021492,current,3.00,"ПАТ ""Креді агріколь банк""",14361575,юридична особа
СВОБОДА,"Львівська обл., Львів, вул. Пекарська, буд. 23",70,2016-02-04,22,Банківські послуги,Інші витрати,242390,Центральний офіс,00013215,Україна,Комісія банку за переказ коштів,26004000021492,current,3.00,"ПАТ ""Креді агріколь банк""",14361575,юридична особа
СВОБОДА,"Львівська обл., Яворівський р-н, Яворів, площа Ринок, буд. 14",58,2016-02-04,22,"Виготовлення друкованих матеріалів (плакатів, листівок, буклетів та інших агітаційних матеріалів)",Друкована агітація,239343,Центральний офіс,00013215,Україна,"Оплата за друк газети ""Свобода""",26004000021492,current,20250.72,"ТОВ ""ВД ""Молода Галичина""",32148930,юридична особа
СВОБОДА,"Київ, вул. Михайла Грушевського, буд. 1Д",70,2016-02-03,G0203R89FD,Банківські послуги,Інші витрати,242264,Дніпропетровська обласна організація,26511459,Дніпропетровська область,02.02.2016 С ADN 1087 02.02.2016 12:02:30 CADN1087 18092080738 Зквайринговая комиссия 5169330507766746,26005050264582,current,36.00,"ПАТ КБ ""Приватбанк""",14360570,юридична особа
СВОБОДА,"Дніпропетровська обл., Камʼянське, вул. Долматова, буд. 11",72,2016-02-03,G0203R89FC,"Придбання, ремонт офісної техніки та програмного забезпечення (Бухгалтерські програми, Ліга.закон, домени)",Придбання офісної техніки та програмного забезпечення,240250,Дніпропетровська обласна організація,26511459,Дніпропетровська область,Обслуговування оргтехніки,26005050264582,current,4800.00,"ТОВ ""Альфа-стек""",34827737,юридична особа
СВОБОДА,"Львівська обл., Львів, вул. Пекарська, буд. 23",70,2016-02-02,20021,Банківські послуги,Інші витрати,242389,Центральний офіс,00013215,Україна,Комісія банку за переказ коштів,26004000021492,current,6.00,"ПАТ ""Креді агріколь банк""",14361575,юридична особа
СВОБОДА,"Київ, вул. Лугова, буд. 1",58,2016-02-02,20,"Виготовлення друкованих матеріалів (плакатів, листівок, буклетів та інших агітаційних матеріалів)",Друкована агітація,239342,Центральний офіс,00013215,Україна,"Оплата за друк газети ""Свобода""",26004000021492,current,25000.80,"ТОВ ""Полі-прінт""",32108259,юридична особа
СВОБОДА,"Івано-Франківська обл., Івано-Франківськ, вул. Незалежності, буд. 53",58,2016-02-02,21,"Виготовлення друкованих матеріалів (плакатів, листівок, буклетів та інших агітаційних матеріалів)",Друкована агітація,239341,Центральний офіс,00013215,Україна,"Оплата за друк газети ""Свобода""",26004000021492,current,16000.00,"ТОВ ""Місто НВ""",30106695,юридична особа
СВОБОДА,"Львівська обл., Львів, вул. Пекарська, буд. 23",70,2016-01-29,1,Банківські послуги,Інші витрати,242388,Центральний офіс,00013215,Україна,Комісія банку за супроводження клієнт-банку,26004000021492,current,60.00,"ПАТ ""Креді агріколь банк""",14361575,юридична особа
СВОБОДА,"Харківська обл., Харків, Московський просп., 60",70,2016-01-29,Дог. №1791268 від 14.04.2008,Банківські послуги,Інші витрати,242281,Київська міська організація,25665516,Київ,Списання комісії за ведення поточного рахунку,26003179126800,current,209.00,"АТ ""Укрсиббанк""",09807750,юридична особа
СВОБОДА,"Львівська обл., Львів, вул. Грабовського, буд. 11",70,2016-01-29,981876,Банківські послуги,Інші витрати,242277,Івано-Франківська міська організація,36498192,Івано-Франківська область,Погашення % відповідно до угоди №26006000006997 від 05.10.2010 за 01.01.-31.01.2016,26006000006997,current,1.48,"ПАТ ""ВіЕс Банк""",19358632,юридична особа
СВОБОДА,"Київ, вул. Госпітальна, буд. 12Г",70,2016-01-29,,Банківські послуги,Інші витрати,242270,Бердичівська міська організація,36710964,Житомирська область,списання щомісячної плати за обслуговування тарифного пакету за січень 2016 року,26009430345917,current,35.00,"АТ ""Ощадбанк""",00032129,юридична особа
СВОБОДА,,58,2016-01-29,"Рах,№8 від 27.01.2016","Виготовлення друкованих матеріалів (плакатів, листівок, буклетів та інших агітаційних матеріалів)",Друкована агітація,239332,Красилівська районна організація,36923668,Хмельницька область,Оплата за виготовлення та друк,26005483329,current,1570.00,Крисюк С Г,,фізична особа
СВОБОДА,"Київ, вул. Миколи Лєскова, буд. 9",70,2016-01-28,,Банківські послуги,Інші витрати,242275,Житомирська обласна організація,33686723,Житомирська область,Часткове списання комісії за виписку на папер насії (щоденна) з 30.12.2015,26007350955,current,40.00,"АТ ""Райффайзен банк Аваль""",14305909,юридична особа
СВОБОДА,"Львівська обл., Львів, вул. Пекарська, буд. 23",70,2016-01-27,18019,Банківські послуги,Інші витрати,242387,Центральний офіс,00013215,Україна,Комісія банку за переказ коштів,26004000021492,current,6.00,"ПАТ ""Креді агріколь банк""",14361575,юридична особа
СВОБОДА,"Львівська обл., Яворівський р-н, Яворів, площа Ринок, буд. 14",58,2016-01-27,18,"Виготовлення друкованих матеріалів (плакатів, листівок, буклетів та інших агітаційних матеріалів)",Друкована агітація,239340,Центральний офіс,00013215,Україна,"Оплата за друк газети ""Свобода""",26004000021492,current,19464.48,"ТОВ ""ВД ""Молода Галичина""",32148930,юридична особа
СВОБОДА,"Львівська обл., Львів, вул. Пекарська, буд. 23",70,2016-01-26,17,Банківські послуги,Інші витрати,242386,Центральний офіс,00013215,Україна,Комісія банку за переказ коштів,26004000021492,current,3.00,"ПАТ ""Креді агріколь банк""",14361575,юридична особа
СВОБОДА,"Львівська обл., Львів, вул. Стрийська, буд. 35",60,2016-01-26,17,Інші податки,Податкові платежі,242148,Центральний офіс,00013215,Україна,Земельний податок,26004000021492,current,227.95,УДКСУ у Личаківському районі м. Львова,38007620,юридична особа
СВОБОДА,"Львівська обл., Львів, вул. Пекарська, буд. 23",70,2016-01-25,15,Банківські послуги,Інші витрати,242385,Центральний офіс,00013215,Україна,Комісія банку за переказ коштів,26004000021492,current,3.00,"ПАТ ""Креді агріколь банк""",14361575,юридична особа
СВОБОДА,"Львівська обл., Львів, вул. Жовківська, буд. 22",79,2016-01-25,16,"Оренда будинків і приміщень та експлуатаційні витрати (прибирання, страхування орендованих будинків, охорона, сигналізація, ремонт, вивіз сміття, тощо)",Оренда нерухомості,239712,Центральний офіс,00013215,Україна,Оплата за оренду приміщення,26004000021492,current,3600.00,"ПП ""Система ЛЯ""",34462313,юридична особа
СВОБОДА,"Львівська обл., Львів, вул. Івана Миколайчука, буд. 7",53,2016-01-25,15,Витрати на розміщення зовнішньої реклами,Зовнішня реклама,239296,Центральний офіс,00013215,Україна,Оплата за користування місцем для розміщення реклами,26004000021492,current,36603.91,"ПП ""СТО-ВП Плюс""",37831217,юридична особа
СВОБОДА,"Київ, вул. Михайла Грушевського, буд. 1Д",70,2016-01-23,G0203R89FC,Банківські послуги,Інші витрати,242263,Дніпропетровська обласна організація,26511459,Дніпропетровська область,22.01.2016 CADN1111 22.01.2016 19:15:18 CADN1111 17991282794 еквайрингова комісія 5169330507766746,26005050264582,current,22.50,"ПАТ КБ ""Приватбанк""",14360570,юридична особа
СВОБОДА,"Дніпропетровська обл., Камʼянське, 3-й Травневий пров., 22",72,2016-01-23,С0123Х0РРБ,"Придбання, ремонт офісної техніки та програмного забезпечення (Бухгалтерські програми, Ліга.закон, домени)",Придбання офісної техніки та програмного забезпечення,240249,Дніпропетровська обласна організація,26511459,Дніпропетровська область,Обслуговування різо графа,26005050264582,current,3000.00,"ПАП ""Злагода""",19094386,юридична особа
СВОБОДА,"Львівська обл., Львів, вул. Пекарська, буд. 23",70,2016-01-22,"006,007, 008,009, 010,011, 012,013",Банківські послуги,Інші витрати,242384,Центральний офіс,00013215,Україна,Комісія банку за переказ коштів,26004000021492,current,24.00,"ПАТ ""Креді агріколь банк""",14361575,юридична особа
СВОБОДА,"Київ, вул. Олександра Кошиця, буд. 3",61,2016-01-22,13,Військовий збір,Податкові платежі,241911,Центральний офіс,00013215,Україна,Військовий збір,26004000021492,current,392.25,УДКСУ в Дарницькому районі,38021179,юридична особа
СВОБОДА,"Київ, вул. Олександра Кошиця, буд. 3",62,2016-01-22,12,Сплата ЄСВ,Податкові платежі,241668,Центральний офіс,00013215,Україна,Єдиний внесок,26004000021492,current,7435.64,ДПІ у Дарницькому р-ні м. Києва,39479227,юридична особа
СВОБОДА,"Київ, вул. Олександра Кошиця, буд. 3",63,2016-01-22,11,Податок на доходи,Податкові платежі,241432,Центральний офіс,00013215,Україна,ПДФО,26004000021492,current,3735.62,УДКСУ в Дарницькому районі,38021179,юридична особа
СВОБОДА,"Львівська обл., Львів, просп. Червоної Калини, буд. 45",76,2016-01-22,8,Послуги зв’язку,Послуги зв’язку,240294,Центральний офіс,00013215,Україна,Оплата за Інтернет,26004000021492,current,105.00,"ТОВ ""Бізнес і технології""",31442320,юридична особа
СВОБОДА,"Львівська обл., Львів, вул. Жовківська, буд. 22",79,2016-01-22,14,"Оренда будинків і приміщень та експлуатаційні витрати (прибирання, страхування орендованих будинків, охорона, сигналізація, ремонт, вивіз сміття, тощо)",Оренда нерухомості,239711,Центральний офіс,00013215,Україна,Оплата за електроенергію,26004000021492,current,83.92,"ПП ""Система ЛЯ""",34462313,юридична особа
СВОБОДА,"Київ, вул. Лугова, буд. 1",58,2016-01-22,9,"Виготовлення друкованих матеріалів (плакатів, листівок, буклетів та інших агітаційних матеріалів)",Друкована агітація,239339,Центральний офіс,00013215,Україна,"Оплата за друк газети ""Свобода""",26004000021492,current,25000.80,"ТОВ ""Полі-прінт""",32108259,юридична особа
СВОБОДА,"Львівська обл., Яворівський р-н, Яворів, площа Ринок, буд. 14",58,2016-01-22,6,"Виготовлення друкованих матеріалів (плакатів, листівок, буклетів та інших агітаційних матеріалів)",Друкована агітація,239338,Центральний офіс,00013215,Україна,"Оплата за друк газети ""Свобода""",26004000021492,current,39432.96,"ТОВ ""ВД ""Молода Галичина""",32148930,юридична особа
СВОБОДА,"Львівська обл., Львів, вул. Пекарська, буд. 23",70,2016-01-13,4005,Банківські послуги,Інші витрати,242383,Центральний офіс,00013215,Україна,Комісія банку за переказ коштів,26004000021492,current,6.00,"ПАТ ""Креді агріколь банк""",14361575,юридична особа
СВОБОДА,"Київ, вул. Миколи Лєскова, буд. 9",70,2016-01-13,,Банківські послуги,Інші витрати,242274,Житомирська обласна організація,33686723,Житомирська область,Комісія за користування пакетом послуг з 27.11.2015 по 29.12. 2015 по рахунку 26007350955,26007350955,current,100.00,"АТ ""Райффайзен банк Аваль""",14305909,юридична особа
СВОБОДА,"Київ, вул. Миколи Лєскова, буд. 9",70,2016-01-13,,Банківські послуги,Інші витрати,242273,Житомирська обласна організація,33686723,Житомирська область,Комісія за виписку на папер носії (щоденна),26007350955,current,50.00,"АТ ""Райффайзен банк Аваль""",14305909,юридична особа
СВОБОДА,"Львівська обл., Львів, вул. Володимира Винниченка, буд. 8",79,2016-01-13,5,"Оренда будинків і приміщень та експлуатаційні витрати (прибирання, страхування орендованих будинків, охорона, сигналізація, ремонт, вивіз сміття, тощо)",Оренда нерухомості,239710,Центральний офіс,00013215,Україна,Оплата за прибирання території,26004000021492,current,23.35,"КП ЛОР ""Нерухомість та майно""",33358550,юридична особа
СВОБОДА,"Львівська обл., Яворівський р-н, Яворів, площа Ринок, буд. 14",58,2016-01-13,4,"Виготовлення друкованих матеріалів (плакатів, листівок, буклетів та інших агітаційних матеріалів)",Друкована агітація,239337,Центральний офіс,00013215,Україна,"Оплата за друк газети ""Свобода""",26004000021492,current,19968.48,"ТОВ ""ВД ""Молода Галичина""",32148930,юридична особа
СВОБОДА,"Харківська обл., Харків, Московський просп., 60",70,2016-01-12,Дог. №1791268 від 14.04.2008,Банківські послуги,Інші витрати,242280,Київська міська організація,25665516,Київ,Списання комісії за зовнішній платіж,26003179126800,current,1.50,"АТ ""Укрсиббанк""",09807750,юридична особа
СВОБОДА,"Київ, вул. Магнітогорська, буд. 1",58,2016-01-12,Рах.№15-3227 Від 29.12.2015,"Виготовлення друкованих матеріалів (плакатів, листівок, буклетів та інших агітаційних матеріалів)",Друкована агітація,239331,Київська міська організація,25665516,Київ,Поліграфічна продукція,26003179126800,current,3360.00,"ТОВ ""Новий друк""",22891092,юридична особа
СВОБОДА,"Львівська обл., Львів, вул. Пекарська, буд. 23",70,2016-01-06,"001,002, 003",Банківські послуги,Інші витрати,242382,Центральний офіс,00013215,Україна,Комісія банку за переказ коштів,26004000021492,current,9.00,"ПАТ ""Креді агріколь банк""",14361575,юридична особа
СВОБОДА,"Київ, вул. Олександра Кошиця, буд. 3",61,2016-01-06,3,Військовий збір,Податкові платежі,241910,Центральний офіс,00013215,Україна,Військовий збір,26004000021492,current,832.41,УДКСУ в Дарницькому районі,38021179,юридична особа
СВОБОДА,"Київ, вул. Олександра Кошиця, буд. 3",62,2016-01-06,2,Сплата ЄСВ,Податкові платежі,241667,Центральний офіс,00013215,Україна,Єдиний внесок,26004000021492,current,15137.30,ДПІ у Дарницькому р-ні м. Києва,39479227,юридична особа
СВОБОДА,"Київ, вул. Олександра Кошиця, буд. 3",63,2016-01-06,1,Податок на доходи,Податкові платежі,241431,Центральний офіс,00013215,Україна,ПДФО,26004000021492,current,8944.40,УДКСУ в Дарницькому районі,38021179,юридична особа
СВОБОДА,"Львівська обл., Львів, вул. Пекарська, буд. 23",70,2016-01-05,254,Банківські послуги,Інші витрати,242381,Центральний офіс,00013215,Україна,Комісія банку за переказ коштів,26004000021492,current,3.00,"ПАТ ""Креді агріколь банк""",14361575,юридична особа
СВОБОДА,"Київ, вул. Михайла Грушевського, буд. 1Д",70,2016-01-05,в0104вКК4К,Банківські послуги,Інші витрати,242262,Дніпропетровська обласна організація,26511459,Дніпропетровська область,17:44:21 САОИ7471 17819047190 сквайрингова комісія 5169330507766746,26005050264582,current,3.75,"ПАТ КБ ""Приватбанк""",14360570,юридична особа
СВОБОДА,"Київ, вул. Михайла Грушевського, буд. 1Д",70,2016-01-05,,Банківські послуги,Інші витрати,242261,Вінницька обласна організація,33911707,Вінницька область,Комісія за обслуговування рахунку,26006055327445,current,23.14,"ПАТ КБ ""Приватбанк""",14360570,юридична особа
СВОБОДА,"Дніпропетровська обл., Камʼянське, вул. Січеславський шлях, буд. 71",74,2016-01-05,С01040КК34,"Придбання канцтоварів, паперу, інших предметів і матеріалів, а також госп товари",Придбання канцтоварів та госп. товарів,240277,Дніпропетровська обласна організація,26511459,Дніпропетровська область,Купівля паперу,26005050264582,current,499.98,Лоза Дмитро Анатолійович,,фізична особа
СВОБОДА,"Київ, вул. Михайла Грушевського, буд. 1Д",70,2016-01-01,А863у54к1р,Банківські послуги,Інші витрати,242300,Полтавська обласна організація,36984343,Полтавська область,Комісія за обслуговування рахунку,26005054629028,current,100.00,"ПАТ КБ ""Приватбанк""",14360570,юридична особа
